PublisherLabel,PublisherURI,"Body name","Body","Service area","Service division","Responsible unit","Expenses type","Date","Transaction","Amount","Supplier name"
"Bracknell Forest Council","http://opendatacommunities.org/id/unitary-authority/bracknell-forest","Bracknell Forest Council","00MA","Recreation, Sports and Leisure","Retail Services, Catering & Licenced","Easthampstead Park Centre - Catering","Cost of Goods Sold",31/05/2011 00:00:00,"6450690",776.62,"3663"
"Bracknell Forest Council","http://opendatacommunities.org/id/unitary-authority/bracknell-forest","Bracknell Forest Council","00MA","Recreation, Sports and Leisure","Retail Services, Catering & Licenced","Easthampstead Park Centre - Catering","Cost of Goods Sold",31/05/2011 00:00:00,"6450690",4256.47,"3663"
"Bracknell Forest Council","http://opendatacommunities.org/id/unitary-authority/bracknell-forest","Bracknell Forest Council","00MA","Recreation, Sports and Leisure","Golf Courses","Leisure DSO - Downshire Catering","Cost of Goods Sold",31/05/2011 00:00:00,"6451020",2856.76,"3663"
"Bracknell Forest Council","http://opendatacommunities.org/id/unitary-authority/bracknell-forest","Bracknell Forest Council","00MA","Recreation, Sports and Leisure","Golf Courses","Leisure DSO - Downshire Catering","Cost of Goods Sold",31/05/2011 00:00:00,"6451020",682.1,"3663"
"Bracknell Forest Council","http://opendatacommunities.org/id/unitary-authority/bracknell-forest","Bracknell Forest Council","00MA","Recreation, Sports and Leisure","Indoor Sports & Recreation Facilities","Coral Reef - Catering & Bar","Cost of Goods Sold",31/05/2011 00:00:00,"6451078",1857.83,"3663"
"Bracknell Forest Council","http://opendatacommunities.org/id/unitary-authority/bracknell-forest","Bracknell Forest Council","00MA","Recreation, Sports and Leisure","Indoor Sports & Recreation Facilities","Leisure Centre - Catering General","Cost of Goods Sold",31/05/2011 00:00:00,"6451333",2353.68,"3663"
"Bracknell Forest Council","http://opendatacommunities.org/id/unitary-authority/bracknell-forest","Bracknell Forest Council","00MA","Recreation, Sports and Leisure","Indoor Sports & Recreation Facilities","Edgbarrow/Sandhurst - Catering General","Cost of Goods Sold",31/05/2011 00:00:00,"6451334",651.53,"3663"
"Bracknell Forest Council","http://opendatacommunities.org/id/unitary-authority/bracknell-forest","Bracknell Forest Council","00MA","Mental Health Needs (Under 65)","Residential Care Home Placements","Residential Placements-Mental Illness","Contracted Services",07/06/2011 00:00:00,"30175157",2346,"2 CARE"
"Bracknell Forest Council","http://opendatacommunities.org/id/unitary-authority/bracknell-forest","Bracknell Forest Council","00MA","Mental Health Needs (Under 65)","Residential Care Home Placements","Residential Placements-Mental Illness","Contracted Services",07/06/2011 00:00:00,"30175157",2346.08,"2 CARE"
"Bracknell Forest Council","http://opendatacommunities.org/id/unitary-authority/bracknell-forest","Bracknell Forest Council","00MA","Supporting People","Supporting People","Supporting People Payments","Transfer Payments - Supporting People",06/06/2011 00:00:00,"6450182",3671.2,"ABILITY HOUSING ASSOCIATION"
"Bracknell Forest Council","http://opendatacommunities.org/id/unitary-authority/bracknell-forest","Bracknell Forest Council","00MA","Older People (Aged 65 or Over)","Nursing Home Placements","Nursing Home Placements-Elderly","Contracted Services",07/06/2011 00:00:00,"30175157",2203.88,"ACORN HEALTHCARE LTD T/A ACORN LODGE NURSING CARE"
"Bracknell Forest Council","http://opendatacommunities.org/id/unitary-authority/bracknell-forest","Bracknell Forest Council","00MA","Children Looked After (CLA)","Children's Homes","Children's Home Placements","Contracted Services",01/06/2011 00:00:00,"6450701",11571.3,"ACTIVE8 CARE LTD"
"Bracknell Forest Council","http://opendatacommunities.org/id/unitary-authority/bracknell-forest","Bracknell Forest Council","00MA","Recreation, Sports and Leisure","Indoor Sports & Recreation Facilities","Leisure DSO - Leisure Centre","Publicity & Marketing",28/02/2011 00:00:00,"6451138",568,"ACTIVEFUTURES LTD ( T/A YELLING PERFORMANCE)"
"Bracknell Forest Council","http://opendatacommunities.org/id/unitary-authority/bracknell-forest","Bracknell Forest Council","00MA","Recreation, Sports and Leisure","Golf Courses","Leisure DSO - Downshire Golf Shop","Cost of Goods Sold",26/04/2011 00:00:00,"6450389",831.1,"ACUSHNET LIMITED"
"Bracknell Forest Council","http://opendatacommunities.org/id/unitary-authority/bracknell-forest","Bracknell Forest Council","00MA","Recreation, Sports and Leisure","Golf Courses","Leisure DSO - Downshire Golf Shop","Cost of Goods Sold",03/05/2011 00:00:00,"6450392",587.53,"ACUSHNET LIMITED"
"Bracknell Forest Council","http://opendatacommunities.org/id/unitary-authority/bracknell-forest","Bracknell Forest Council","00MA","","","Disabled Facilities Grant","Grants Paid",23/06/2011 00:00:00,"6452236",4375,"ADAPTABLE BUILDING SERVICES"
"Bracknell Forest Council","http://opendatacommunities.org/id/unitary-authority/bracknell-forest","Bracknell Forest Council","00MA","","","Disabled Facilities Grant","Grants Paid",28/06/2011 00:00:00,"6452279",4155,"ADAPTABLE BUILDING SERVICES"
"Bracknell Forest Council","http://opendatacommunities.org/id/unitary-authority/bracknell-forest","Bracknell Forest Council","00MA","Learning Disability (under 65)","Direct Payments - LD","Direct Payments - LD","Direct Payments to Clients",21/06/2011 00:00:00,"30175678",1001.2,"REDACTED PERSONAL DATA"
"Bracknell Forest Council","http://opendatacommunities.org/id/unitary-authority/bracknell-forest","Bracknell Forest Council","00MA","Recreation, Sports and Leisure","Indoor Sports & Recreation Facilities","Leisure DSO - Leisure Centre","R&M - Service Contracts",01/05/2011 00:00:00,"6449800",5191.2,"ADT FIRE AND SECURITY"
"Bracknell Forest Council","http://opendatacommunities.org/id/unitary-authority/bracknell-forest","Bracknell Forest Council","00MA","Central Support Services - COF","Construction and Property","Schools Service Contracts","R&M - Reactive",13/05/2011 00:00:00,"6449993",1000,"ADT FIRE AND SECURITY"
"Bracknell Forest Council","http://opendatacommunities.org/id/unitary-authority/bracknell-forest","Bracknell Forest Council","00MA","Central Support Services - COF","Construction and Property","Schools Service Contracts","R&M - Reactive",13/05/2011 00:00:00,"6449994",936,"ADT FIRE AND SECURITY"
"Bracknell Forest Council","http://opendatacommunities.org/id/unitary-authority/bracknell-forest","Bracknell Forest Council","00MA","","","Improvements & Capitalised Repairs (Council Wide)","Construction - Contract Payments",13/05/2011 00:00:00,"6449995",1451.22,"ADT FIRE AND SECURITY"
"Bracknell Forest Council","http://opendatacommunities.org/id/unitary-authority/bracknell-forest","Bracknell Forest Council","00MA","Non-School Funding","Pre-School Education","Neighbourhood Nursery","R&M - Reactive",13/05/2011 00:00:00,"6449996",536,"ADT FIRE AND SECURITY"
"Bracknell Forest Council","http://opendatacommunities.org/id/unitary-authority/bracknell-forest","Bracknell Forest Council","00MA","","","Market Street Properties","Construction - Other Direct Expenses",05/05/2011 00:00:00,"6450869",11950,"AEDEAN LTD"
"Bracknell Forest Council","http://opendatacommunities.org/id/unitary-authority/bracknell-forest","Bracknell Forest Council","00MA","Recreation, Sports and Leisure","Indoor Sports & Recreation Facilities","Leisure DSO - Leisure Centre","Equipment - Purchase",16/06/2011 00:00:00,"6451500",2887.02,"AF WILTSHIRE"
"Bracknell Forest Council","http://opendatacommunities.org/id/unitary-authority/bracknell-forest","Bracknell Forest Council","00MA","Learning Disability (under 65)","Residential Care Home Placements","Residential Placements-Lrng Disab","Contracted Services",07/06/2011 00:00:00,"30175157",4760,"AFFINITY TRUST"
"Bracknell Forest Council","http://opendatacommunities.org/id/unitary-authority/bracknell-forest","Bracknell Forest Council","00MA","Older People (Aged 65 or Over)","Other Services To Older People","Other Care & Support - CR & R","Contracted Services",06/06/2011 00:00:00,"6452010",5250,"AGE CONCERN BERKSHIRE"
"Bracknell Forest Council","http://opendatacommunities.org/id/unitary-authority/bracknell-forest","Bracknell Forest Council","00MA","Older People (Aged 65 or Over)","Other Services To Older People","Other Care & Support - CR & R","Contracted Services",06/06/2011 00:00:00,"6452011",5250,"AGE CONCERN BERKSHIRE"
"Bracknell Forest Council","http://opendatacommunities.org/id/unitary-authority/bracknell-forest","Bracknell Forest Council","00MA","Recreation, Sports and Leisure","Indoor Sports & Recreation Facilities","Leisure DSO - Leisure Centre Maintenance","Swimming Pool Chemicals",30/05/2011 00:00:00,"6451869",2100.21,"AIR PRODUCTS PLC"
"Bracknell Forest Council","http://opendatacommunities.org/id/unitary-authority/bracknell-forest","Bracknell Forest Council","00MA","Learning Disability (under 65)","Residential Care Home Placements","Residential Placements-Lrng Disab","Contracted Services",07/06/2011 00:00:00,"30175157",8380,"AITCH CARE HOMES (LONDON) LTD"
"Bracknell Forest Council","http://opendatacommunities.org/id/unitary-authority/bracknell-forest","Bracknell Forest Council","00MA","Mental Health Needs (Under 65)","Residential Care Home Placements","Residential Placements-Mental Illness","Contracted Services",07/06/2011 00:00:00,"30175157",1253.56,"ALDWICK RESIDENTIAL CARE HOME"
"Bracknell Forest Council","http://opendatacommunities.org/id/unitary-authority/bracknell-forest","Bracknell Forest Council","00MA","Physical Disability/Sensory Impairment","Direct Payments","Direct Payments - PD","Direct Payments to Clients",21/06/2011 00:00:00,"30175678",144,"REDACTED PERSONAL DATA"
"Bracknell Forest Council","http://opendatacommunities.org/id/unitary-authority/bracknell-forest","Bracknell Forest Council","00MA","Education Management & Support Service","Performance & Resources","Children's Workforce Strategy","Other Fees for Bought-in Services",28/04/2011 00:00:00,"6451452",842.6,"ALL ABOUT THE PEOPLE LTD"
"Bracknell Forest Council","http://opendatacommunities.org/id/unitary-authority/bracknell-forest","Bracknell Forest Council","00MA","Education Management & Support Service","Performance & Resources","Children's Workforce Strategy","Other Fees for Bought-in Services",31/03/2011 00:00:00,"6451453",2822,"ALL ABOUT THE PEOPLE LTD"
"Bracknell Forest Council","http://opendatacommunities.org/id/unitary-authority/bracknell-forest","Bracknell Forest Council","00MA","Recreation, Sports and Leisure","Retail Services, Catering & Licenced","Easthampstead Park Conference Centre","Cleaning materials",19/05/2011 00:00:00,"6449677",1359.57,"ALLIANCE DISPOSABLES LTD"
"Bracknell Forest Council","http://opendatacommunities.org/id/unitary-authority/bracknell-forest","Bracknell Forest Council","00MA","Recreation, Sports and Leisure","Retail Services, Catering & Licenced","Easthampstead Park Conference Centre","Cleaning materials",08/06/2011 00:00:00,"6451684",644.42,"ALLIANCE DISPOSABLES LTD"
"Bracknell Forest Council","http://opendatacommunities.org/id/unitary-authority/bracknell-forest","Bracknell Forest Council","00MA","Physical Disability/Sensory Impairment","Assessment & Care Management","Older People & Long Term Conditions Team","Agency",01/06/2011 00:00:00,"6449870",1600.08,"ALLIED GLOBAL LTD"
"Bracknell Forest Council","http://opendatacommunities.org/id/unitary-authority/bracknell-forest","Bracknell Forest Council","00MA","Childrens services-Commissioning & SW","Commissioning & Social Work","Children Aged Under 11","Agency",26/04/2011 00:00:00,"6451174",1190,"ALLIED HEALTH PROFESSIONALS"
"Bracknell Forest Council","http://opendatacommunities.org/id/unitary-authority/bracknell-forest","Bracknell Forest Council","00MA","Childrens services-Commissioning & SW","Commissioning & Social Work","Children Aged Under 11","Agency",07/06/2011 00:00:00,"6451243",884,"ALLIED HEALTH PROFESSIONALS"
"Bracknell Forest Council","http://opendatacommunities.org/id/unitary-authority/bracknell-forest","Bracknell Forest Council","00MA","Childrens services-Commissioning & SW","Commissioning & Social Work","Children Aged Under 11","Agency",07/06/2011 00:00:00,"6451244",1258,"ALLIED HEALTH PROFESSIONALS"
"Bracknell Forest Council","http://opendatacommunities.org/id/unitary-authority/bracknell-forest","Bracknell Forest Council","00MA","Older People (Aged 65 or Over)","Home Care","LD Live-In Carers","Contracted Services",14/06/2011 00:00:00,"30175408",3120.11,"ALLIED HEALTHCARE GROUP LTD"
"Bracknell Forest Council","http://opendatacommunities.org/id/unitary-authority/bracknell-forest","Bracknell Forest Council","00MA","Older People (Aged 65 or Over)","Home Care","LD Live-In Carers","Contracted Services",14/06/2011 00:00:00,"30175408",3558.27,"ALLIED HEALTHCARE GROUP LTD"
"Bracknell Forest Council","http://opendatacommunities.org/id/unitary-authority/bracknell-forest","Bracknell Forest Council","00MA","Asylum Seekers","Unaccompanied Children","Asylum Seekers (UASC)","Contracted Services",05/05/2011 00:00:00,"6449630",1260,"ALMA SUPPORTED LODGINGS"
"Bracknell Forest Council","http://opendatacommunities.org/id/unitary-authority/bracknell-forest","Bracknell Forest Council","00MA","Asylum Seekers","Unaccompanied Children","Asylum Seekers (UASC)","Contracted Services",05/05/2011 00:00:00,"6449785",1260,"ALMA SUPPORTED LODGINGS"
"Bracknell Forest Council","http://opendatacommunities.org/id/unitary-authority/bracknell-forest","Bracknell Forest Council","00MA","Asylum Seekers","Unaccompanied Children","Asylum Seekers (UASC)","Contracted Services",03/06/2011 00:00:00,"6450743",1302,"ALMA SUPPORTED LODGINGS"
"Bracknell Forest Council","http://opendatacommunities.org/id/unitary-authority/bracknell-forest","Bracknell Forest Council","00MA","Asylum Seekers","Unaccompanied Children","Asylum Seekers (UASC)","Contracted Services",03/06/2011 00:00:00,"6450744",1302,"ALMA SUPPORTED LODGINGS"
"Bracknell Forest Council","http://opendatacommunities.org/id/unitary-authority/bracknell-forest","Bracknell Forest Council","00MA","Vehicles &  Plant","Vehicles and Plant Summary Account","Vehicles and Plant","Operating Lease Charge",01/06/2011 00:00:00,"6452189",534.99,"ALPHABET (GB) LTD"
"Bracknell Forest Council","http://opendatacommunities.org/id/unitary-authority/bracknell-forest","Bracknell Forest Council","00MA","Education Management & Support Service","Standards Fund","1.6a Extended Schools Activity Bursaries","Other Fees for Bought-in Services",18/05/2011 00:00:00,"6449224",5090,"ALTITUDE"
"Bracknell Forest Council","http://opendatacommunities.org/id/unitary-authority/bracknell-forest","Bracknell Forest Council","00MA","Older People (Aged 65 or Over)","Nursing Home Placements","Nursing Home Placements-Elderly","Contracted Services",07/06/2011 00:00:00,"30175157",2358.48,"AMBERBROOK MANAGEMENT LTD"
"Bracknell Forest Council","http://opendatacommunities.org/id/unitary-authority/bracknell-forest","Bracknell Forest Council","00MA","Older People (Aged 65 or Over)","Nursing Home Placements","Nursing Home Placements-Elderly","Contracted Services",07/06/2011 00:00:00,"30175157",2358.48,"AMBERBROOK MANAGEMENT LTD"
"Bracknell Forest Council","http://opendatacommunities.org/id/unitary-authority/bracknell-forest","Bracknell Forest Council","00MA","Older People (Aged 65 or Over)","Nursing Home Placements","Nursing Home Placements-Elderly","Contracted Services",07/06/2011 00:00:00,"30175157",5277.36,"AMBERBROOK MANAGEMENT LTD"
"Bracknell Forest Council","http://opendatacommunities.org/id/unitary-authority/bracknell-forest","Bracknell Forest Council","00MA","Older People (Aged 65 or Over)","Nursing Home Placements","Nursing Home Placements-Elderly","Contracted Services",07/06/2011 00:00:00,"30175157",2402.32,"AMBERBROOK MANAGEMENT LTD"
"Bracknell Forest Council","http://opendatacommunities.org/id/unitary-authority/bracknell-forest","Bracknell Forest Council","00MA","Older People (Aged 65 or Over)","Nursing Home Placements","Nursing Home Placements-Elderly","Contracted Services",07/06/2011 00:00:00,"30175157",2564.8,"AMBERBROOK MANAGEMENT LTD"
"Bracknell Forest Council","http://opendatacommunities.org/id/unitary-authority/bracknell-forest","Bracknell Forest Council","00MA","Older People (Aged 65 or Over)","Nursing Home Placements","Nursing Home Placements-Elderly","Contracted Services",07/06/2011 00:00:00,"30175157",2638.68,"AMBERBROOK MANAGEMENT LTD"
"Bracknell Forest Council","http://opendatacommunities.org/id/unitary-authority/bracknell-forest","Bracknell Forest Council","00MA","Older People (Aged 65 or Over)","Nursing Home Placements","Nursing Home Placements-Elderly","Contracted Services",07/06/2011 00:00:00,"30175157",-10896.74,"AMBERBROOK MANAGEMENT LTD"
"Bracknell Forest Council","http://opendatacommunities.org/id/unitary-authority/bracknell-forest","Bracknell Forest Council","00MA","Older People (Aged 65 or Over)","Nursing Home Placements","Nursing Home Placements-Elderly","Contracted Services",07/06/2011 00:00:00,"30175157",2295.88,"MOORLANDS NURSING HOME"
"Bracknell Forest Council","http://opendatacommunities.org/id/unitary-authority/bracknell-forest","Bracknell Forest Council","00MA","Open Spaces","Community Parks & Open Spaces","Play Areas","R&M - Planned",06/06/2011 00:00:00,"6452099",1124.5,"MORRAL PLAY SOLUTIONS"
"Bracknell Forest Council","http://opendatacommunities.org/id/unitary-authority/bracknell-forest","Bracknell Forest Council","00MA","Economic Development","Premises Development","Longshot Lane  - Service Charges","R&M - Reactive",19/04/2011 00:00:00,"6449579",2752,"MORRIS & BLUNT LTD"
"Bracknell Forest Council","http://opendatacommunities.org/id/unitary-authority/bracknell-forest","Bracknell Forest Council","00MA","","","College Hall Security","Construction - Contract Payments",08/06/2011 00:00:00,"6451604",5022.52,"MORRIS & BLUNT LTD"
"Bracknell Forest Council","http://opendatacommunities.org/id/unitary-authority/bracknell-forest","Bracknell Forest Council","00MA","Holding Accounts","Landscape Services","Landscape Services Operational","Cost of Goods Sold",10/06/2011 00:00:00,"6450440",599,"MOSS END GARDEN CENTRE"
"Bracknell Forest Council","http://opendatacommunities.org/id/unitary-authority/bracknell-forest","Bracknell Forest Council","00MA","Other Children's & Family Services","Leaving Care Services","QP - Care Leavers","Other Support to Clients",13/05/2011 00:00:00,"6449656",549.51,"MOVING ON CARE MANAGEMENT LTD"
"Bracknell Forest Council","http://opendatacommunities.org/id/unitary-authority/bracknell-forest","Bracknell Forest Council","00MA","Other Children's & Family Services","Leaving Care Services","QP - Care Leavers","Other Support to Clients",12/05/2011 00:00:00,"6449657",816.25,"MOVING ON CARE MANAGEMENT LTD"
"Bracknell Forest Council","http://opendatacommunities.org/id/unitary-authority/bracknell-forest","Bracknell Forest Council","00MA","Other Children's & Family Services","Leaving Care Services","QP - Care Leavers","Other Support to Clients",01/06/2011 00:00:00,"6450593",2105.1,"MOVING ON CARE MANAGEMENT LTD"
"Bracknell Forest Council","http://opendatacommunities.org/id/unitary-authority/bracknell-forest","Bracknell Forest Council","00MA","Other Children's & Family Services","Leaving Care Services","QP - Care Leavers","Contracted Services",17/06/2011 00:00:00,"6452003",638.2,"MOVING ON CARE MANAGEMENT LTD"
"Bracknell Forest Council","http://opendatacommunities.org/id/unitary-authority/bracknell-forest","Bracknell Forest Council","00MA","","","Housing Rent Deposits","Deposits to Homeless for Rent",02/06/2011 00:00:00,"6449964",750,"MR & MRS H JONES"
"Bracknell Forest Council","http://opendatacommunities.org/id/unitary-authority/bracknell-forest","Bracknell Forest Council","00MA","Older People (Aged 65 or Over)","Direct Payments","Direct Payments - OP","Client Contributions Other",21/06/2011 00:00:00,"30175678",192.86,"REDACTED PERSONAL DATA"
"Bracknell Forest Council","http://opendatacommunities.org/id/unitary-authority/bracknell-forest","Bracknell Forest Council","00MA","Older People (Aged 65 or Over)","Direct Payments","Direct Payments - OP","Direct Payments to Clients",21/06/2011 00:00:00,"30175678",-192.86,"REDACTED PERSONAL DATA"
"Bracknell Forest Council","http://opendatacommunities.org/id/unitary-authority/bracknell-forest","Bracknell Forest Council","00MA","Physical Disability/Sensory Impairment","Direct Payments","Direct Payments - PD","Direct Payments to Clients",21/06/2011 00:00:00,"30175678",244.8,"REDACTED PERSONAL DATA"
"Bracknell Forest Council","http://opendatacommunities.org/id/unitary-authority/bracknell-forest","Bracknell Forest Council","00MA","Physical Disability/Sensory Impairment","Direct Payments","Direct Payments - PD","Client Contributions Other",21/06/2011 00:00:00,"30175678",-244.8,"REDACTED PERSONAL DATA"
"Bracknell Forest Council","http://opendatacommunities.org/id/unitary-authority/bracknell-forest","Bracknell Forest Council","00MA","Older People (Aged 65 or Over)","Nursing Home Placements","Nursing Home Placements-Elderly","Contracted Services",07/06/2011 00:00:00,"30175157",2358.48,"AMBERBROOK MANAGEMENT LTD"
"Bracknell Forest Council","http://opendatacommunities.org/id/unitary-authority/bracknell-forest","Bracknell Forest Council","00MA","Older People (Aged 65 or Over)","Residential Care Home Placements","Residential Placements-Elderly","Contracted Services",07/06/2011 00:00:00,"30175157",1923.68,"AMBERBROOK MANAGEMENT LTD"
"Bracknell Forest Council","http://opendatacommunities.org/id/unitary-authority/bracknell-forest","Bracknell Forest Council","00MA","Older People (Aged 65 or Over)","Residential Care Home Placements","Residential Placements-Elderly","Contracted Services",07/06/2011 00:00:00,"30175157",1923.68,"AMBERBROOK MANAGEMENT LTD"
"Bracknell Forest Council","http://opendatacommunities.org/id/unitary-authority/bracknell-forest","Bracknell Forest Council","00MA","Older People (Aged 65 or Over)","Residential Care Home Placements","Residential Placements-Elderly","Contracted Services",07/06/2011 00:00:00,"30175157",1699.12,"AMBERBROOK MANAGEMENT LTD"
"Bracknell Forest Council","http://opendatacommunities.org/id/unitary-authority/bracknell-forest","Bracknell Forest Council","00MA","Older People (Aged 65 or Over)","Residential Care Home Placements","Residential Placements-Elderly","Contracted Services",07/06/2011 00:00:00,"30175157",-755.73,"AMBERBROOK MANAGEMENT LTD"
"Bracknell Forest Council","http://opendatacommunities.org/id/unitary-authority/bracknell-forest","Bracknell Forest Council","00MA","Older People (Aged 65 or Over)","Residential Care Home Placements","Residential Placements-Elderly","Contracted Services",07/06/2011 00:00:00,"30175157",1923.68,"AMBERBROOK MANAGEMENT LTD"
"Bracknell Forest Council","http://opendatacommunities.org/id/unitary-authority/bracknell-forest","Bracknell Forest Council","00MA","Older People (Aged 65 or Over)","Residential Care Home Placements","Residential Placements-Elderly","Contracted Services",07/06/2011 00:00:00,"30175157",1923.68,"AMBERBROOK MANAGEMENT LTD"
"Bracknell Forest Council","http://opendatacommunities.org/id/unitary-authority/bracknell-forest","Bracknell Forest Council","00MA","Older People (Aged 65 or Over)","Residential Care Home Placements","Residential Placements-Elderly","Contracted Services",07/06/2011 00:00:00,"30175157",1923.68,"AMBERBROOK MANAGEMENT LTD"
"Bracknell Forest Council","http://opendatacommunities.org/id/unitary-authority/bracknell-forest","Bracknell Forest Council","00MA","Older People (Aged 65 or Over)","Residential Care Home Placements","Residential Placements-Elderly","Contracted Services",07/06/2011 00:00:00,"30175157",1819.12,"AMBERBROOK MANAGEMENT LTD"
"Bracknell Forest Council","http://opendatacommunities.org/id/unitary-authority/bracknell-forest","Bracknell Forest Council","00MA","Older People (Aged 65 or Over)","Residential Care Home Placements","Residential Placements-Elderly","Contracted Services",07/06/2011 00:00:00,"30175157",1923.68,"AMBERBROOK MANAGEMENT LTD"
"Bracknell Forest Council","http://opendatacommunities.org/id/unitary-authority/bracknell-forest","Bracknell Forest Council","00MA","Older People (Aged 65 or Over)","Residential Care Home Placements","Residential EMI Placements - Elderly","Contracted Services",07/06/2011 00:00:00,"30175157",2679.41,"AMBERBROOK MANAGEMENT LTD"
"Bracknell Forest Council","http://opendatacommunities.org/id/unitary-authority/bracknell-forest","Bracknell Forest Council","00MA","Older People (Aged 65 or Over)","Nursing Home Placements","Nursing EMI Placements - Elderly","Contracted Services",07/06/2011 00:00:00,"30175157",13982.42,"AMBERBROOK MANAGEMENT LTD"
"Bracknell Forest Council","http://opendatacommunities.org/id/unitary-authority/bracknell-forest","Bracknell Forest Council","00MA","Older People (Aged 65 or Over)","Nursing Home Placements","Nursing EMI Placements - Elderly","Contracted Services",07/06/2011 00:00:00,"30175157",5138.12,"AMBERBROOK MANAGEMENT LTD"
"Bracknell Forest Council","http://opendatacommunities.org/id/unitary-authority/bracknell-forest","Bracknell Forest Council","00MA","Older People (Aged 65 or Over)","Nursing Home Placements","Nursing Home Placements-Elderly","Contracted Services",07/06/2011 00:00:00,"30175157",2358.48,"AMBERBROOK MANAGEMENT LTD"
"Bracknell Forest Council","http://opendatacommunities.org/id/unitary-authority/bracknell-forest","Bracknell Forest Council","00MA","Older People (Aged 65 or Over)","Nursing Home Placements","Nursing Home Placements-Elderly","Contracted Services",07/06/2011 00:00:00,"30175157",2358.48,"AMBERBROOK MANAGEMENT LTD"
"Bracknell Forest Council","http://opendatacommunities.org/id/unitary-authority/bracknell-forest","Bracknell Forest Council","00MA","Recreation, Sports and Leisure","Retail Services, Catering & Licenced","Easthampstead Park Conference Centre","Minor Improvement Schemes",13/05/2011 00:00:00,"6449662",1525.25,"AMBIUS"
"Bracknell Forest Council","http://opendatacommunities.org/id/unitary-authority/bracknell-forest","Bracknell Forest Council","00MA","Recreation, Sports and Leisure","Retail Services, Catering & Licenced","Easthampstead Park Conference Centre","Minor Improvement Schemes",13/05/2011 00:00:00,"6450852",-1525.25,"AMBIUS"
"Bracknell Forest Council","http://opendatacommunities.org/id/unitary-authority/bracknell-forest","Bracknell Forest Council","00MA","Recreation, Sports and Leisure","Retail Services, Catering & Licenced","Easthampstead Park Conference Centre","Minor Improvement Schemes",27/05/2011 00:00:00,"6451552",1800,"AMBIUS"
"Bracknell Forest Council","http://opendatacommunities.org/id/unitary-authority/bracknell-forest","Bracknell Forest Council","00MA","Recreation, Sports and Leisure","Retail Services, Catering & Licenced","Easthampstead Park Conference Centre","R&M - Service Contracts",27/05/2011 00:00:00,"6451553",730.08,"AMBIUS"
"Bracknell Forest Council","http://opendatacommunities.org/id/unitary-authority/bracknell-forest","Bracknell Forest Council","00MA","Children Looked After (CLA)","Children's Homes","Children's Home Placements","Contracted Services",21/05/2011 00:00:00,"6449632",10400,"AMEGREEN CHILDRENS SERVICES"
"Bracknell Forest Council","http://opendatacommunities.org/id/unitary-authority/bracknell-forest","Bracknell Forest Council","00MA","Education Management & Support Service","School Related Expenditure","HTS Interim","Taxi Fares - Home/School Transport",31/05/2011 00:00:00,"6451106",1930.4,"AMK CHAUFFEUR DRIVE LIMITED"
"Bracknell Forest Council","http://opendatacommunities.org/id/unitary-authority/bracknell-forest","Bracknell Forest Council","00MA","Education Management & Support Service","School Related Expenditure","HTS Interim","Taxi Fares - Home/School Transport",30/04/2011 00:00:00,"6451107",711.2,"AMK CHAUFFEUR DRIVE LIMITED"
"Bracknell Forest Council","http://opendatacommunities.org/id/unitary-authority/bracknell-forest","Bracknell Forest Council","00MA","Education Management & Support Service","School Related Expenditure","HTS Interim","Taxi Fares - Home/School Transport",31/05/2011 00:00:00,"6451108",1930.4,"AMK CHAUFFEUR DRIVE LIMITED"
"Bracknell Forest Council","http://opendatacommunities.org/id/unitary-authority/bracknell-forest","Bracknell Forest Council","00MA","Education Management & Support Service","School Related Expenditure","HTS Interim","Taxi Fares - Home/School Transport",30/04/2011 00:00:00,"6451109",711.2,"AMK CHAUFFEUR DRIVE LIMITED"
"Bracknell Forest Council","http://opendatacommunities.org/id/unitary-authority/bracknell-forest","Bracknell Forest Council","00MA","Education Management & Support Service","School Related Expenditure","HTS Interim","Taxi Fares - Home/School Transport",31/05/2011 00:00:00,"6451110",1930.4,"AMK CHAUFFEUR DRIVE LIMITED"
"Bracknell Forest Council","http://opendatacommunities.org/id/unitary-authority/bracknell-forest","Bracknell Forest Council","00MA","Education Management & Support Service","School Related Expenditure","HTS Interim","Taxi Fares - Home/School Transport",30/04/2011 00:00:00,"6451111",711.2,"AMK CHAUFFEUR DRIVE LIMITED"
"Bracknell Forest Council","http://opendatacommunities.org/id/unitary-authority/bracknell-forest","Bracknell Forest Council","00MA","Education Management & Support Service","School Related Expenditure","HTS Interim","Taxi Fares - Home/School Transport",31/05/2011 00:00:00,"6451112",2935.88,"AMK CHAUFFEUR DRIVE LIMITED"
"Bracknell Forest Council","http://opendatacommunities.org/id/unitary-authority/bracknell-forest","Bracknell Forest Council","00MA","Education Management & Support Service","School Related Expenditure","HTS Interim","Taxi Fares - Home/School Transport",30/04/2011 00:00:00,"6451113",1081.64,"AMK CHAUFFEUR DRIVE LIMITED"
"Bracknell Forest Council","http://opendatacommunities.org/id/unitary-authority/bracknell-forest","Bracknell Forest Council","00MA","Education Management & Support Service","School Related Expenditure","HTS Interim","Taxi Fares - Home/School Transport",31/05/2011 00:00:00,"6451114",2935.88,"AMK CHAUFFEUR DRIVE LIMITED"
"Bracknell Forest Council","http://opendatacommunities.org/id/unitary-authority/bracknell-forest","Bracknell Forest Council","00MA","Education Management & Support Service","School Related Expenditure","HTS Interim","Taxi Fares - Home/School Transport",30/04/2011 00:00:00,"6451115",1081.64,"AMK CHAUFFEUR DRIVE LIMITED"
"Bracknell Forest Council","http://opendatacommunities.org/id/unitary-authority/bracknell-forest","Bracknell Forest Council","00MA","Central Support Services - COF","Information Technology","Technical  Services","Licences",27/05/2011 00:00:00,"6450043",1345,"AMS LTD"
"Bracknell Forest Council","http://opendatacommunities.org/id/unitary-authority/bracknell-forest","Bracknell Forest Council","00MA","","","Disabled Facilities Grant","Grants Paid",09/06/2011 00:00:00,"6450490",4173.6,"ANCHOR TRUST"
"Bracknell Forest Council","http://opendatacommunities.org/id/unitary-authority/bracknell-forest","Bracknell Forest Council","00MA","Older People (Aged 65 or Over)","Residential Care Home Placements","Residential Placements-Elderly","Contracted Services",07/06/2011 00:00:00,"30175157",1587.12,"ANCHOR TRUST"
"Bracknell Forest Council","http://opendatacommunities.org/id/unitary-authority/bracknell-forest","Bracknell Forest Council","00MA","Learning Disability (under 65)","Direct Payments - LD","Direct Payments - LD","Direct Payments to Clients",21/06/2011 00:00:00,"30175678",835.32,"REDACTED PERSONAL DATA"
"Bracknell Forest Council","http://opendatacommunities.org/id/unitary-authority/bracknell-forest","Bracknell Forest Council","00MA","Older People (Aged 65 or Over)","Home Care","Elderly Live-In Carers","Contracted Services",20/06/2011 00:00:00,"30175677",570,"ANGEL AU PAIRS"
"Bracknell Forest Council","http://opendatacommunities.org/id/unitary-authority/bracknell-forest","Bracknell Forest Council","00MA","Older People (Aged 65 or Over)","Home Care","Home Care-Elderly","Contracted Services",28/06/2011 00:00:00,"30175906",2246.4,"ANGELCARE HEALTH"
"Bracknell Forest Council","http://opendatacommunities.org/id/unitary-authority/bracknell-forest","Bracknell Forest Council","00MA","Older People (Aged 65 or Over)","Home Care","Home Care-Elderly","Contracted Services",28/06/2011 00:00:00,"30175906",806.4,"ANGELCARE HEALTH"
"Bracknell Forest Council","http://opendatacommunities.org/id/unitary-authority/bracknell-forest","Bracknell Forest Council","00MA","Older People (Aged 65 or Over)","Home Care","Home Care-Elderly","Contracted Services",28/06/2011 00:00:00,"30175906",907.2,"ANGELCARE HEALTH"
"Bracknell Forest Council","http://opendatacommunities.org/id/unitary-authority/bracknell-forest","Bracknell Forest Council","00MA","Older People (Aged 65 or Over)","Home Care","Home Care-Elderly","Contracted Services",28/06/2011 00:00:00,"30175906",1641.6,"ANGELCARE HEALTH"
"Bracknell Forest Council","http://opendatacommunities.org/id/unitary-authority/bracknell-forest","Bracknell Forest Council","00MA","Older People (Aged 65 or Over)","Home Care","Home Care-Elderly","Contracted Services",28/06/2011 00:00:00,"30175906",1620,"ANGELCARE HEALTH"
"Bracknell Forest Council","http://opendatacommunities.org/id/unitary-authority/bracknell-forest","Bracknell Forest Council","00MA","Older People (Aged 65 or Over)","Home Care","Home Care-Elderly","Contracted Services",28/06/2011 00:00:00,"30175906",190.8,"ANGELCARE HEALTH"
"Bracknell Forest Council","http://opendatacommunities.org/id/unitary-authority/bracknell-forest","Bracknell Forest Council","00MA","Older People (Aged 65 or Over)","Home Care","Home Care-Elderly","Contracted Services",28/06/2011 00:00:00,"30175906",205.2,"ANGELCARE HEALTH"
"Bracknell Forest Council","http://opendatacommunities.org/id/unitary-authority/bracknell-forest","Bracknell Forest Council","00MA","Older People (Aged 65 or Over)","Home Care","Home Care-Elderly","Contracted Services",28/06/2011 00:00:00,"30175906",1231.2,"ANGELCARE HEALTH"
"Bracknell Forest Council","http://opendatacommunities.org/id/unitary-authority/bracknell-forest","Bracknell Forest Council","00MA","Older People (Aged 65 or Over)","Home Care","Home Care-Elderly","Contracted Services",28/06/2011 00:00:00,"30175906",403.2,"ANGELCARE HEALTH"
"Bracknell Forest Council","http://opendatacommunities.org/id/unitary-authority/bracknell-forest","Bracknell Forest Council","00MA","Open Spaces","Community Parks & Open Spaces","South Hill Park Maintenance","Grounds Maintenance Costs",31/05/2011 00:00:00,"6450960",980,"AQUASCIENCE"
"Bracknell Forest Council","http://opendatacommunities.org/id/unitary-authority/bracknell-forest","Bracknell Forest Council","00MA","Holding Accounts","Landscape Services","Landscape Services Operational","Clothing & Uniform - Staff",10/06/2011 00:00:00,"6451904",825,"ARCO  LIMITED"
"Bracknell Forest Council","http://opendatacommunities.org/id/unitary-authority/bracknell-forest","Bracknell Forest Council","00MA","Central Support Services - COF","Policy Unit","Communications Admin","Equipment - Purchase",29/05/2011 00:00:00,"6451050",505.27,"ARGOS BUSINESS SOLUTIONS"
"Bracknell Forest Council","http://opendatacommunities.org/id/unitary-authority/bracknell-forest","Bracknell Forest Council","00MA","Vehicles &  Plant","Vehicles and Plant Summary Account","Fuel Card Holding Account","Petrol",07/06/2011 00:00:00,"6450330",7257.72,"ARVAL UK LTD"
"Bracknell Forest Council","http://opendatacommunities.org/id/unitary-authority/bracknell-forest","Bracknell Forest Council","00MA","Older People (Aged 65 or Over)","Nursing Home Placements","Nursing Home Placements MH 65 and Over","Contracted Services",07/06/2011 00:00:00,"30175157",4067.68,"ASCOT NURSING HOME LTD"
"Bracknell Forest Council","http://opendatacommunities.org/id/unitary-authority/bracknell-forest","Bracknell Forest Council","00MA","Mental Health Needs (Under 65)","Nursing Home Placements","Nursing Home Placements-Mental Illness","Contracted Services",07/06/2011 00:00:00,"30175157",2500,"ASCOT NURSING HOME LTD"
"Bracknell Forest Council","http://opendatacommunities.org/id/unitary-authority/bracknell-forest","Bracknell Forest Council","00MA","Physical Disability/Sensory Impairment","Nursing Home Placements","Nursing Home Placements-Physical Disabty","Contracted Services",07/06/2011 00:00:00,"30175157",4246.48,"ASCOT NURSING HOME LTD"
"Bracknell Forest Council","http://opendatacommunities.org/id/unitary-authority/bracknell-forest","Bracknell Forest Council","00MA","Older People (Aged 65 or Over)","Nursing Home Placements","Nursing Home Placements-Elderly","Contracted Services",07/06/2011 00:00:00,"30175157",4926.08,"ASCOT RESIDENTIAL HOMES LTD"
"Bracknell Forest Council","http://opendatacommunities.org/id/unitary-authority/bracknell-forest","Bracknell Forest Council","00MA","Older People (Aged 65 or Over)","Residential Care Home Placements","Residential Placements-Elderly","Contracted Services",07/06/2011 00:00:00,"30175157",1923.68,"ASCOT RESIDENTIAL HOMES LTD"
"Bracknell Forest Council","http://opendatacommunities.org/id/unitary-authority/bracknell-forest","Bracknell Forest Council","00MA","Older People (Aged 65 or Over)","Nursing Home Placements","Nursing Home Placements-Elderly","Contracted Services",07/06/2011 00:00:00,"30175157",2567.6,"ASCOT RESIDENTIAL HOMES LTD"
"Bracknell Forest Council","http://opendatacommunities.org/id/unitary-authority/bracknell-forest","Bracknell Forest Council","00MA","Older People (Aged 65 or Over)","Nursing Home Placements","Nursing Home Placements-Elderly","Contracted Services",07/06/2011 00:00:00,"30175157",2358.48,"ASCOT RESIDENTIAL HOMES LTD"
"Bracknell Forest Council","http://opendatacommunities.org/id/unitary-authority/bracknell-forest","Bracknell Forest Council","00MA","Older People (Aged 65 or Over)","Nursing Home Placements","Nursing Home Placements-Elderly","Contracted Services",07/06/2011 00:00:00,"30175157",2358.48,"ASCOT RESIDENTIAL HOMES LTD"
"Bracknell Forest Council","http://opendatacommunities.org/id/unitary-authority/bracknell-forest","Bracknell Forest Council","00MA","Older People (Aged 65 or Over)","Nursing Home Placements","Nursing EMI Placements - Elderly","Contracted Services",07/06/2011 00:00:00,"30175157",2358.48,"ASCOT RESIDENTIAL HOMES LTD"
"Bracknell Forest Council","http://opendatacommunities.org/id/unitary-authority/bracknell-forest","Bracknell Forest Council","00MA","Older People (Aged 65 or Over)","Nursing Home Placements","Nursing Home Placements-Elderly","Contracted Services",07/06/2011 00:00:00,"30175157",2358.48,"ASCOT RESIDENTIAL HOMES LTD"
"Bracknell Forest Council","http://opendatacommunities.org/id/unitary-authority/bracknell-forest","Bracknell Forest Council","00MA","Older People (Aged 65 or Over)","Nursing Home Placements","Nursing Home Placements-Elderly","Contracted Services",07/06/2011 00:00:00,"30175157",2358.48,"ASCOT RESIDENTIAL HOMES LTD"
"Bracknell Forest Council","http://opendatacommunities.org/id/unitary-authority/bracknell-forest","Bracknell Forest Council","00MA","Older People (Aged 65 or Over)","Nursing Home Placements","Nursing Home Placements-Elderly","Contracted Services",07/06/2011 00:00:00,"30175157",2358.48,"ASHBOURNE HOMES"
"Bracknell Forest Council","http://opendatacommunities.org/id/unitary-authority/bracknell-forest","Bracknell Forest Council","00MA","Older People (Aged 65 or Over)","Nursing Home Placements","Nursing Home Placements-Elderly","Contracted Services",07/06/2011 00:00:00,"30175157",2358.48,"ASHBOURNE HOMES"
"Bracknell Forest Council","http://opendatacommunities.org/id/unitary-authority/bracknell-forest","Bracknell Forest Council","00MA","Older People (Aged 65 or Over)","Residential Care Home Placements","Residential Placements-Elderly","Contracted Services",07/06/2011 00:00:00,"30175157",-168.46,"ASHBOURNE HOMES"
"Bracknell Forest Council","http://opendatacommunities.org/id/unitary-authority/bracknell-forest","Bracknell Forest Council","00MA","Older People (Aged 65 or Over)","Nursing Home Placements","Nursing Home Placements-Elderly","Contracted Services",07/06/2011 00:00:00,"30175157",2360.04,"ASHBOURNE HOMES"
"Bracknell Forest Council","http://opendatacommunities.org/id/unitary-authority/bracknell-forest","Bracknell Forest Council","00MA","Older People (Aged 65 or Over)","Nursing Home Placements","Nursing Home Placements-Elderly","Contracted Services",07/06/2011 00:00:00,"30175157",2336.84,"ASHBOURNE HOMES"
"Bracknell Forest Council","http://opendatacommunities.org/id/unitary-authority/bracknell-forest","Bracknell Forest Council","00MA","Economic Development","Premises Development","Longshot Lane Industrial Estate","Rent of Property",08/06/2011 00:00:00,"6450827",122125,"ASHLEY KING LTD"
"Bracknell Forest Council","http://opendatacommunities.org/id/unitary-authority/bracknell-forest","Bracknell Forest Council","00MA","Libraries","Stock Ordering, Cataloguing & Distribution","Library Book Fund","Audio/Visual materials",23/05/2011 00:00:00,"6449534",1226.01,"ASKEWS & HOLTS LIBRARY SERVICE"
"Bracknell Forest Council","http://opendatacommunities.org/id/unitary-authority/bracknell-forest","Bracknell Forest Council","00MA","Libraries","Stock Ordering, Cataloguing & Distribution","Library Book Fund","Audio/Visual materials",23/05/2011 00:00:00,"6449535",690.63,"ASKEWS & HOLTS LIBRARY SERVICE"
"Bracknell Forest Council","http://opendatacommunities.org/id/unitary-authority/bracknell-forest","Bracknell Forest Council","00MA","Libraries","Stock Ordering, Cataloguing & Distribution","Library Book Fund","Audio/Visual materials",06/06/2011 00:00:00,"6450817",881.62,"ASKEWS & HOLTS LIBRARY SERVICE"
"Bracknell Forest Council","http://opendatacommunities.org/id/unitary-authority/bracknell-forest","Bracknell Forest Council","00MA","Libraries","Stock Ordering, Cataloguing & Distribution","Library Book Fund","Audio/Visual materials",06/06/2011 00:00:00,"6450817",586.44,"ASKEWS & HOLTS LIBRARY SERVICE"
"Bracknell Forest Council","http://opendatacommunities.org/id/unitary-authority/bracknell-forest","Bracknell Forest Council","00MA","Libraries","Stock Ordering, Cataloguing & Distribution","Library Book Fund","Audio/Visual materials",13/06/2011 00:00:00,"6451481",519.79,"ASKEWS & HOLTS LIBRARY SERVICE"
"Bracknell Forest Council","http://opendatacommunities.org/id/unitary-authority/bracknell-forest","Bracknell Forest Council","00MA","Libraries","Stock Ordering, Cataloguing & Distribution","Library Book Fund","Audio/Visual materials",30/05/2011 00:00:00,"6451482",568.03,"ASKEWS & HOLTS LIBRARY SERVICE"
"Bracknell Forest Council","http://opendatacommunities.org/id/unitary-authority/bracknell-forest","Bracknell Forest Council","00MA","Older People (Aged 65 or Over)","Nursing Home Placements","Nursing Home Placements-Elderly","Contracted Services",07/06/2011 00:00:00,"30175157",2638.68,"ATKINSONS PRIVATE HOMES"
"Bracknell Forest Council","http://opendatacommunities.org/id/unitary-authority/bracknell-forest","Bracknell Forest Council","00MA","Older People (Aged 65 or Over)","Nursing Home Placements","Nursing Home Placements-Elderly","Contracted Services",07/06/2011 00:00:00,"30175157",2638.68,"ATKINSONS PRIVATE HOMES"
"Bracknell Forest Council","http://opendatacommunities.org/id/unitary-authority/bracknell-forest","Bracknell Forest Council","00MA","Older People (Aged 65 or Over)","Nursing Home Placements","Nursing Home Placements-Elderly","Contracted Services",07/06/2011 00:00:00,"30175157",2638.68,"ATKINSONS PRIVATE HOMES"
"Bracknell Forest Council","http://opendatacommunities.org/id/unitary-authority/bracknell-forest","Bracknell Forest Council","00MA","Older People (Aged 65 or Over)","Nursing Home Placements","Nursing Home Placements-Elderly","Contracted Services",07/06/2011 00:00:00,"30175157",3019.84,"ATKINSONS PRIVATE HOMES"
"Bracknell Forest Council","http://opendatacommunities.org/id/unitary-authority/bracknell-forest","Bracknell Forest Council","00MA","Older People (Aged 65 or Over)","Nursing Home Placements","Nursing EMI Placements - Elderly","Contracted Services",07/06/2011 00:00:00,"30175157",4617.69,"ATKINSONS PRIVATE HOMES"
"Bracknell Forest Council","http://opendatacommunities.org/id/unitary-authority/bracknell-forest","Bracknell Forest Council","00MA","Learning Disability (under 65)","Residential Care Home Placements","Residential Placements-Lrng Disab","Contracted Services",07/06/2011 00:00:00,"30175157",8326.84,"ATLAS PROJECT TEAM LTD"
"Bracknell Forest Council","http://opendatacommunities.org/id/unitary-authority/bracknell-forest","Bracknell Forest Council","00MA","Learning Disability (under 65)","Residential Care Home Placements","Residential Placements-Lrng Disab","Contracted Services",07/06/2011 00:00:00,"30175157",7825.72,"ATLAS PROJECT TEAM LTD"
"Bracknell Forest Council","http://opendatacommunities.org/id/unitary-authority/bracknell-forest","Bracknell Forest Council","00MA","Corporate Management COF","Corporate Management COF","Cserv. - Tax Making & Statutory Account","Statutory Auditors Fees",10/06/2011 00:00:00,"6451194",26146.7,"AUDIT COMMISSION"
"Bracknell Forest Council","http://opendatacommunities.org/id/unitary-authority/bracknell-forest","Bracknell Forest Council","00MA","Learning Disability (under 65)","Residential Care Home Placements","Residential Placements-Lrng Disab","Contracted Services",07/06/2011 00:00:00,"30175157",5260.52,"AUTISM SPECIALISED CARE HOMES LTD"
"Bracknell Forest Council","http://opendatacommunities.org/id/unitary-authority/bracknell-forest","Bracknell Forest Council","00MA","Learning Disability (under 65)","Residential Care Home Placements","Residential Placements-Lrng Disab","Contracted Services",07/06/2011 00:00:00,"30175157",6025.84,"AVON AUTISTIC FOUNDATION"
"Bracknell Forest Council","http://opendatacommunities.org/id/unitary-authority/bracknell-forest","Bracknell Forest Council","00MA","","","IT Developments","IT Consultants",31/05/2011 00:00:00,"6451938",4975,"AVR INTERNATIONAL LIMITED"
"Bracknell Forest Council","http://opendatacommunities.org/id/unitary-authority/bracknell-forest","Bracknell Forest Council","00MA","Cemeteries, Crematoria & Mortuary Services","Cemeteries & Crematorium","Easthampstead Park Cemetery &Crematorium","Contracted Services",20/05/2011 00:00:00,"6449764",900,"BAC CLEANING SERVICES"
"Bracknell Forest Council","http://opendatacommunities.org/id/unitary-authority/bracknell-forest","Bracknell Forest Council","00MA","Cemeteries, Crematoria & Mortuary Services","Cemeteries & Crematorium","Easthampstead Park Cemetery &Crematorium","Contracted Services",24/06/2011 00:00:00,"6452093",900,"BAC CLEANING SERVICES"
"Bracknell Forest Council","http://opendatacommunities.org/id/unitary-authority/bracknell-forest","Bracknell Forest Council","00MA","Recreation, Sports and Leisure","Golf Courses","Leisure DSO - Downshire Golf Course","Minor Improvement Schemes",29/03/2011 00:00:00,"6450930",5267.5,"BADCOCK SERVICES LIMITED"
"Bracknell Forest Council","http://opendatacommunities.org/id/unitary-authority/bracknell-forest","Bracknell Forest Council","00MA","Older People (Aged 65 or Over)","Residential Care Home Placements","Bridgewell Unit","Agency",18/05/2011 00:00:00,"6448993",1295,"BADENOCH & CLARK"
"Bracknell Forest Council","http://opendatacommunities.org/id/unitary-authority/bracknell-forest","Bracknell Forest Council","00MA","Older People (Aged 65 or Over)","Residential Care Home Placements","Bridgewell Unit","Agency",18/05/2011 00:00:00,"6448994",1295,"BADENOCH & CLARK"
"Bracknell Forest Council","http://opendatacommunities.org/id/unitary-authority/bracknell-forest","Bracknell Forest Council","00MA","Older People (Aged 65 or Over)","Residential Care Home Placements","Bridgewell Unit","Agency",25/05/2011 00:00:00,"6449522",1295,"BADENOCH & CLARK"
"Bracknell Forest Council","http://opendatacommunities.org/id/unitary-authority/bracknell-forest","Bracknell Forest Council","00MA","Older People (Aged 65 or Over)","Residential Care Home Placements","Bridgewell Unit","Agency",08/06/2011 00:00:00,"6450761",1260,"BADENOCH & CLARK"
"Bracknell Forest Council","http://opendatacommunities.org/id/unitary-authority/bracknell-forest","Bracknell Forest Council","00MA","Older People (Aged 65 or Over)","Residential Care Home Placements","Bridgewell Unit","Agency",08/06/2011 00:00:00,"6450762",1295,"BADENOCH & CLARK"
"Bracknell Forest Council","http://opendatacommunities.org/id/unitary-authority/bracknell-forest","Bracknell Forest Council","00MA","Street Lighting (including Energy Costs)","Street Lighting","Lighting","Contracted Services",23/06/2011 00:00:00,"6451630",50772.18,"BALFOUR BEATTY INFRASTRUCTURE SERVICES"
"Bracknell Forest Council","http://opendatacommunities.org/id/unitary-authority/bracknell-forest","Bracknell Forest Council","00MA","Vehicles &  Plant","Vehicles and Plant Summary Account","Vehicles and Plant","Operating Lease Charge",26/06/2011 00:00:00,"6450707",2598.15,"BANK OF SCOTLAND ASSET FINANCE"
"Bracknell Forest Council","http://opendatacommunities.org/id/unitary-authority/bracknell-forest","Bracknell Forest Council","00MA","Recreation, Sports and Leisure","Golf Courses","Leisure DSO - Downshire Golf Course","Materials",14/06/2011 00:00:00,"6451926",586.19,"BANKS AMENITY PRODUCTS LTD"
"Bracknell Forest Council","http://opendatacommunities.org/id/unitary-authority/bracknell-forest","Bracknell Forest Council","00MA","Special Schools","Other Special Related Expenditure","Supporting Special Educational Needs","Voluntary Sector Service Providers",01/06/2011 00:00:00,"6452014",13750,"BARNARDO SERVICES LTD"
"Bracknell Forest Council","http://opendatacommunities.org/id/unitary-authority/bracknell-forest","Bracknell Forest Council","00MA","Special Schools","Other Special Related Expenditure","Supporting Special Educational Needs","Voluntary Sector Service Providers",01/06/2011 00:00:00,"6452015",5086.55,"BARNARDO SERVICES LTD"
"Bracknell Forest Council","http://opendatacommunities.org/id/unitary-authority/bracknell-forest","Bracknell Forest Council","00MA","Development Control","Applications - Development Control","Development Control","Compensation Payments",15/06/2011 00:00:00,"6451169",1340,"BEAUMONT FOREST PRODUCTS LTD"
"Bracknell Forest Council","http://opendatacommunities.org/id/unitary-authority/bracknell-forest","Bracknell Forest Council","00MA","Older People (Aged 65 or Over)","Nursing Home Placements","Nursing Home Placements PD 65 & Over","Contracted Services",07/06/2011 00:00:00,"30175157",2362.64,"BEAUMONT LODGE"
"Bracknell Forest Council","http://opendatacommunities.org/id/unitary-authority/bracknell-forest","Bracknell Forest Council","00MA","Older People (Aged 65 or Over)","Nursing Home Placements","Nursing Home Placements-Elderly","Contracted Services",07/06/2011 00:00:00,"30175157",1919.52,"BEAUMONT LODGE"
"Bracknell Forest Council","http://opendatacommunities.org/id/unitary-authority/bracknell-forest","Bracknell Forest Council","00MA","Older People (Aged 65 or Over)","Residential Care Home Placements","Residential Placements-Elderly","Contracted Services",07/06/2011 00:00:00,"30175157",1800,"BEECHVILLE CARE HOME"
"Bracknell Forest Council","http://opendatacommunities.org/id/unitary-authority/bracknell-forest","Bracknell Forest Council","00MA","Recreation, Sports and Leisure","Indoor Sports & Recreation Facilities","Leisure DSO - Coral Reef Maintenance","R&M - Service Contracts",16/06/2011 00:00:00,"6452024",1132.5,"BELLS ENGINEERING PRODUCTS LTD"
"Bracknell Forest Council","http://opendatacommunities.org/id/unitary-authority/bracknell-forest","Bracknell Forest Council","00MA","Learning Disability (under 65)","Direct Payments - LD","Direct Payments - LD","Client Contributions Other",21/06/2011 00:00:00,"30175678",-58.96,"REDACTED PERSONAL DATA"
"Bracknell Forest Council","http://opendatacommunities.org/id/unitary-authority/bracknell-forest","Bracknell Forest Council","00MA","Learning Disability (under 65)","Direct Payments - LD","Direct Payments - LD","Direct Payments to Clients",21/06/2011 00:00:00,"30175678",1785.44,"REDACTED PERSONAL DATA"
"Bracknell Forest Council","http://opendatacommunities.org/id/unitary-authority/bracknell-forest","Bracknell Forest Council","00MA","Older People (Aged 65 or Over)","Nursing Home Placements","Nursing Home Placements-Elderly","Contracted Services",07/06/2011 00:00:00,"30175157",1850.24,"BENEDICT HOUSE NURSING HOME"
"Bracknell Forest Council","http://opendatacommunities.org/id/unitary-authority/bracknell-forest","Bracknell Forest Council","00MA","Children Looked After (CLA)","Children's Homes","Children's Home Placements","Contracted Services",24/05/2011 00:00:00,"6450616",11680,"BENJAMIN UK LTD"
"Bracknell Forest Council","http://opendatacommunities.org/id/unitary-authority/bracknell-forest","Bracknell Forest Council","00MA","Children Looked After (CLA)","Children's Homes","Children's Home Placements","Contracted Services",24/05/2011 00:00:00,"6450617",15090,"BENJAMIN UK LTD"
"Bracknell Forest Council","http://opendatacommunities.org/id/unitary-authority/bracknell-forest","Bracknell Forest Council","00MA","Children Looked After (CLA)","Children's Homes","Children's Home Placements","Contracted Services",24/05/2011 00:00:00,"6451536",14600,"BENJAMIN UK LTD"
"Bracknell Forest Council","http://opendatacommunities.org/id/unitary-authority/bracknell-forest","Bracknell Forest Council","00MA","Recreation, Sports and Leisure","Community Centres","Community Centres Support","R&M - Service Contracts",04/05/2011 00:00:00,"6448635",660,"BENVILLE AND MARSH LTD"
"Bracknell Forest Council","http://opendatacommunities.org/id/unitary-authority/bracknell-forest","Bracknell Forest Council","00MA","Primary Schools","Delegated Primary School Budgets","St Michael's (Easthampstead) - Primary","R&M - Service Contracts",13/04/2011 00:00:00,"6449274",2640,"BENVILLE AND MARSH LTD"
"Bracknell Forest Council","http://opendatacommunities.org/id/unitary-authority/bracknell-forest","Bracknell Forest Council","00MA","Central Support Services - COF","Construction and Property","Schools Service Contracts","R&M - Reactive",03/05/2011 00:00:00,"6449584",4430,"BENVILLE AND MARSH LTD"
"Bracknell Forest Council","http://opendatacommunities.org/id/unitary-authority/bracknell-forest","Bracknell Forest Council","00MA","Non-School Funding","Youth Services","Youth Centres Building Maintenance","R&M - Service Contracts",25/05/2011 00:00:00,"6450505",726,"BENVILLE AND MARSH LTD"
"Bracknell Forest Council","http://opendatacommunities.org/id/unitary-authority/bracknell-forest","Bracknell Forest Council","00MA","Libraries","Branch Libraries","Libraries General Running Expenses","R&M - Service Contracts",25/05/2011 00:00:00,"6450507",990,"BENVILLE AND MARSH LTD"
"Bracknell Forest Council","http://opendatacommunities.org/id/unitary-authority/bracknell-forest","Bracknell Forest Council","00MA","Recreation, Sports and Leisure","Community Centres","Community Centres Support","R&M - Service Contracts",25/05/2011 00:00:00,"6450522",924,"BENVILLE AND MARSH LTD"
"Bracknell Forest Council","http://opendatacommunities.org/id/unitary-authority/bracknell-forest","Bracknell Forest Council","00MA","Central Support Services - COF","Construction and Property","Time Square Office","Fire Precaution Appliances",13/06/2011 00:00:00,"6451483",696.57,"BERKS EXTINGUISHER SERVICE"
"Bracknell Forest Council","http://opendatacommunities.org/id/unitary-authority/bracknell-forest","Bracknell Forest Council","00MA","Central Support Services - COF","Construction and Property","Depot Facilities","Fire Precaution Appliances",16/06/2011 00:00:00,"6451987",802.02,"BERKS EXTINGUISHER SERVICE"
"Bracknell Forest Council","http://opendatacommunities.org/id/unitary-authority/bracknell-forest","Bracknell Forest Council","00MA","Education Management & Support Service","School Related Expenditure","HTS Interim","Taxi Fares - Home/School Transport",31/05/2011 00:00:00,"6450055",959.5,"BERKSHIRE EDUCATION TRAVEL"
"Bracknell Forest Council","http://opendatacommunities.org/id/unitary-authority/bracknell-forest","Bracknell Forest Council","00MA","Education Management & Support Service","School Related Expenditure","HTS Interim","Taxi Fares - Home/School Transport",31/05/2011 00:00:00,"6450055",8178.88,"BERKSHIRE EDUCATION TRAVEL"
"Bracknell Forest Council","http://opendatacommunities.org/id/unitary-authority/bracknell-forest","Bracknell Forest Council","00MA","Education Management & Support Service","School Related Expenditure","HTS Interim","Taxi Fares - Home/School Transport",31/05/2011 00:00:00,"6450056",11463.86,"BERKSHIRE EDUCATION TRAVEL"
"Bracknell Forest Council","http://opendatacommunities.org/id/unitary-authority/bracknell-forest","Bracknell Forest Council","00MA","Education Management & Support Service","School Related Expenditure","HTS Interim","Taxi Fares - Home/School Transport",31/05/2011 00:00:00,"6450057",17097.2,"BERKSHIRE EDUCATION TRAVEL"
"Bracknell Forest Council","http://opendatacommunities.org/id/unitary-authority/bracknell-forest","Bracknell Forest Council","00MA","Education Management & Support Service","School Related Expenditure","HTS Interim","Taxi Fares - Home/School Transport",31/05/2011 00:00:00,"6450058",10752.05,"BERKSHIRE EDUCATION TRAVEL"
"Bracknell Forest Council","http://opendatacommunities.org/id/unitary-authority/bracknell-forest","Bracknell Forest Council","00MA","Education Management & Support Service","School Related Expenditure","HTS Interim","Taxi Fares - Home/School Transport",31/05/2011 00:00:00,"6450058",586.81,"BERKSHIRE EDUCATION TRAVEL"
"Bracknell Forest Council","http://opendatacommunities.org/id/unitary-authority/bracknell-forest","Bracknell Forest Council","00MA","Education Management & Support Service","School Related Expenditure","HTS Interim","Taxi Fares - Home/School Transport",31/05/2011 00:00:00,"6450059",7263.66,"BERKSHIRE EDUCATION TRAVEL"
"Bracknell Forest Council","http://opendatacommunities.org/id/unitary-authority/bracknell-forest","Bracknell Forest Council","00MA","","","Disabled Facilities Grant","Grants Paid",27/06/2011 00:00:00,"6452297",2826.91,"REDACTED PERSONAL DATA"
"Bracknell Forest Council","http://opendatacommunities.org/id/unitary-authority/bracknell-forest","Bracknell Forest Council","00MA","Learning Disability (under 65)","Direct Payments - LD","Direct Payments - LD","Client Contributions Other",21/06/2011 00:00:00,"30175678",-269.6,"REDACTED PERSONAL DATA"
"Bracknell Forest Council","http://opendatacommunities.org/id/unitary-authority/bracknell-forest","Bracknell Forest Council","00MA","Learning Disability (under 65)","Direct Payments - LD","Direct Payments - LD","Direct Payments to Clients",21/06/2011 00:00:00,"30175678",1160,"REDACTED PERSONAL DATA"
"Bracknell Forest Council","http://opendatacommunities.org/id/unitary-authority/bracknell-forest","Bracknell Forest Council","00MA","Older People (Aged 65 or Over)","Direct Payments","Direct Payments - OP","Direct Payments to Clients",21/06/2011 00:00:00,"30175678",289.8,"REDACTED PERSONAL DATA"
"Bracknell Forest Council","http://opendatacommunities.org/id/unitary-authority/bracknell-forest","Bracknell Forest Council","00MA","Learning Disability (under 65)","Direct Payments - LD","Direct Payments - LD","Direct Payments to Clients",21/06/2011 00:00:00,"30175678",894.24,"REDACTED PERSONAL DATA"
"Bracknell Forest Council","http://opendatacommunities.org/id/unitary-authority/bracknell-forest","Bracknell Forest Council","00MA","Physical Disability/Sensory Impairment","Direct Payments","Direct Payments - PD","Direct Payments to Clients",21/06/2011 00:00:00,"30175678",2281.88,"REDACTED PERSONAL DATA"
"Bracknell Forest Council","http://opendatacommunities.org/id/unitary-authority/bracknell-forest","Bracknell Forest Council","00MA","Physical Disability/Sensory Impairment","Direct Payments","Direct Payments - PD","Client Contributions Other",21/06/2011 00:00:00,"30175678",-880.4,"REDACTED PERSONAL DATA"
"Bracknell Forest Council","http://opendatacommunities.org/id/unitary-authority/bracknell-forest","Bracknell Forest Council","00MA","Physical Disability/Sensory Impairment","Direct Payments","Direct Payments - PD","Direct Payments to Clients",21/06/2011 00:00:00,"30175678",374.4,"REDACTED PERSONAL DATA"
"Bracknell Forest Council","http://opendatacommunities.org/id/unitary-authority/bracknell-forest","Bracknell Forest Council","00MA","Education Management & Support Service","School Related Expenditure","HTS Interim","Taxi Fares - Home/School Transport",30/05/2011 00:00:00,"6449815",16665.71,"MR C F BUNN"
"Bracknell Forest Council","http://opendatacommunities.org/id/unitary-authority/bracknell-forest","Bracknell Forest Council","00MA","Learning Disability (under 65)","Direct Payments - LD","Direct Payments - LD","Client Contributions Other",21/06/2011 00:00:00,"30175678",-38.76,"REDACTED PERSONAL DATA"
"Bracknell Forest Council","http://opendatacommunities.org/id/unitary-authority/bracknell-forest","Bracknell Forest Council","00MA","Learning Disability (under 65)","Direct Payments - LD","Direct Payments - LD","Direct Payments to Clients",21/06/2011 00:00:00,"30175678",1780.04,"REDACTED PERSONAL DATA"
"Bracknell Forest Council","http://opendatacommunities.org/id/unitary-authority/bracknell-forest","Bracknell Forest Council","00MA","Learning Disability (under 65)","Direct Payments - LD","Direct Payments - LD","Client Contributions Other",21/06/2011 00:00:00,"30175678",-893.6,"REDACTED PERSONAL DATA"
"Bracknell Forest Council","http://opendatacommunities.org/id/unitary-authority/bracknell-forest","Bracknell Forest Council","00MA","Learning Disability (under 65)","Direct Payments - LD","Direct Payments - LD","Direct Payments to Clients",21/06/2011 00:00:00,"30175678",1965.4,"REDACTED PERSONAL DATA"
"Bracknell Forest Council","http://opendatacommunities.org/id/unitary-authority/bracknell-forest","Bracknell Forest Council","00MA","Older People (Aged 65 or Over)","Direct Payments","Direct Payments - OP","Direct Payments to Clients",21/06/2011 00:00:00,"30175678",417.6,"REDACTED PERSONAL DATA"
"Bracknell Forest Council","http://opendatacommunities.org/id/unitary-authority/bracknell-forest","Bracknell Forest Council","00MA","Education Management & Support Service","School Related Expenditure","HTS Interim","Taxi Fares - Home/School Transport",31/05/2011 00:00:00,"6450060",11661.98,"BERKSHIRE EDUCATION TRAVEL"
"Bracknell Forest Council","http://opendatacommunities.org/id/unitary-authority/bracknell-forest","Bracknell Forest Council","00MA","Education Management & Support Service","School Related Expenditure","HTS Interim","Taxi Fares - Home/School Transport",31/05/2011 00:00:00,"6450061",4772.78,"BERKSHIRE EDUCATION TRAVEL"
"Bracknell Forest Council","http://opendatacommunities.org/id/unitary-authority/bracknell-forest","Bracknell Forest Council","00MA","Education Management & Support Service","Standards Fund","SF 1.11 Music Services","External Agency Services",10/05/2011 00:00:00,"6449715",10593.5,"BERKSHIRE MAESTROS"
"Bracknell Forest Council","http://opendatacommunities.org/id/unitary-authority/bracknell-forest","Bracknell Forest Council","00MA","Open Spaces","Community Parks & Open Spaces","Tree Service","Contracted Services",14/06/2011 00:00:00,"6451916",680,"BERKSHIRE TREE CARE"
"Bracknell Forest Council","http://opendatacommunities.org/id/unitary-authority/bracknell-forest","Bracknell Forest Council","00MA","Supporting People","Supporting People","Supporting People Payments","Transfer Payments - Supporting People",06/06/2011 00:00:00,"6450183",9886.66,"BERKSHIRE WOMEN'S AID"
"Bracknell Forest Council","http://opendatacommunities.org/id/unitary-authority/bracknell-forest","Bracknell Forest Council","00MA","Libraries","Stock Ordering, Cataloguing & Distribution","Library Book Fund","Audio/Visual materials",26/05/2011 00:00:00,"6450030",516.17,"BERTRAM LIBRARY SERVICES"
"Bracknell Forest Council","http://opendatacommunities.org/id/unitary-authority/bracknell-forest","Bracknell Forest Council","00MA","Economic Development","Economic Development","Town Centre Redev Legal Costs","Legal Fees",23/02/2011 00:00:00,"6450924",7637.65,"BERWIN LEIGHTON PAISNER"
"Bracknell Forest Council","http://opendatacommunities.org/id/unitary-authority/bracknell-forest","Bracknell Forest Council","00MA","Economic Development","Economic Development","Town Centre Redev Legal Costs","Legal Fees",31/03/2011 00:00:00,"6450925",4264.05,"BERWIN LEIGHTON PAISNER"
"Bracknell Forest Council","http://opendatacommunities.org/id/unitary-authority/bracknell-forest","Bracknell Forest Council","00MA","Economic Development","Economic Development","Town Centre Redev Legal Costs","Legal Fees",23/02/2011 00:00:00,"6450926",20016.58,"BERWIN LEIGHTON PAISNER"
"Bracknell Forest Council","http://opendatacommunities.org/id/unitary-authority/bracknell-forest","Bracknell Forest Council","00MA","Economic Development","Economic Development","Town Centre Redev Legal Costs","Legal Fees",23/02/2011 00:00:00,"6450926",-20078.58,"BERWIN LEIGHTON PAISNER"
"Bracknell Forest Council","http://opendatacommunities.org/id/unitary-authority/bracknell-forest","Bracknell Forest Council","00MA","Economic Development","Economic Development","Town Centre Redev Legal Costs","Legal Fees",31/03/2011 00:00:00,"6450927",17556.99,"BERWIN LEIGHTON PAISNER"
"Bracknell Forest Council","http://opendatacommunities.org/id/unitary-authority/bracknell-forest","Bracknell Forest Council","00MA","Economic Development","Economic Development","Town Centre Redev Legal Costs","Legal Fees",31/03/2011 00:00:00,"6450927",-17556.99,"BERWIN LEIGHTON PAISNER"
"Bracknell Forest Council","http://opendatacommunities.org/id/unitary-authority/bracknell-forest","Bracknell Forest Council","00MA","Older People (Aged 65 or Over)","Residential Care Home Placements","Ladybank EPH","Agency",29/05/2011 00:00:00,"6451799",507.96,"BLUE ARROW LIMITED"
"Bracknell Forest Council","http://opendatacommunities.org/id/unitary-authority/bracknell-forest","Bracknell Forest Council","00MA","Childrens services-Commissioning & SW","Commissioning & Social Work","Safeguarding Childrens Board","Training Costs",15/06/2011 00:00:00,"6452689",7187,"BLUE MOUNTAIN GOLF CENTRE"
"Bracknell Forest Council","http://opendatacommunities.org/id/unitary-authority/bracknell-forest","Bracknell Forest Council","00MA","Older People (Aged 65 or Over)","Direct Payments","Direct Payments - OP","Direct Payments to Clients",21/06/2011 00:00:00,"30175678",131.2,"REDACTED PERSONAL DATA"
"Bracknell Forest Council","http://opendatacommunities.org/id/unitary-authority/bracknell-forest","Bracknell Forest Council","00MA","Learning Disability (under 65)","Direct Payments - LD","Direct Payments - LD","Direct Payments to Clients",21/06/2011 00:00:00,"30175678",870.6,"REDACTED PERSONAL DATA"
"Bracknell Forest Council","http://opendatacommunities.org/id/unitary-authority/bracknell-forest","Bracknell Forest Council","00MA","Learning Disability (under 65)","Direct Payments - LD","Direct Payments - LD","Direct Payments to Clients",21/06/2011 00:00:00,"30175678",90.44,"REDACTED PERSONAL DATA"
"Bracknell Forest Council","http://opendatacommunities.org/id/unitary-authority/bracknell-forest","Bracknell Forest Council","00MA","Physical Disability/Sensory Impairment","Direct Payments","Direct Payments - PD","Direct Payments to Clients",21/06/2011 00:00:00,"30175678",471.32,"REDACTED PERSONAL DATA"
"Bracknell Forest Council","http://opendatacommunities.org/id/unitary-authority/bracknell-forest","Bracknell Forest Council","00MA","Older People (Aged 65 or Over)","Direct Payments","Direct Payments - OP","Direct Payments to Clients",21/06/2011 00:00:00,"30175678",72,"REDACTED PERSONAL DATA"
"Bracknell Forest Council","http://opendatacommunities.org/id/unitary-authority/bracknell-forest","Bracknell Forest Council","00MA","Older People (Aged 65 or Over)","Direct Payments","Direct Payments - OP","Direct Payments to Clients",21/06/2011 00:00:00,"30175678",1195.2,"REDACTED PERSONAL DATA"
"Bracknell Forest Council","http://opendatacommunities.org/id/unitary-authority/bracknell-forest","Bracknell Forest Council","00MA","Older People (Aged 65 or Over)","Direct Payments","Direct Payments - OP","Client Contributions Other",21/06/2011 00:00:00,"30175678",-317.28,"REDACTED PERSONAL DATA"
"Bracknell Forest Council","http://opendatacommunities.org/id/unitary-authority/bracknell-forest","Bracknell Forest Council","00MA","Physical Disability/Sensory Impairment","Direct Payments","Direct Payments - PD","Direct Payments to Clients",21/06/2011 00:00:00,"30175678",252,"REDACTED PERSONAL DATA"
"Bracknell Forest Council","http://opendatacommunities.org/id/unitary-authority/bracknell-forest","Bracknell Forest Council","00MA","Physical Disability/Sensory Impairment","Direct Payments","Direct Payments - PD","Client Contributions Other",21/06/2011 00:00:00,"30175678",-187.84,"REDACTED PERSONAL DATA"
"Bracknell Forest Council","http://opendatacommunities.org/id/unitary-authority/bracknell-forest","Bracknell Forest Council","00MA","Older People (Aged 65 or Over)","Direct Payments","Direct Payments - OP","Direct Payments to Clients",21/06/2011 00:00:00,"30175678",72,"REDACTED PERSONAL DATA"
"Bracknell Forest Council","http://opendatacommunities.org/id/unitary-authority/bracknell-forest","Bracknell Forest Council","00MA","Physical Disability/Sensory Impairment","Direct Payments","Direct Payments - PD","Direct Payments to Clients",21/06/2011 00:00:00,"30175678",64,"REDACTED PERSONAL DATA"
"Bracknell Forest Council","http://opendatacommunities.org/id/unitary-authority/bracknell-forest","Bracknell Forest Council","00MA","Older People (Aged 65 or Over)","Direct Payments","Direct Payments - OP","Direct Payments to Clients",21/06/2011 00:00:00,"30175678",90,"REDACTED PERSONAL DATA"
"Bracknell Forest Council","http://opendatacommunities.org/id/unitary-authority/bracknell-forest","Bracknell Forest Council","00MA","Older People (Aged 65 or Over)","Direct Payments","Direct Payments - OP","Client Contributions Other",21/06/2011 00:00:00,"30175678",-37.68,"REDACTED PERSONAL DATA"
"Bracknell Forest Council","http://opendatacommunities.org/id/unitary-authority/bracknell-forest","Bracknell Forest Council","00MA","Older People (Aged 65 or Over)","Direct Payments","Direct Payments - OP","Direct Payments to Clients",21/06/2011 00:00:00,"30175678",90,"REDACTED PERSONAL DATA"
"Bracknell Forest Council","http://opendatacommunities.org/id/unitary-authority/bracknell-forest","Bracknell Forest Council","00MA","Other Children's & Family Services","Leaving Care Services","QP - Care Leavers","Contracted Services",10/03/2011 00:00:00,"6449652",825,"BOW GUEST HOUSE"
"Bracknell Forest Council","http://opendatacommunities.org/id/unitary-authority/bracknell-forest","Bracknell Forest Council","00MA","Supporting People","Supporting People","Supporting People Payments","Transfer Payments - Supporting People",06/06/2011 00:00:00,"6450179",9447.51,"BRACKNELL FOREST HOMES"
"Bracknell Forest Council","http://opendatacommunities.org/id/unitary-authority/bracknell-forest","Bracknell Forest Council","00MA","Economic Development","Premises Development","Tennis Centre","Licences",07/06/2011 00:00:00,"6450646",26672.12,"BRACKNELL ONE LTD & BRACKNELL TWO LTD"
"Bracknell Forest Council","http://opendatacommunities.org/id/unitary-authority/bracknell-forest","Bracknell Forest Council","00MA","Recreation, Sports and Leisure","Indoor Sports & Recreation Facilities","Coral Reef - Catering & Bar","Equipment - Purchase",17/05/2011 00:00:00,"6449727",910,"BRACKNELL REFRIGERATION SERV"
"Bracknell Forest Council","http://opendatacommunities.org/id/unitary-authority/bracknell-forest","Bracknell Forest Council","00MA","Parking Services","Off Street Parking","Off Street Parking","R&M - Reactive",01/04/2011 00:00:00,"6451698",13741,"BRACKNELL REGENERATION LIMITED PARTNERSHIP"
"Bracknell Forest Council","http://opendatacommunities.org/id/unitary-authority/bracknell-forest","Bracknell Forest Council","00MA","Recreation, Sports and Leisure","Retail Services, Catering & Licenced","Easthampstead Park Centre - Catering","Cost of Goods Sold",31/05/2011 00:00:00,"6450929",2273.5,"BRAKE BROS FOODSERVICE LTD"
"Bracknell Forest Council","http://opendatacommunities.org/id/unitary-authority/bracknell-forest","Bracknell Forest Council","00MA","Recreation, Sports and Leisure","Indoor Sports & Recreation Facilities","Coral Reef - Catering & Bar","Cost of Goods Sold",02/06/2011 00:00:00,"6451125",566.1,"BRAKE BROS FOODSERVICE LTD"
"Bracknell Forest Council","http://opendatacommunities.org/id/unitary-authority/bracknell-forest","Bracknell Forest Council","00MA","Older People (Aged 65 or Over)","Home Care","Home Care-Elderly","Contracted Services",02/06/2011 00:00:00,"30174991",8752.2,"BRIGHT YELLOW SOLUTIONS LTD"
"Bracknell Forest Council","http://opendatacommunities.org/id/unitary-authority/bracknell-forest","Bracknell Forest Council","00MA","Older People (Aged 65 or Over)","Home Care","Home Care-Elderly","Contracted Services",02/06/2011 00:00:00,"30174991",16.2,"BRIGHT YELLOW SOLUTIONS LTD"
"Bracknell Forest Council","http://opendatacommunities.org/id/unitary-authority/bracknell-forest","Bracknell Forest Council","00MA","Physical Disability/Sensory Impairment","Homecare","Home Care-Phys Disab","Contracted Services",02/06/2011 00:00:00,"30174991",1893.4,"BRIGHT YELLOW SOLUTIONS LTD"
"Bracknell Forest Council","http://opendatacommunities.org/id/unitary-authority/bracknell-forest","Bracknell Forest Council","00MA","Older People (Aged 65 or Over)","Home Care","Home Care-Elderly","Contracted Services",02/06/2011 00:00:00,"30174991",108,"BRIGHT YELLOW SOLUTIONS LTD"
"Bracknell Forest Council","http://opendatacommunities.org/id/unitary-authority/bracknell-forest","Bracknell Forest Council","00MA","Older People (Aged 65 or Over)","Home Care","Home Care-Elderly","Contracted Services",02/06/2011 00:00:00,"30174991",741.9,"BRIGHT YELLOW SOLUTIONS LTD"
"Bracknell Forest Council","http://opendatacommunities.org/id/unitary-authority/bracknell-forest","Bracknell Forest Council","00MA","Older People (Aged 65 or Over)","Home Care","Home Care-Elderly","Contracted Services",02/06/2011 00:00:00,"30174991",550.8,"BRIGHT YELLOW SOLUTIONS LTD"
"Bracknell Forest Council","http://opendatacommunities.org/id/unitary-authority/bracknell-forest","Bracknell Forest Council","00MA","Physical Disability/Sensory Impairment","Homecare","Home Care-Phys Disab","Contracted Services",02/06/2011 00:00:00,"30174991",378,"BRIGHT YELLOW SOLUTIONS LTD"
"Bracknell Forest Council","http://opendatacommunities.org/id/unitary-authority/bracknell-forest","Bracknell Forest Council","00MA","Mental Health Needs (Under 65)","Homecare","Home Care Mental Illness","Contracted Services",02/06/2011 00:00:00,"30174991",697.9,"BRIGHT YELLOW SOLUTIONS LTD"
"Bracknell Forest Council","http://opendatacommunities.org/id/unitary-authority/bracknell-forest","Bracknell Forest Council","00MA","Older People (Aged 65 or Over)","Home Care","Home Care-Elderly","Contracted Services",02/06/2011 00:00:00,"30174991",11349.5,"BRIGHT YELLOW SOLUTIONS LTD"
"Bracknell Forest Council","http://opendatacommunities.org/id/unitary-authority/bracknell-forest","Bracknell Forest Council","00MA","Older People (Aged 65 or Over)","Home Care","Home Care-Elderly","Contracted Services",02/06/2011 00:00:00,"30174991",237.6,"BRIGHT YELLOW SOLUTIONS LTD"
"Bracknell Forest Council","http://opendatacommunities.org/id/unitary-authority/bracknell-forest","Bracknell Forest Council","00MA","Older People (Aged 65 or Over)","Home Care","Home Care-Elderly","Contracted Services",02/06/2011 00:00:00,"30174991",4432.98,"BRIGHT YELLOW SOLUTIONS LTD"
"Bracknell Forest Council","http://opendatacommunities.org/id/unitary-authority/bracknell-forest","Bracknell Forest Council","00MA","Older People (Aged 65 or Over)","Home Care","Home Care-Elderly","Contracted Services",02/06/2011 00:00:00,"30174991",1391.4,"BRIGHT YELLOW SOLUTIONS LTD"
"Bracknell Forest Council","http://opendatacommunities.org/id/unitary-authority/bracknell-forest","Bracknell Forest Council","00MA","Older People (Aged 65 or Over)","Home Care","Home Care-Elderly","Contracted Services",02/06/2011 00:00:00,"30174991",1133.8,"BRIGHT YELLOW SOLUTIONS LTD"
"Bracknell Forest Council","http://opendatacommunities.org/id/unitary-authority/bracknell-forest","Bracknell Forest Council","00MA","Older People (Aged 65 or Over)","Home Care","Home Care-Elderly","Contracted Services",02/06/2011 00:00:00,"30174991",39.6,"BRIGHT YELLOW SOLUTIONS LTD"
"Bracknell Forest Council","http://opendatacommunities.org/id/unitary-authority/bracknell-forest","Bracknell Forest Council","00MA","Older People (Aged 65 or Over)","Home Care","Home Care-Elderly","Contracted Services",20/06/2011 00:00:00,"30175677",28750.9,"BRIGHT YELLOW SOLUTIONS LTD"
"Bracknell Forest Council","http://opendatacommunities.org/id/unitary-authority/bracknell-forest","Bracknell Forest Council","00MA","Mental Health Needs (Under 65)","Homecare","Home Care Mental Illness","Contracted Services",20/06/2011 00:00:00,"30175677",709.2,"BRIGHT YELLOW SOLUTIONS LTD"
"Bracknell Forest Council","http://opendatacommunities.org/id/unitary-authority/bracknell-forest","Bracknell Forest Council","00MA","Physical Disability/Sensory Impairment","Homecare","Home Care-Phys Disab","Contracted Services",20/06/2011 00:00:00,"30175677",2660.4,"BRIGHT YELLOW SOLUTIONS LTD"
"Bracknell Forest Council","http://opendatacommunities.org/id/unitary-authority/bracknell-forest","Bracknell Forest Council","00MA","Physical Disability/Sensory Impairment","Homecare","Home Care-Phys Disab","Contracted Services",21/06/2011 00:00:00,"30175679",396,"BRIGHT YELLOW SOLUTIONS LTD"
"Bracknell Forest Council","http://opendatacommunities.org/id/unitary-authority/bracknell-forest","Bracknell Forest Council","00MA","Education Management & Support Service","Standards Fund","1.6a Extended Schools Activity Bursaries","Other Fees for Bought-in Services",16/06/2011 00:00:00,"6451574",1949.94,"BRITISH RED CROSS SOCIETY"
"Bracknell Forest Council","http://opendatacommunities.org/id/unitary-authority/bracknell-forest","Bracknell Forest Council","00MA","Central Support Services - COF","Construction and Property","Surveyors","Consultants Fees",27/05/2011 00:00:00,"6450015",761,"BRITISH STANDARDS INSTITUTION"
"Bracknell Forest Council","http://opendatacommunities.org/id/unitary-authority/bracknell-forest","Bracknell Forest Council","00MA","Democratic Representation & Management COF","Democratic Representation & Management - COF","Members Services","Equipment - Rental",28/05/2011 00:00:00,"6450907",1398.38,"BRITISH TELECOM"
"Bracknell Forest Council","http://opendatacommunities.org/id/unitary-authority/bracknell-forest","Bracknell Forest Council","00MA","Central Support Services - COF","Information Technology","Communications","Telephones - Rental & Call Charges",09/06/2011 00:00:00,"6451770",12747.59,"BRITISH TELECOM"
"Bracknell Forest Council","http://opendatacommunities.org/id/unitary-authority/bracknell-forest","Bracknell Forest Council","00MA","","","Extended School Budget Only","Consultant Fees",27/05/2011 00:00:00,"6449975",1500,"BSRIA LTD"
"Bracknell Forest Council","http://opendatacommunities.org/id/unitary-authority/bracknell-forest","Bracknell Forest Council","00MA","","","Network Refresh","IT Hardware",27/06/2011 00:00:00,"6452632",850,"BT INET"
"Bracknell Forest Council","http://opendatacommunities.org/id/unitary-authority/bracknell-forest","Bracknell Forest Council","00MA","Recreation, Sports and Leisure","Golf Courses","Leisure DSO - Downshire Golf Shop","Cost of Goods Sold",31/05/2011 00:00:00,"6450436",1092,"BUSHNELL PERFORMANCE OPTICS"
"Bracknell Forest Council","http://opendatacommunities.org/id/unitary-authority/bracknell-forest","Bracknell Forest Council","00MA","","","Microsoft Exchange","IT Software",24/06/2011 00:00:00,"6452634",24794,"BYTES TECHNOLOGY GROUP LTD"
"Bracknell Forest Council","http://opendatacommunities.org/id/unitary-authority/bracknell-forest","Bracknell Forest Council","00MA","","","Delegated Capital Wildmoor Heath","Construction - Contract Payments",13/05/2011 00:00:00,"6450171",13007.5,"C J M HARVEY CONSTRUCTION LTD"
"Bracknell Forest Council","http://opendatacommunities.org/id/unitary-authority/bracknell-forest","Bracknell Forest Council","00MA","Economic Development","Premises Development","Longshot Lane Industrial Estate","R&M - Reactive",26/05/2011 00:00:00,"6451622",2500,"C J M HARVEY CONSTRUCTION LTD"
"Bracknell Forest Council","http://opendatacommunities.org/id/unitary-authority/bracknell-forest","Bracknell Forest Council","00MA","Traffic Management & Road Safety","Traffic Management","Traffic Monitoring","Equipment - Purchase",31/05/2011 00:00:00,"6450942",1832,"CA TRAFFIC LIMITED"
"Bracknell Forest Council","http://opendatacommunities.org/id/unitary-authority/bracknell-forest","Bracknell Forest Council","00MA","Traffic Management & Road Safety","Traffic Management","Traffic Monitoring","Equipment - Purchase",31/05/2011 00:00:00,"6450942",-500,"CA TRAFFIC LIMITED"
"Bracknell Forest Council","http://opendatacommunities.org/id/unitary-authority/bracknell-forest","Bracknell Forest Council","00MA","Central Support Services - COF","Information Technology","Communications","Telephones - Rental & Call Charges",26/05/2011 00:00:00,"6450042",2969.02,"CABLE&WIRELESS UK"
"Bracknell Forest Council","http://opendatacommunities.org/id/unitary-authority/bracknell-forest","Bracknell Forest Council","00MA","Central Support Services - COF","Information Technology","Communications","Equipment - Rental",17/05/2011 00:00:00,"6450049",2274.18,"CABLE&WIRELESS UK"
"Bracknell Forest Council","http://opendatacommunities.org/id/unitary-authority/bracknell-forest","Bracknell Forest Council","00MA","Education Management & Support Service","Performance & Resources","Education Telecoms","Telephones - Rental & Call Charges",08/01/2011 00:00:00,"6451175",2986.66,"CABLE&WIRELESS UK"
"Bracknell Forest Council","http://opendatacommunities.org/id/unitary-authority/bracknell-forest","Bracknell Forest Council","00MA","Education Management & Support Service","Performance & Resources","Education Telecoms","Telephones - Rental & Call Charges",08/03/2011 00:00:00,"6451177",2469.92,"CABLE&WIRELESS UK"
"Bracknell Forest Council","http://opendatacommunities.org/id/unitary-authority/bracknell-forest","Bracknell Forest Council","00MA","Education Management & Support Service","Performance & Resources","Education Telecoms","Telephones - Rental & Call Charges",08/02/2011 00:00:00,"6451178",2776.53,"CABLE&WIRELESS UK"
"Bracknell Forest Council","http://opendatacommunities.org/id/unitary-authority/bracknell-forest","Bracknell Forest Council","00MA","Education Management & Support Service","Performance & Resources","Education Telecoms","Telephones - Rental & Call Charges",09/06/2011 00:00:00,"6451424",-601.14,"CABLE&WIRELESS UK"
"Bracknell Forest Council","http://opendatacommunities.org/id/unitary-authority/bracknell-forest","Bracknell Forest Council","00MA","Service Management & Support Services","Service Management & Support Services","Departmental Office Services","Telephones - Rental & Call Charges",15/06/2011 00:00:00,"6451572",1854.31,"CABLE&WIRELESS UK"
"Bracknell Forest Council","http://opendatacommunities.org/id/unitary-authority/bracknell-forest","Bracknell Forest Council","00MA","Central Support Services - COF","Information Technology","Communications","Equipment - Rental",15/06/2011 00:00:00,"6451718",2274.18,"CABLE&WIRELESS UK"
"Bracknell Forest Council","http://opendatacommunities.org/id/unitary-authority/bracknell-forest","Bracknell Forest Council","00MA","Central Support Services - COF","Information Technology","Communications","Telephones - Rental & Call Charges",13/06/2011 00:00:00,"6451719",1753.22,"CABLE&WIRELESS UK"
"Bracknell Forest Council","http://opendatacommunities.org/id/unitary-authority/bracknell-forest","Bracknell Forest Council","00MA","Support Services & Management Costs","Information and Communication Technology","IT","Computer Maintenance",11/04/2011 00:00:00,"6451812",3499,"CABLE&WIRELESS UK"
"Bracknell Forest Council","http://opendatacommunities.org/id/unitary-authority/bracknell-forest","Bracknell Forest Council","00MA","Housing Benefits Administration","Housing Benefits Administration","Benefits Administration","Other Fees for Bought-in Services",11/04/2011 00:00:00,"6451812",4083.91,"CABLE&WIRELESS UK"
"Bracknell Forest Council","http://opendatacommunities.org/id/unitary-authority/bracknell-forest","Bracknell Forest Council","00MA","Central Support Services - COF","Information Technology","Technical  Services","Contracted Services",11/04/2011 00:00:00,"6451812",7798.69,"CABLE&WIRELESS UK"
"Bracknell Forest Council","http://opendatacommunities.org/id/unitary-authority/bracknell-forest","Bracknell Forest Council","00MA","Education Management & Support Service","Performance & Resources","Education Telecoms","Telephones - Rental & Call Charges",08/06/2011 00:00:00,"6452275",2946.54,"CABLE&WIRELESS UK"
"Bracknell Forest Council","http://opendatacommunities.org/id/unitary-authority/bracknell-forest","Bracknell Forest Council","00MA","Education Management & Support Service","Performance & Resources","Education Telecoms","Telephones - Rental & Call Charges",07/04/2011 00:00:00,"6452277",2699.62,"CABLE&WIRELESS UK"
"Bracknell Forest Council","http://opendatacommunities.org/id/unitary-authority/bracknell-forest","Bracknell Forest Council","00MA","Children Looked After (CLA)","Fostering Services","Independent Fostering (Non BFBC)","Contracted Services",06/06/2011 00:00:00,"6450737",1743.8,"CABRINI CHILDRENS SOCIETY"
"Bracknell Forest Council","http://opendatacommunities.org/id/unitary-authority/bracknell-forest","Bracknell Forest Council","00MA","Children Looked After (CLA)","Fostering Services","Independent Fostering (Non BFBC)","Contracted Services",06/06/2011 00:00:00,"6451200",1753.8,"CABRINI CHILDRENS SOCIETY"
"Bracknell Forest Council","http://opendatacommunities.org/id/unitary-authority/bracknell-forest","Bracknell Forest Council","00MA","Children's Support & Management Costs","Children's Support Services & Management Costs","Sec 28A - Day Centre Purchases","Voluntary Sector Service Providers",28/02/2011 00:00:00,"6448428",41847.56,"CAMBIAN AUTISM SERVICES LTD"
"Bracknell Forest Council","http://opendatacommunities.org/id/unitary-authority/bracknell-forest","Bracknell Forest Council","00MA","Special Schools","Other Special Related Expenditure","Supporting Special Educational Needs","Voluntary Sector Service Providers",28/02/2011 00:00:00,"6448428",25648.5,"CAMBIAN AUTISM SERVICES LTD"
"Bracknell Forest Council","http://opendatacommunities.org/id/unitary-authority/bracknell-forest","Bracknell Forest Council","00MA","Older People (Aged 65 or Over)","Residential Care Home Placements","Residential Placements-Elderly","Contracted Services",07/06/2011 00:00:00,"30175157",-636.43,"CAMBRIDGE HOUSE RESIDENTIAL HOME"
"Bracknell Forest Council","http://opendatacommunities.org/id/unitary-authority/bracknell-forest","Bracknell Forest Council","00MA","Older People (Aged 65 or Over)","Residential Care Home Placements","Residential Placements-Elderly","Contracted Services",07/06/2011 00:00:00,"30175157",2014.64,"CAMBRIDGE HOUSE RESIDENTIAL HOME"
"Bracknell Forest Council","http://opendatacommunities.org/id/unitary-authority/bracknell-forest","Bracknell Forest Council","00MA","Older People (Aged 65 or Over)","Residential Care Home Placements","Residential Placements MH 65 and Over","Contracted Services",07/06/2011 00:00:00,"30175157",2327.2,"CAMBRIDGE HOUSE RESIDENTIAL HOME"
"Bracknell Forest Council","http://opendatacommunities.org/id/unitary-authority/bracknell-forest","Bracknell Forest Council","00MA","Older People (Aged 65 or Over)","Residential Care Home Placements","Residential Placements-Elderly","Contracted Services",07/06/2011 00:00:00,"30175157",2200,"CAMBRIDGE HOUSE RESIDENTIAL HOME"
"Bracknell Forest Council","http://opendatacommunities.org/id/unitary-authority/bracknell-forest","Bracknell Forest Council","00MA","Older People (Aged 65 or Over)","Residential Care Home Placements","Residential Placements-Elderly","Contracted Services",07/06/2011 00:00:00,"30175157",1923.68,"CAMBRIDGE HOUSE RESIDENTIAL HOME"
"Bracknell Forest Council","http://opendatacommunities.org/id/unitary-authority/bracknell-forest","Bracknell Forest Council","00MA","Older People (Aged 65 or Over)","Residential Care Home Placements","Residential Placements-Elderly","Contracted Services",07/06/2011 00:00:00,"30175157",2075.72,"CAMBRIDGE HOUSE RESIDENTIAL HOME"
"Bracknell Forest Council","http://opendatacommunities.org/id/unitary-authority/bracknell-forest","Bracknell Forest Council","00MA","Older People (Aged 65 or Over)","Residential Care Home Placements","Residential Placements-Elderly","Contracted Services",07/06/2011 00:00:00,"30175157",2080,"CAMBRIDGE HOUSE RESIDENTIAL HOME"
"Bracknell Forest Council","http://opendatacommunities.org/id/unitary-authority/bracknell-forest","Bracknell Forest Council","00MA","Older People (Aged 65 or Over)","Residential Care Home Placements","Residential Placements-Elderly","Contracted Services",07/06/2011 00:00:00,"30175157",2152.68,"CAMBRIDGE HOUSE RESIDENTIAL HOME"
"Bracknell Forest Council","http://opendatacommunities.org/id/unitary-authority/bracknell-forest","Bracknell Forest Council","00MA","Older People (Aged 65 or Over)","Residential Care Home Placements","Residential EMI Placements - Elderly","Contracted Services",07/06/2011 00:00:00,"30175157",2200,"CAMBRIDGE HOUSE RESIDENTIAL HOME"
"Bracknell Forest Council","http://opendatacommunities.org/id/unitary-authority/bracknell-forest","Bracknell Forest Council","00MA","Vehicles &  Plant","Vehicles and Plant Summary Account","Vehicles and Plant","Operating Lease Charge",01/06/2011 00:00:00,"6450025",2383.65,"CAR HIRE (DAY OF SWANSEA) LTD"
"Bracknell Forest Council","http://opendatacommunities.org/id/unitary-authority/bracknell-forest","Bracknell Forest Council","00MA","Learning Disability (under 65)","Residential Care Home Placements","Residential Placements-Lrng Disab","Contracted Services",07/06/2011 00:00:00,"30175157",2344.88,"CARE LTD"
"Bracknell Forest Council","http://opendatacommunities.org/id/unitary-authority/bracknell-forest","Bracknell Forest Council","00MA","Older People (Aged 65 or Over)","Home Care","Home Care-Elderly","Contracted Services",16/06/2011 00:00:00,"30175552",7505.8,"CARE UK HOMECARE LTD"
"Bracknell Forest Council","http://opendatacommunities.org/id/unitary-authority/bracknell-forest","Bracknell Forest Council","00MA","Older People (Aged 65 or Over)","Home Care","Home Care-Elderly","Contracted Services",16/06/2011 00:00:00,"30175552",450,"CARE UK HOMECARE LTD"
"Bracknell Forest Council","http://opendatacommunities.org/id/unitary-authority/bracknell-forest","Bracknell Forest Council","00MA","Older People (Aged 65 or Over)","Home Care","Home Care-Elderly","Contracted Services",16/06/2011 00:00:00,"30175552",4647.1,"CARE UK HOMECARE LTD"
"Bracknell Forest Council","http://opendatacommunities.org/id/unitary-authority/bracknell-forest","Bracknell Forest Council","00MA","Older People (Aged 65 or Over)","Home Care","Home Care-Elderly","Contracted Services",16/06/2011 00:00:00,"30175552",1900.2,"CARE UK HOMECARE LTD"
"Bracknell Forest Council","http://opendatacommunities.org/id/unitary-authority/bracknell-forest","Bracknell Forest Council","00MA","Older People (Aged 65 or Over)","Home Care","Home Care-Elderly","Contracted Services",16/06/2011 00:00:00,"30175552",3543.4,"CARE UK HOMECARE LTD"
"Bracknell Forest Council","http://opendatacommunities.org/id/unitary-authority/bracknell-forest","Bracknell Forest Council","00MA","Older People (Aged 65 or Over)","Home Care","Home Care-Elderly","Contracted Services",16/06/2011 00:00:00,"30175552",2951.5,"CARE UK HOMECARE LTD"
"Bracknell Forest Council","http://opendatacommunities.org/id/unitary-authority/bracknell-forest","Bracknell Forest Council","00MA","Physical Disability/Sensory Impairment","Homecare","Home Care-Phys Disab","Contracted Services",16/06/2011 00:00:00,"30175552",3199.05,"CARE UK HOMECARE LTD"
"Bracknell Forest Council","http://opendatacommunities.org/id/unitary-authority/bracknell-forest","Bracknell Forest Council","00MA","Physical Disability/Sensory Impairment","Homecare","Home Care-Phys Disab","Contracted Services",16/06/2011 00:00:00,"30175552",3140.19,"CARE UK HOMECARE LTD"
"Bracknell Forest Council","http://opendatacommunities.org/id/unitary-authority/bracknell-forest","Bracknell Forest Council","00MA","Physical Disability/Sensory Impairment","Homecare","Home Care-Phys Disab","Contracted Services",16/06/2011 00:00:00,"30175552",1972.8,"CARE UK HOMECARE LTD"
"Bracknell Forest Council","http://opendatacommunities.org/id/unitary-authority/bracknell-forest","Bracknell Forest Council","00MA","Older People (Aged 65 or Over)","Home Care","Home Care-Elderly","Contracted Services",16/06/2011 00:00:00,"30175552",7404.6,"CARE UK HOMECARE LTD"
"Bracknell Forest Council","http://opendatacommunities.org/id/unitary-authority/bracknell-forest","Bracknell Forest Council","00MA","Older People (Aged 65 or Over)","Home Care","Home Care-Elderly","Contracted Services",16/06/2011 00:00:00,"30175552",212.4,"CARE UK HOMECARE LTD"
"Bracknell Forest Council","http://opendatacommunities.org/id/unitary-authority/bracknell-forest","Bracknell Forest Council","00MA","Older People (Aged 65 or Over)","Home Care","Home Care-Elderly","Contracted Services",16/06/2011 00:00:00,"30175552",3782.5,"CARE UK HOMECARE LTD"
"Bracknell Forest Council","http://opendatacommunities.org/id/unitary-authority/bracknell-forest","Bracknell Forest Council","00MA","Older People (Aged 65 or Over)","Home Care","Home Care-Elderly","Contracted Services",16/06/2011 00:00:00,"30175552",531,"CARE UK HOMECARE LTD"
"Bracknell Forest Council","http://opendatacommunities.org/id/unitary-authority/bracknell-forest","Bracknell Forest Council","00MA","Older People (Aged 65 or Over)","Home Care","Home Care-Elderly","Contracted Services",16/06/2011 00:00:00,"30175552",2667.6,"CARE UK HOMECARE LTD"
"Bracknell Forest Council","http://opendatacommunities.org/id/unitary-authority/bracknell-forest","Bracknell Forest Council","00MA","Older People (Aged 65 or Over)","Home Care","Home Care-Elderly","Contracted Services",16/06/2011 00:00:00,"30175552",5964.8,"CARE UK HOMECARE LTD"
"Bracknell Forest Council","http://opendatacommunities.org/id/unitary-authority/bracknell-forest","Bracknell Forest Council","00MA","Mental Health Needs (Under 65)","Homecare","Home Care Mental Illness","Contracted Services",16/06/2011 00:00:00,"30175552",199.8,"CARE UK HOMECARE LTD"
"Bracknell Forest Council","http://opendatacommunities.org/id/unitary-authority/bracknell-forest","Bracknell Forest Council","00MA","Older People (Aged 65 or Over)","Home Care","Home Care-Elderly","Contracted Services",16/06/2011 00:00:00,"30175552",1486.8,"CARE UK HOMECARE LTD"
"Bracknell Forest Council","http://opendatacommunities.org/id/unitary-authority/bracknell-forest","Bracknell Forest Council","00MA","Older People (Aged 65 or Over)","Residential Care Home Placements","Heathlands EPH","Agency",01/06/2011 00:00:00,"6451242",816.95,"CARELINE"
"Bracknell Forest Council","http://opendatacommunities.org/id/unitary-authority/bracknell-forest","Bracknell Forest Council","00MA","Physical Disability/Sensory Impairment","Residential Care Home Placements","Residential Placements-Phys Disab","Contracted Services",07/06/2011 00:00:00,"30175157",2619.52,"CARETECH COMMUNITY SERVICES"
"Bracknell Forest Council","http://opendatacommunities.org/id/unitary-authority/bracknell-forest","Bracknell Forest Council","00MA","Childrens services-Commissioning & SW","Commissioning & Social Work","QP - Choice Protects","Consultants Fees",02/06/2011 00:00:00,"6450597",537.71,"CAROL BIGNELL"
"Bracknell Forest Council","http://opendatacommunities.org/id/unitary-authority/bracknell-forest","Bracknell Forest Council","00MA","Education Management & Support Service","Children, Young People & Families","SP3 Vulnerable Groups - Child Poverty","Other Fees for Bought-in Services",01/06/2011 00:00:00,"6450650",665,"CAROUSEL NURSERY SCHOOL"
"Bracknell Forest Council","http://opendatacommunities.org/id/unitary-authority/bracknell-forest","Bracknell Forest Council","00MA","Older People (Aged 65 or Over)","Assessment & Care Management","Emergency Duty Team (Out of Hours Serv)","Telephones - Rental & Call Charges",06/05/2011 00:00:00,"6451246",666.93,"CELLULAR SOLUTIONS AND SERVICES LTD"
"Bracknell Forest Council","http://opendatacommunities.org/id/unitary-authority/bracknell-forest","Bracknell Forest Council","00MA","Other Welfare Services","Other Welfare Services","Forestcare - Operational","Telephones - Rental & Call Charges",06/05/2011 00:00:00,"6451246",666.94,"CELLULAR SOLUTIONS AND SERVICES LTD"
"Bracknell Forest Council","http://opendatacommunities.org/id/unitary-authority/bracknell-forest","Bracknell Forest Council","00MA","Learning Disability (under 65)","Residential Care Home Placements","Residential Placements-Lrng Disab","Contracted Services",07/06/2011 00:00:00,"30175157",4247.4,"CERRIG CAMU LTD"
"Bracknell Forest Council","http://opendatacommunities.org/id/unitary-authority/bracknell-forest","Bracknell Forest Council","00MA","","","Kennel Lane Rebuild","Consultant Fees",21/04/2011 00:00:00,"6451394",1350,"CGMS LTD"
"Bracknell Forest Council","http://opendatacommunities.org/id/unitary-authority/bracknell-forest","Bracknell Forest Council","00MA","Older People (Aged 65 or Over)","Residential Care Home Placements","Residential Placements-Elderly","Contracted Services",07/06/2011 00:00:00,"30175157",1923.68,"CHARNLEY CARE HOMES LTD"
"Bracknell Forest Council","http://opendatacommunities.org/id/unitary-authority/bracknell-forest","Bracknell Forest Council","00MA","Older People (Aged 65 or Over)","Residential Care Home Placements","Residential Placements-Elderly","Contracted Services",07/06/2011 00:00:00,"30175157",1923.68,"CHARNLEY CARE HOMES LTD"
"Bracknell Forest Council","http://opendatacommunities.org/id/unitary-authority/bracknell-forest","Bracknell Forest Council","00MA","Older People (Aged 65 or Over)","Residential Care Home Placements","Residential Placements-Elderly","Contracted Services",07/06/2011 00:00:00,"30175157",1819.12,"CHARNLEY CARE HOMES LTD"
"Bracknell Forest Council","http://opendatacommunities.org/id/unitary-authority/bracknell-forest","Bracknell Forest Council","00MA","Older People (Aged 65 or Over)","Residential Care Home Placements","Residential Placements-Elderly","Contracted Services",07/06/2011 00:00:00,"30175157",1923.68,"CHARNLEY CARE HOMES LTD"
"Bracknell Forest Council","http://opendatacommunities.org/id/unitary-authority/bracknell-forest","Bracknell Forest Council","00MA","Older People (Aged 65 or Over)","Residential Care Home Placements","Residential Placements-Elderly","Contracted Services",07/06/2011 00:00:00,"30175157",3742.8,"CHARNLEY CARE HOMES LTD"
"Bracknell Forest Council","http://opendatacommunities.org/id/unitary-authority/bracknell-forest","Bracknell Forest Council","00MA","Older People (Aged 65 or Over)","Residential Care Home Placements","Residential Placements-Elderly","Contracted Services",07/06/2011 00:00:00,"30175157",1819.12,"CHARNLEY CARE HOMES LTD"
"Bracknell Forest Council","http://opendatacommunities.org/id/unitary-authority/bracknell-forest","Bracknell Forest Council","00MA","Physical Disability/Sensory Impairment","Direct Payments","Direct Payments - PD","Direct Payments to Clients",21/06/2011 00:00:00,"30175678",734,"REDACTED PERSONAL DATA"
"Bracknell Forest Council","http://opendatacommunities.org/id/unitary-authority/bracknell-forest","Bracknell Forest Council","00MA","Learning Disability (under 65)","Direct Payments - LD","Direct Payments - LD","Client Contributions Other",21/06/2011 00:00:00,"30175678",-482.56,"REDACTED PERSONAL DATA"
"Bracknell Forest Council","http://opendatacommunities.org/id/unitary-authority/bracknell-forest","Bracknell Forest Council","00MA","Learning Disability (under 65)","Direct Payments - LD","Direct Payments - LD","Direct Payments to Clients",21/06/2011 00:00:00,"30175678",939.12,"REDACTED PERSONAL DATA"
"Bracknell Forest Council","http://opendatacommunities.org/id/unitary-authority/bracknell-forest","Bracknell Forest Council","00MA","Physical Disability/Sensory Impairment","Direct Payments","Direct Payments - PD","Direct Payments to Clients",21/06/2011 00:00:00,"30175678",2143.96,"REDACTED PERSONAL DATA"
"Bracknell Forest Council","http://opendatacommunities.org/id/unitary-authority/bracknell-forest","Bracknell Forest Council","00MA","Physical Disability/Sensory Impairment","Direct Payments","Direct Payments - PD","Client Contributions Other",21/06/2011 00:00:00,"30175678",-992.72,"REDACTED PERSONAL DATA"
"Bracknell Forest Council","http://opendatacommunities.org/id/unitary-authority/bracknell-forest","Bracknell Forest Council","00MA","Older People (Aged 65 or Over)","Direct Payments","Direct Payments - OP","Client Contributions Other",21/06/2011 00:00:00,"30175678",-98.84,"REDACTED PERSONAL DATA"
"Bracknell Forest Council","http://opendatacommunities.org/id/unitary-authority/bracknell-forest","Bracknell Forest Council","00MA","Older People (Aged 65 or Over)","Direct Payments","Direct Payments - OP","Direct Payments to Clients",21/06/2011 00:00:00,"30175678",1640.16,"REDACTED PERSONAL DATA"
"Bracknell Forest Council","http://opendatacommunities.org/id/unitary-authority/bracknell-forest","Bracknell Forest Council","00MA","Physical Disability/Sensory Impairment","Direct Payments","Direct Payments - PD","Direct Payments to Clients",21/06/2011 00:00:00,"30175678",-48.86,"REDACTED PERSONAL DATA"
"Bracknell Forest Council","http://opendatacommunities.org/id/unitary-authority/bracknell-forest","Bracknell Forest Council","00MA","Physical Disability/Sensory Impairment","Direct Payments","Direct Payments - PD","Direct Payments to Clients",21/06/2011 00:00:00,"30175678",650.36,"REDACTED PERSONAL DATA"
"Bracknell Forest Council","http://opendatacommunities.org/id/unitary-authority/bracknell-forest","Bracknell Forest Council","00MA","Physical Disability/Sensory Impairment","Direct Payments","Direct Payments - PD","Client Contributions Other",21/06/2011 00:00:00,"30175678",-178.2,"REDACTED PERSONAL DATA"
"Bracknell Forest Council","http://opendatacommunities.org/id/unitary-authority/bracknell-forest","Bracknell Forest Council","00MA","Regulatory Services","Fair Trading","Fair Trading","Other Fees for Bought-in Services",16/06/2011 00:00:00,"6451575",2850,"MR GUY LADENBURG"
"Bracknell Forest Council","http://opendatacommunities.org/id/unitary-authority/bracknell-forest","Bracknell Forest Council","00MA","Development Control","Applications - Development Control","Development Control","Legal Fees",04/05/2011 00:00:00,"6450288",900,"MR GUY WILLIAMS"
"Bracknell Forest Council","http://opendatacommunities.org/id/unitary-authority/bracknell-forest","Bracknell Forest Council","00MA","Learning Disability (under 65)","Direct Payments - LD","Direct Payments - LD","Direct Payments to Clients",21/06/2011 00:00:00,"30175678",156,"REDACTED PERSONAL DATA"
"Bracknell Forest Council","http://opendatacommunities.org/id/unitary-authority/bracknell-forest","Bracknell Forest Council","00MA","Older People (Aged 65 or Over)","Direct Payments","Direct Payments - OP","Direct Payments to Clients",21/06/2011 00:00:00,"30175678",670.2,"REDACTED PERSONAL DATA"
"Bracknell Forest Council","http://opendatacommunities.org/id/unitary-authority/bracknell-forest","Bracknell Forest Council","00MA","Older People (Aged 65 or Over)","Residential Care Home Placements","Residential EMI Placements - Elderly","Contracted Services",07/06/2011 00:00:00,"30175157",2885.52,"CHARNLEY CARE HOMES LTD"
"Bracknell Forest Council","http://opendatacommunities.org/id/unitary-authority/bracknell-forest","Bracknell Forest Council","00MA","Older People (Aged 65 or Over)","Nursing Home Placements","Nursing Home Placements-Elderly","Contracted Services",07/06/2011 00:00:00,"30175157",1674.8,"CHARNWOOD HALL NURSING HOME"
"Bracknell Forest Council","http://opendatacommunities.org/id/unitary-authority/bracknell-forest","Bracknell Forest Council","00MA","Recreation, Sports and Leisure","Indoor Sports & Recreation Facilities","Leisure DSO - Coral Reef","Equipment - Purchase",03/06/2011 00:00:00,"6450349",1199.7,"CHEMICALLY-SOLVED LTD"
"Bracknell Forest Council","http://opendatacommunities.org/id/unitary-authority/bracknell-forest","Bracknell Forest Council","00MA","Older People (Aged 65 or Over)","Nursing Home Placements","Nursing Home Placements-Elderly","Contracted Services",07/06/2011 00:00:00,"30175157",2358.48,"CHERRY GARDEN NURSING HOME"
"Bracknell Forest Council","http://opendatacommunities.org/id/unitary-authority/bracknell-forest","Bracknell Forest Council","00MA","Older People (Aged 65 or Over)","Nursing Home Placements","Nursing Home Placements-Elderly","Contracted Services",07/06/2011 00:00:00,"30175157",-4122.91,"CHERRY GARDEN NURSING HOME"
"Bracknell Forest Council","http://opendatacommunities.org/id/unitary-authority/bracknell-forest","Bracknell Forest Council","00MA","Older People (Aged 65 or Over)","Nursing Home Placements","Nursing Home Placements-Elderly","Contracted Services",07/06/2011 00:00:00,"30175157",2358.48,"CHERRY GARDEN NURSING HOME"
"Bracknell Forest Council","http://opendatacommunities.org/id/unitary-authority/bracknell-forest","Bracknell Forest Council","00MA","Older People (Aged 65 or Over)","Residential Care Home Placements","Residential Placements-Elderly","Contracted Services",07/06/2011 00:00:00,"30175157",1923.68,"CHERRYDALE"
"Bracknell Forest Council","http://opendatacommunities.org/id/unitary-authority/bracknell-forest","Bracknell Forest Council","00MA","Open Spaces","Community Parks & Open Spaces","Pitches/Courts/Pavilion","R&M - Planned",15/06/2011 00:00:00,"6451305",5040,"CHILTERN SPORTS CONTRACTORS LTD"
"Bracknell Forest Council","http://opendatacommunities.org/id/unitary-authority/bracknell-forest","Bracknell Forest Council","00MA","Learning Disability (under 65)","Direct Payments - LD","Direct Payments - LD","Direct Payments to Clients",21/06/2011 00:00:00,"30175678",3498.4,"REDACTED PERSONAL DATA"
"Bracknell Forest Council","http://opendatacommunities.org/id/unitary-authority/bracknell-forest","Bracknell Forest Council","00MA","Learning Disability (under 65)","Residential Care Home Placements","Residential Placements-Lrng Disab","Contracted Services",07/06/2011 00:00:00,"30175157",8196.52,"CHOICE"
"Bracknell Forest Council","http://opendatacommunities.org/id/unitary-authority/bracknell-forest","Bracknell Forest Council","00MA","Learning Disability (under 65)","Residential Care Home Placements","Residential Placements-Lrng Disab","Contracted Services",07/06/2011 00:00:00,"30175157",7478.32,"CHOICE"
"Bracknell Forest Council","http://opendatacommunities.org/id/unitary-authority/bracknell-forest","Bracknell Forest Council","00MA","Learning Disability (under 65)","Residential Care Home Placements","Residential Placements-Lrng Disab","Contracted Services",07/06/2011 00:00:00,"30175157",7753.44,"CHOICE"
"Bracknell Forest Council","http://opendatacommunities.org/id/unitary-authority/bracknell-forest","Bracknell Forest Council","00MA","Learning Disability (under 65)","Residential Care Home Placements","Residential Placements-Lrng Disab","Contracted Services",07/06/2011 00:00:00,"30175157",7330.2,"CHOICE"
"Bracknell Forest Council","http://opendatacommunities.org/id/unitary-authority/bracknell-forest","Bracknell Forest Council","00MA","Regulatory Services","Alcohol & Entertainment Licensing","Licensing - Environmental Health","Other Fees for Bought-in Services",05/05/2011 00:00:00,"6451386",524.21,"MR J R RIDGWAY"
"Bracknell Forest Council","http://opendatacommunities.org/id/unitary-authority/bracknell-forest","Bracknell Forest Council","00MA","Special Schools","Other Special Related Expenditure","Supporting Special Educational Needs","Voluntary Sector Service Providers",02/06/2011 00:00:00,"6451979",2020.4,"REDACTED PERSONAL DATA"
"Bracknell Forest Council","http://opendatacommunities.org/id/unitary-authority/bracknell-forest","Bracknell Forest Council","00MA","Mental Health Needs (Under 65)","Direct Payments","Direct Payments - MH","Direct Payments to Clients",21/06/2011 00:00:00,"30175678",460.8,"REDACTED PERSONAL DATA"
"Bracknell Forest Council","http://opendatacommunities.org/id/unitary-authority/bracknell-forest","Bracknell Forest Council","00MA","Learning Disability (under 65)","Direct Payments - LD","Direct Payments - LD","Direct Payments to Clients",21/06/2011 00:00:00,"30175678",1403.16,"REDACTED PERSONAL DATA"
"Bracknell Forest Council","http://opendatacommunities.org/id/unitary-authority/bracknell-forest","Bracknell Forest Council","00MA","Older People (Aged 65 or Over)","Direct Payments","Direct Payments - OP","Direct Payments to Clients",21/06/2011 00:00:00,"30175678",72,"REDACTED PERSONAL DATA"
"Bracknell Forest Council","http://opendatacommunities.org/id/unitary-authority/bracknell-forest","Bracknell Forest Council","00MA","Physical Disability/Sensory Impairment","Direct Payments","Direct Payments - PD","Direct Payments to Clients",21/06/2011 00:00:00,"30175678",36,"REDACTED PERSONAL DATA"
"Bracknell Forest Council","http://opendatacommunities.org/id/unitary-authority/bracknell-forest","Bracknell Forest Council","00MA","Learning Disability (under 65)","Direct Payments - LD","Direct Payments - LD","Direct Payments to Clients",21/06/2011 00:00:00,"30175678",694.16,"REDACTED PERSONAL DATA"
"Bracknell Forest Council","http://opendatacommunities.org/id/unitary-authority/bracknell-forest","Bracknell Forest Council","00MA","Older People (Aged 65 or Over)","Direct Payments","Direct Payments - OP","Direct Payments to Clients",21/06/2011 00:00:00,"30175678",16,"REDACTED PERSONAL DATA"
"Bracknell Forest Council","http://opendatacommunities.org/id/unitary-authority/bracknell-forest","Bracknell Forest Council","00MA","Older People (Aged 65 or Over)","Direct Payments","Direct Payments - OP","Direct Payments to Clients",21/06/2011 00:00:00,"30175678",90,"REDACTED PERSONAL DATA"
"Bracknell Forest Council","http://opendatacommunities.org/id/unitary-authority/bracknell-forest","Bracknell Forest Council","00MA","Learning Disability (under 65)","Direct Payments - LD","Direct Payments - LD","Direct Payments to Clients",21/06/2011 00:00:00,"30175678",945.4,"REDACTED PERSONAL DATA"
"Bracknell Forest Council","http://opendatacommunities.org/id/unitary-authority/bracknell-forest","Bracknell Forest Council","00MA","Learning Disability (under 65)","Direct Payments - LD","Direct Payments - LD","Direct Payments to Clients",21/06/2011 00:00:00,"30175678",188,"REDACTED PERSONAL DATA"
"Bracknell Forest Council","http://opendatacommunities.org/id/unitary-authority/bracknell-forest","Bracknell Forest Council","00MA","Childrens services-Commissioning & SW","Commissioning & Social Work","Children Aged Under 11","Agency",06/06/2011 00:00:00,"6450588",2292.5,"MR MARK BRYANT"
"Bracknell Forest Council","http://opendatacommunities.org/id/unitary-authority/bracknell-forest","Bracknell Forest Council","00MA","Learning Disability (under 65)","Direct Payments - LD","Direct Payments - LD","Client Contributions Other",21/06/2011 00:00:00,"30175678",-846.96,"REDACTED PERSONAL DATA"
"Bracknell Forest Council","http://opendatacommunities.org/id/unitary-authority/bracknell-forest","Bracknell Forest Council","00MA","Learning Disability (under 65)","Direct Payments - LD","Direct Payments - LD","Direct Payments to Clients",21/06/2011 00:00:00,"30175678",2129.96,"REDACTED PERSONAL DATA"
"Bracknell Forest Council","http://opendatacommunities.org/id/unitary-authority/bracknell-forest","Bracknell Forest Council","00MA","Learning Disability (under 65)","Residential Care Home Placements","Residential Placements-Lrng Disab","Contracted Services",07/06/2011 00:00:00,"30175157",7772.92,"CHOICE"
"Bracknell Forest Council","http://opendatacommunities.org/id/unitary-authority/bracknell-forest","Bracknell Forest Council","00MA","Learning Disability (under 65)","Residential Care Home Placements","Residential Placements-Lrng Disab","Contracted Services",07/06/2011 00:00:00,"30175157",18514.28,"CHOICE"
"Bracknell Forest Council","http://opendatacommunities.org/id/unitary-authority/bracknell-forest","Bracknell Forest Council","00MA","","","South Hill Park Ground Improvements","Consultant Fees",18/05/2011 00:00:00,"6449710",6385,"CHRIS BLANDFORD ASSOCIATES"
"Bracknell Forest Council","http://opendatacommunities.org/id/unitary-authority/bracknell-forest","Bracknell Forest Council","00MA","","","South Hill Park Ground Improvements","Consultant Fees",10/06/2011 00:00:00,"6452012",10385,"CHRIS BLANDFORD ASSOCIATES"
"Bracknell Forest Council","http://opendatacommunities.org/id/unitary-authority/bracknell-forest","Bracknell Forest Council","00MA","Physical Disability/Sensory Impairment","Direct Payments","Direct Payments - PD","Direct Payments to Clients",21/06/2011 00:00:00,"30175678",6496,"REDACTED PERSONAL DATA"
"Bracknell Forest Council","http://opendatacommunities.org/id/unitary-authority/bracknell-forest","Bracknell Forest Council","00MA","Physical Disability/Sensory Impairment","Direct Payments","Direct Payments - PD","Client Contributions Other",21/06/2011 00:00:00,"30175678",-1491.52,"REDACTED PERSONAL DATA"
"Bracknell Forest Council","http://opendatacommunities.org/id/unitary-authority/bracknell-forest","Bracknell Forest Council","00MA","Primary Schools","Delegated Primary School Budgets","Wildridings - Primary","R&M - Service Contracts",02/06/2011 00:00:00,"6451618",692.08,"CHURCHES FIRE SECURITY LTD"
"Bracknell Forest Council","http://opendatacommunities.org/id/unitary-authority/bracknell-forest","Bracknell Forest Council","00MA","Special Schools","Delegated Special Schools Budgets","Kennel Lane","R&M - Service Contracts",02/06/2011 00:00:00,"6451619",788.4,"CHURCHES FIRE SECURITY LTD"
"Bracknell Forest Council","http://opendatacommunities.org/id/unitary-authority/bracknell-forest","Bracknell Forest Council","00MA","Housing Benefits Administration","Housing Benefits Administration","Benefits Administration","Subscriptions",26/04/2011 00:00:00,"6452623",590,"CIPFA BUSINESS LTD"
"Bracknell Forest Council","http://opendatacommunities.org/id/unitary-authority/bracknell-forest","Bracknell Forest Council","00MA","Emergency Planning","Emergency Planning","Emergency Planning","Government Grants",17/06/2011 00:00:00,"6452625",595,"CIRIA"
"Bracknell Forest Council","http://opendatacommunities.org/id/unitary-authority/bracknell-forest","Bracknell Forest Council","00MA","Recreation, Sports and Leisure","Dual Use Centres","Edgbarrow Sports Centre","Contract Cleaning",01/06/2011 00:00:00,"6451432",1450,"CLEANRIGHT"
"Bracknell Forest Council","http://opendatacommunities.org/id/unitary-authority/bracknell-forest","Bracknell Forest Council","00MA","Secondary Schools","Other Secondary Related Expenditure","C.L.E.A.P.S.S.","Subscriptions",11/05/2011 00:00:00,"6450732",1171.64,"CLEAPSS"
"Bracknell Forest Council","http://opendatacommunities.org/id/unitary-authority/bracknell-forest","Bracknell Forest Council","00MA","Older People (Aged 65 or Over)","Other Services To Older People","Other Care & Support-Elderly","Contracted Services",01/05/2011 00:00:00,"6450883",10000,"COATS"
"Bracknell Forest Council","http://opendatacommunities.org/id/unitary-authority/bracknell-forest","Bracknell Forest Council","00MA","Recreation, Sports and Leisure","Golf Courses","Leisure DSO - Downshire Golf Shop","Cost of Goods Sold",02/02/2011 00:00:00,"6451344",986.08,"COBRA-PUMA GOLF"
"Bracknell Forest Council","http://opendatacommunities.org/id/unitary-authority/bracknell-forest","Bracknell Forest Council","00MA","Recreation, Sports and Leisure","Golf Courses","Leisure DSO - Downshire Golf Shop","Cost of Goods Sold",03/02/2011 00:00:00,"6451345",1251.18,"COBRA-PUMA GOLF"
"Bracknell Forest Council","http://opendatacommunities.org/id/unitary-authority/bracknell-forest","Bracknell Forest Council","00MA","Recreation, Sports and Leisure","Indoor Sports & Recreation Facilities","Leisure DSO - Leisure Centre","Electricity",31/05/2011 00:00:00,"6451569",1370.72,"COGENCO LTD"
"Bracknell Forest Council","http://opendatacommunities.org/id/unitary-authority/bracknell-forest","Bracknell Forest Council","00MA","","","Holly Spring Infant and Junior","Consultant Fees",26/05/2011 00:00:00,"6450881",1362,"COLE EASDON CONSULTANTS"
"Bracknell Forest Council","http://opendatacommunities.org/id/unitary-authority/bracknell-forest","Bracknell Forest Council","00MA","Older People (Aged 65 or Over)","Nursing Home Placements","Nursing Home Placements-Elderly","Contracted Services",07/06/2011 00:00:00,"30175157",1823.32,"COLLAMERE CARE HOME"
"Bracknell Forest Council","http://opendatacommunities.org/id/unitary-authority/bracknell-forest","Bracknell Forest Council","00MA","Older People (Aged 65 or Over)","Nursing Home Placements","Nursing Home Placements-Elderly","Contracted Services",07/06/2011 00:00:00,"30175157",1923.68,"COLLINGWOOD GRANGE"
"Bracknell Forest Council","http://opendatacommunities.org/id/unitary-authority/bracknell-forest","Bracknell Forest Council","00MA","Recreation, Sports and Leisure","Dual Use Centres","Edgbarrow Sports Centre","Minor Improvement Schemes",04/04/2011 00:00:00,"6450533",1475,"COLOURWORKS COATINGS (SOUTH) LTD"
"Bracknell Forest Council","http://opendatacommunities.org/id/unitary-authority/bracknell-forest","Bracknell Forest Council","00MA","Recreation, Sports and Leisure","Dual Use Centres","Edgbarrow Sports Centre","Minor Improvement Schemes",04/04/2011 00:00:00,"6450534",550,"COLOURWORKS COATINGS (SOUTH) LTD"
"Bracknell Forest Council","http://opendatacommunities.org/id/unitary-authority/bracknell-forest","Bracknell Forest Council","00MA","Recreation, Sports and Leisure","Indoor Sports & Recreation Facilities","Leisure DSO - Coral Reef Maintenance","R&M - Service Contracts",31/05/2011 00:00:00,"6450945",600,"COMBINED ENERGY SOLUTIONS LTD"
"Bracknell Forest Council","http://opendatacommunities.org/id/unitary-authority/bracknell-forest","Bracknell Forest Council","00MA","Learning Disability (under 65)","Homecare","Supported Living (Homecare) LD","Contracted Services",02/06/2011 00:00:00,"30174990",2600,"COMFORT CARE SERVICES"
"Bracknell Forest Council","http://opendatacommunities.org/id/unitary-authority/bracknell-forest","Bracknell Forest Council","00MA","Mental Health Needs (Under 65)","Supported and Other Accommodation","Supported Living - Mental Health","Contracted Services",02/06/2011 00:00:00,"30174991",911.44,"COMFORT CARE SERVICES"
"Bracknell Forest Council","http://opendatacommunities.org/id/unitary-authority/bracknell-forest","Bracknell Forest Council","00MA","Mental Health Needs (Under 65)","Supported and Other Accommodation","Supported Living - Mental Health","Contracted Services",02/06/2011 00:00:00,"30174991",1680,"COMFORT CARE SERVICES"
"Bracknell Forest Council","http://opendatacommunities.org/id/unitary-authority/bracknell-forest","Bracknell Forest Council","00MA","Mental Health Needs (Under 65)","Supported and Other Accommodation","Supported Living - Mental Health","Contracted Services",02/06/2011 00:00:00,"30174991",2916.12,"COMFORT CARE SERVICES"
"Bracknell Forest Council","http://opendatacommunities.org/id/unitary-authority/bracknell-forest","Bracknell Forest Council","00MA","Mental Health Needs (Under 65)","Supported and Other Accommodation","Supported Living - Mental Health","Contracted Services",02/06/2011 00:00:00,"30174991",1762.88,"COMFORT CARE SERVICES"
"Bracknell Forest Council","http://opendatacommunities.org/id/unitary-authority/bracknell-forest","Bracknell Forest Council","00MA","Physical Disability/Sensory Impairment","Supported and Other Accommodation","Supported Living - Physical Disabilities","Contracted Services",02/06/2011 00:00:00,"30174991",1106.08,"COMFORT CARE SERVICES"
"Bracknell Forest Council","http://opendatacommunities.org/id/unitary-authority/bracknell-forest","Bracknell Forest Council","00MA","Mental Health Needs (Under 65)","Supported and Other Accommodation","Supported Living - Mental Health","Contracted Services",02/06/2011 00:00:00,"30174991",1762.88,"COMFORT CARE SERVICES"
"Bracknell Forest Council","http://opendatacommunities.org/id/unitary-authority/bracknell-forest","Bracknell Forest Council","00MA","Mental Health Needs (Under 65)","Supported and Other Accommodation","Supported Living - Mental Health","Contracted Services",02/06/2011 00:00:00,"30174991",400,"COMFORT CARE SERVICES"
"Bracknell Forest Council","http://opendatacommunities.org/id/unitary-authority/bracknell-forest","Bracknell Forest Council","00MA","Physical Disability/Sensory Impairment","Supported and Other Accommodation","Supported Living - Physical Disabilities","Contracted Services",14/06/2011 00:00:00,"30175408",194.64,"COMFORT CARE SERVICES"
"Bracknell Forest Council","http://opendatacommunities.org/id/unitary-authority/bracknell-forest","Bracknell Forest Council","00MA","Physical Disability/Sensory Impairment","Supported and Other Accommodation","Supported Living - Physical Disabilities","Contracted Services",14/06/2011 00:00:00,"30175408",911.44,"COMFORT CARE SERVICES"
"Bracknell Forest Council","http://opendatacommunities.org/id/unitary-authority/bracknell-forest","Bracknell Forest Council","00MA","Mental Health Needs (Under 65)","Supported and Other Accommodation","Supported Living - Mental Health","Contracted Services",14/06/2011 00:00:00,"30175408",911.44,"COMFORT CARE SERVICES"
"Bracknell Forest Council","http://opendatacommunities.org/id/unitary-authority/bracknell-forest","Bracknell Forest Council","00MA","Mental Health Needs (Under 65)","Supported and Other Accommodation","Supported Living - Mental Health","Contracted Services",28/06/2011 00:00:00,"30175906",1762.88,"COMFORT CARE SERVICES"
"Bracknell Forest Council","http://opendatacommunities.org/id/unitary-authority/bracknell-forest","Bracknell Forest Council","00MA","Mental Health Needs (Under 65)","Supported and Other Accommodation","Supported Living - Mental Health","Contracted Services",28/06/2011 00:00:00,"30175906",400,"COMFORT CARE SERVICES"
"Bracknell Forest Council","http://opendatacommunities.org/id/unitary-authority/bracknell-forest","Bracknell Forest Council","00MA","Physical Disability/Sensory Impairment","Supported and Other Accommodation","Supported Living - Physical Disabilities","Contracted Services",28/06/2011 00:00:00,"30175906",194.64,"COMFORT CARE SERVICES"
"Bracknell Forest Council","http://opendatacommunities.org/id/unitary-authority/bracknell-forest","Bracknell Forest Council","00MA","Learning Disability (under 65)","Homecare","Supported Living (Homecare) LD","Contracted Services",28/06/2011 00:00:00,"30175906",2600,"COMFORT CARE SERVICES"
"Bracknell Forest Council","http://opendatacommunities.org/id/unitary-authority/bracknell-forest","Bracknell Forest Council","00MA","Mental Health Needs (Under 65)","Supported and Other Accommodation","Supported Living - Mental Health","Contracted Services",28/06/2011 00:00:00,"30175906",1680,"COMFORT CARE SERVICES"
"Bracknell Forest Council","http://opendatacommunities.org/id/unitary-authority/bracknell-forest","Bracknell Forest Council","00MA","Mental Health Needs (Under 65)","Supported and Other Accommodation","Supported Living - Mental Health","Contracted Services",28/06/2011 00:00:00,"30175906",2916.12,"COMFORT CARE SERVICES"
"Bracknell Forest Council","http://opendatacommunities.org/id/unitary-authority/bracknell-forest","Bracknell Forest Council","00MA","Mental Health Needs (Under 65)","Supported and Other Accommodation","Supported Living - Mental Health","Contracted Services",28/06/2011 00:00:00,"30175906",1762.88,"COMFORT CARE SERVICES"
"Bracknell Forest Council","http://opendatacommunities.org/id/unitary-authority/bracknell-forest","Bracknell Forest Council","00MA","Physical Disability/Sensory Impairment","Supported and Other Accommodation","Supported Living - Physical Disabilities","Contracted Services",30/06/2011 00:00:00,"30176105",911.44,"COMFORT CARE SERVICES"
"Bracknell Forest Council","http://opendatacommunities.org/id/unitary-authority/bracknell-forest","Bracknell Forest Council","00MA","Mental Health Needs (Under 65)","Supported and Other Accommodation","Supported Living - Mental Health","Contracted Services",30/06/2011 00:00:00,"30176105",911.44,"COMFORT CARE SERVICES"
"Bracknell Forest Council","http://opendatacommunities.org/id/unitary-authority/bracknell-forest","Bracknell Forest Council","00MA","Mental Health Needs (Under 65)","Residential Care Home Placements","Residential Placements-Mental Illness","Contracted Services",07/06/2011 00:00:00,"30175157",3700,"COMMUNITY HOUSING & THERAPY"
"Bracknell Forest Council","http://opendatacommunities.org/id/unitary-authority/bracknell-forest","Bracknell Forest Council","00MA","Recreation, Sports and Leisure","Indoor Sports & Recreation Facilities","Leisure DSO - Coral Reef","Publicity & Marketing",07/06/2011 00:00:00,"6452423",1187.75,"COMPLETE SIGN SOLUTIONS LTD"
"Bracknell Forest Council","http://opendatacommunities.org/id/unitary-authority/bracknell-forest","Bracknell Forest Council","00MA","Older People (Aged 65 or Over)","Residential Care Home Placements","Bridgewell Unit","Agency",24/05/2011 00:00:00,"6450310",666.56,"CONCEPT"
"Bracknell Forest Council","http://opendatacommunities.org/id/unitary-authority/bracknell-forest","Bracknell Forest Council","00MA","Older People (Aged 65 or Over)","Nursing Home Placements","Nursing Home Placements-Elderly","Contracted Services",07/06/2011 00:00:00,"30175157",2433.4,"CONEWOOD MANOR LIMITED"
"Bracknell Forest Council","http://opendatacommunities.org/id/unitary-authority/bracknell-forest","Bracknell Forest Council","00MA","Learning Disability (under 65)","Homecare","Supported Living (Homecare) LD","Contracted Services",27/06/2011 00:00:00,"30175865",10536,"CONSORT SERVICES"
"Bracknell Forest Council","http://opendatacommunities.org/id/unitary-authority/bracknell-forest","Bracknell Forest Council","00MA","Learning Disability (under 65)","Day Care","Supported Living (Day Care) LD","Contracted Services",27/06/2011 00:00:00,"30175865",200,"CONSORT SERVICES"
"Bracknell Forest Council","http://opendatacommunities.org/id/unitary-authority/bracknell-forest","Bracknell Forest Council","00MA","Learning Disability (under 65)","Homecare","Supported Living (Homecare) LD","Contracted Services",30/06/2011 00:00:00,"30176105",3010.56,"CONSORT SERVICES"
"Bracknell Forest Council","http://opendatacommunities.org/id/unitary-authority/bracknell-forest","Bracknell Forest Council","00MA","Older People (Aged 65 or Over)","Residential Care Home Placements","Heathlands EPH","Agency",24/05/2011 00:00:00,"6449902",786.12,"CONTRACT OPTIONS"
"Bracknell Forest Council","http://opendatacommunities.org/id/unitary-authority/bracknell-forest","Bracknell Forest Council","00MA","Public Transport","Support To Operators","Public Transport Subsidy","Contracted Services",31/05/2011 00:00:00,"6450629",17171.75,"COURTNEY COACHES LTD - FACTORED"
"Bracknell Forest Council","http://opendatacommunities.org/id/unitary-authority/bracknell-forest","Bracknell Forest Council","00MA","Public Transport","Support To Operators","Public Transport Subsidy","Contracted Services",31/05/2011 00:00:00,"6450631",3640.97,"COURTNEY COACHES LTD - FACTORED"
"Bracknell Forest Council","http://opendatacommunities.org/id/unitary-authority/bracknell-forest","Bracknell Forest Council","00MA","Public Transport","Concessionary Fares","Concessionary Fares","Contracted Services",08/06/2011 00:00:00,"6450361",2985.09,"COURTNEY COACHES LTD -NOT FACTORED"
"Bracknell Forest Council","http://opendatacommunities.org/id/unitary-authority/bracknell-forest","Bracknell Forest Council","00MA","","","Play Area Replacement Programme","Construction - Contract Payments",29/04/2011 00:00:00,"6450164",49995.71,"CPCL"
"Bracknell Forest Council","http://opendatacommunities.org/id/unitary-authority/bracknell-forest","Bracknell Forest Council","00MA","Learning Disability (under 65)","Homecare","Supported Living (Homecare) LD","Contracted Services",27/06/2011 00:00:00,"30175865",3593.84,"CREATING LIFESTYLES LIMITED"
"Bracknell Forest Council","http://opendatacommunities.org/id/unitary-authority/bracknell-forest","Bracknell Forest Council","00MA","Mental Health Needs (Under 65)","Supported and Other Accommodation","Supported Living - Mental Health","Contracted Services",02/06/2011 00:00:00,"30174991",1935.99,"CREATIVE CARE SOLUTIONS"
"Bracknell Forest Council","http://opendatacommunities.org/id/unitary-authority/bracknell-forest","Bracknell Forest Council","00MA","Mental Health Needs (Under 65)","Supported and Other Accommodation","Supported Living - Mental Health","Contracted Services",02/06/2011 00:00:00,"30174991",1540.79,"CREATIVE CARE SOLUTIONS"
"Bracknell Forest Council","http://opendatacommunities.org/id/unitary-authority/bracknell-forest","Bracknell Forest Council","00MA","Mental Health Needs (Under 65)","Supported and Other Accommodation","Supported Living - Mental Health","Contracted Services",02/06/2011 00:00:00,"30174991",1604.99,"CREATIVE CARE SOLUTIONS"
"Bracknell Forest Council","http://opendatacommunities.org/id/unitary-authority/bracknell-forest","Bracknell Forest Council","00MA","Older People (Aged 65 or Over)","Residential Care Home Placements","Residential Placements-Elderly","Contracted Services",07/06/2011 00:00:00,"30175157",1819.12,"CROSSWAYS RESIDENTIAL HOME"
"Bracknell Forest Council","http://opendatacommunities.org/id/unitary-authority/bracknell-forest","Bracknell Forest Council","00MA","Older People (Aged 65 or Over)","Residential Care Home Placements","Residential Placements-Elderly","Contracted Services",07/06/2011 00:00:00,"30175157",1819.12,"CROSSWAYS RESIDENTIAL HOME"
"Bracknell Forest Council","http://opendatacommunities.org/id/unitary-authority/bracknell-forest","Bracknell Forest Council","00MA","Older People (Aged 65 or Over)","Residential Care Home Placements","Residential Placements-Elderly","Contracted Services",07/06/2011 00:00:00,"30175157",1819.12,"CROSSWAYS RESIDENTIAL HOME"
"Bracknell Forest Council","http://opendatacommunities.org/id/unitary-authority/bracknell-forest","Bracknell Forest Council","00MA","Older People (Aged 65 or Over)","Residential Care Home Placements","Residential Placements-Elderly","Contracted Services",07/06/2011 00:00:00,"30175157",1817.04,"CROSSWAYS RESIDENTIAL HOME"
"Bracknell Forest Council","http://opendatacommunities.org/id/unitary-authority/bracknell-forest","Bracknell Forest Council","00MA","Recreation, Sports and Leisure","Retail Services, Catering & Licenced","Easthampstead Park Centre - Catering","Equipment - Rental",03/05/2011 00:00:00,"6449076",515.64,"CROWN WATER & COFFEE LTD"
"Bracknell Forest Council","http://opendatacommunities.org/id/unitary-authority/bracknell-forest","Bracknell Forest Council","00MA","Education Management & Support Service","School Related Expenditure","Education Centre","Catering Consumables",09/06/2011 00:00:00,"6451296",524.16,"CROWN WATER & COFFEE LTD"
"Bracknell Forest Council","http://opendatacommunities.org/id/unitary-authority/bracknell-forest","Bracknell Forest Council","00MA","Education Management & Support Service","School Related Expenditure","HTS Interim","Taxi Fares - Home/School Transport",03/06/2011 00:00:00,"6451116",6061,"CROWN WHEELCHAIR TRAVEL"
"Bracknell Forest Council","http://opendatacommunities.org/id/unitary-authority/bracknell-forest","Bracknell Forest Council","00MA","Education Management & Support Service","School Related Expenditure","HTS Interim","Taxi Fares - Home/School Transport",03/06/2011 00:00:00,"6451117",9786.2,"CROWN WHEELCHAIR TRAVEL"
"Bracknell Forest Council","http://opendatacommunities.org/id/unitary-authority/bracknell-forest","Bracknell Forest Council","00MA","","","Great Hollands Primary - Maint","Construction - Contract Payments",02/06/2011 00:00:00,"6450777",15000,"CROWTHORNE HEATING CO."
"Bracknell Forest Council","http://opendatacommunities.org/id/unitary-authority/bracknell-forest","Bracknell Forest Council","00MA","","","Great Hollands Primary - Maint","Construction - Contract Payments",01/06/2011 00:00:00,"6450795",18000,"CROWTHORNE HEATING CO."
"Bracknell Forest Council","http://opendatacommunities.org/id/unitary-authority/bracknell-forest","Bracknell Forest Council","00MA","Culture and Heritage","Heritage Museums & Galleries","The Look Out","R&M - Reactive",24/05/2011 00:00:00,"6450946",6595,"CROWTHORNE HEATING CO."
"Bracknell Forest Council","http://opendatacommunities.org/id/unitary-authority/bracknell-forest","Bracknell Forest Council","00MA","Non-School Funding","Youth Services","Youth Opportunity Fund","Youth & Community Activities",24/05/2011 00:00:00,"6449057",550,"CROWTHORNE SUMMER ACTIVITIES"
"Bracknell Forest Council","http://opendatacommunities.org/id/unitary-authority/bracknell-forest","Bracknell Forest Council","00MA","","","Balance Sheet","Flexible Benefits Control Account",30/05/2011 00:00:00,"6449851",1279.1,"CYCLESCHEME LTD"
"Bracknell Forest Council","http://opendatacommunities.org/id/unitary-authority/bracknell-forest","Bracknell Forest Council","00MA","Older People (Aged 65 or Over)","Other Services To Older People","Other Care & Support-Elderly","Other Support to Clients",02/06/2011 00:00:00,"30174991",40,"D J  ELDERFIELD"
"Bracknell Forest Council","http://opendatacommunities.org/id/unitary-authority/bracknell-forest","Bracknell Forest Council","00MA","Physical Disability/Sensory Impairment","Other Services to Adults with a PD or SI","Other Care & Support-Phys Disab","Other Support to Clients",02/06/2011 00:00:00,"30174991",960,"D J  ELDERFIELD"
"Bracknell Forest Council","http://opendatacommunities.org/id/unitary-authority/bracknell-forest","Bracknell Forest Council","00MA","Learning Disability (under 65)","Direct Payments - LD","Direct Payments - LD","Client Contributions Other",21/06/2011 00:00:00,"30175678",-80.28,"REDACTED PERSONAL DATA"
"Bracknell Forest Council","http://opendatacommunities.org/id/unitary-authority/bracknell-forest","Bracknell Forest Council","00MA","Learning Disability (under 65)","Direct Payments - LD","Direct Payments - LD","Direct Payments to Clients",21/06/2011 00:00:00,"30175678",724.4,"REDACTED PERSONAL DATA"
"Bracknell Forest Council","http://opendatacommunities.org/id/unitary-authority/bracknell-forest","Bracknell Forest Council","00MA","Physical Disability/Sensory Impairment","Direct Payments","Direct Payments - PD","Direct Payments to Clients",21/06/2011 00:00:00,"30175678",5533.28,"REDACTED PERSONAL DATA"
"Bracknell Forest Council","http://opendatacommunities.org/id/unitary-authority/bracknell-forest","Bracknell Forest Council","00MA","Older People (Aged 65 or Over)","Residential Care Home Placements","Heathlands EPH","Catering Consumables",03/05/2011 00:00:00,"6449014",595.04,"DBC FOODSERVICE"
"Bracknell Forest Council","http://opendatacommunities.org/id/unitary-authority/bracknell-forest","Bracknell Forest Council","00MA","Older People (Aged 65 or Over)","Residential Care Home Placements","Heathlands EPH","Catering Consumables",17/05/2011 00:00:00,"6449015",599.39,"DBC FOODSERVICE"
"Bracknell Forest Council","http://opendatacommunities.org/id/unitary-authority/bracknell-forest","Bracknell Forest Council","00MA","Older People (Aged 65 or Over)","Residential Care Home Placements","Heathlands EPH","Catering Consumables",25/05/2011 00:00:00,"6449900",640.04,"DBC FOODSERVICE"
"Bracknell Forest Council","http://opendatacommunities.org/id/unitary-authority/bracknell-forest","Bracknell Forest Council","00MA","","","Balance Sheet","Debtors Refunds Control",07/06/2011 00:00:00,"6450411",777.99,"DEBTOR REFUND SUNDRY ACCOUNT"
"Bracknell Forest Council","http://opendatacommunities.org/id/unitary-authority/bracknell-forest","Bracknell Forest Council","00MA","","","Balance Sheet","Debtors Refunds Control",14/06/2011 00:00:00,"6450539",7260,"DEBTOR REFUND SUNDRY ACCOUNT"
"Bracknell Forest Council","http://opendatacommunities.org/id/unitary-authority/bracknell-forest","Bracknell Forest Council","00MA","","","Balance Sheet","Debtors Refunds Control",13/06/2011 00:00:00,"6450540",4480,"DEBTOR REFUND SUNDRY ACCOUNT"
"Bracknell Forest Council","http://opendatacommunities.org/id/unitary-authority/bracknell-forest","Bracknell Forest Council","00MA","","","Server Refresh","IT Hardware",14/06/2011 00:00:00,"6451893",3414.83,"DELL COMPUTER CORPORATION"
"Bracknell Forest Council","http://opendatacommunities.org/id/unitary-authority/bracknell-forest","Bracknell Forest Council","00MA","","","ICT Maint Prog - Desktop","IT Hardware",18/06/2011 00:00:00,"6452491",1986.5,"DELL COMPUTER CORPORATION"
"Bracknell Forest Council","http://opendatacommunities.org/id/unitary-authority/bracknell-forest","Bracknell Forest Council","00MA","","","Server Refresh","IT Hardware",14/06/2011 00:00:00,"6451892",3171.83,"DELL COMPUTER CORPORATION LTD"
"Bracknell Forest Council","http://opendatacommunities.org/id/unitary-authority/bracknell-forest","Bracknell Forest Council","00MA","","","ICT Maint Prog - Desktop","IT Hardware",15/06/2011 00:00:00,"6451941",938.93,"DELL COMPUTER CORPORATION LTD"
"Bracknell Forest Council","http://opendatacommunities.org/id/unitary-authority/bracknell-forest","Bracknell Forest Council","00MA","","","ICT Maint Prog - Desktop","IT Hardware",15/06/2011 00:00:00,"6451942",2131.65,"DELL COMPUTER CORPORATION LTD"
"Bracknell Forest Council","http://opendatacommunities.org/id/unitary-authority/bracknell-forest","Bracknell Forest Council","00MA","Open Spaces","Community Parks & Open Spaces","Tree Service","Contracted Services",26/05/2011 00:00:00,"6449908",1045,"DENNIS ARTIS"
"Bracknell Forest Council","http://opendatacommunities.org/id/unitary-authority/bracknell-forest","Bracknell Forest Council","00MA","Open Spaces","Community Parks & Open Spaces","Tree Service","Contracted Services",11/06/2011 00:00:00,"6451914",750,"DENNIS ARTIS"
"Bracknell Forest Council","http://opendatacommunities.org/id/unitary-authority/bracknell-forest","Bracknell Forest Council","00MA","Open Spaces","Countryside Recreation & Management","Countryside Sites - Maintenance","R&M - Planned",04/06/2011 00:00:00,"6451915",1500,"DENNIS ARTIS"
"Bracknell Forest Council","http://opendatacommunities.org/id/unitary-authority/bracknell-forest","Bracknell Forest Council","00MA","","","Balance Sheet","Flexible Benefits Control Account",02/06/2011 00:00:00,"6450618",798.8,"DENPLAN LIMITED"
"Bracknell Forest Council","http://opendatacommunities.org/id/unitary-authority/bracknell-forest","Bracknell Forest Council","00MA","Learning Disability (under 65)","Residential Care Home Placements","Residential Placements-Lrng Disab","Contracted Services",09/06/2011 00:00:00,"30175306",5594.34,"DERWEN COLLEGE"
"Bracknell Forest Council","http://opendatacommunities.org/id/unitary-authority/bracknell-forest","Bracknell Forest Council","00MA","Learning Disability (under 65)","Homecare","Supported Living (Homecare) LD","Contracted Services",02/06/2011 00:00:00,"30174991",3889.24,"DIMENSIONS (NSO) LTD"
"Bracknell Forest Council","http://opendatacommunities.org/id/unitary-authority/bracknell-forest","Bracknell Forest Council","00MA","Learning Disability (under 65)","Homecare","Supported Living (Homecare) LD","Contracted Services",02/06/2011 00:00:00,"30174991",9407.44,"DIMENSIONS (NSO) LTD"
"Bracknell Forest Council","http://opendatacommunities.org/id/unitary-authority/bracknell-forest","Bracknell Forest Council","00MA","Learning Disability (under 65)","Homecare","Supported Living (Homecare) LD","Contracted Services",02/06/2011 00:00:00,"30174991",3439.84,"DIMENSIONS (NSO) LTD"
"Bracknell Forest Council","http://opendatacommunities.org/id/unitary-authority/bracknell-forest","Bracknell Forest Council","00MA","Learning Disability (under 65)","Homecare","Supported Living (Homecare) LD","Contracted Services",02/06/2011 00:00:00,"30174991",7966.72,"DIMENSIONS (NSO) LTD"
"Bracknell Forest Council","http://opendatacommunities.org/id/unitary-authority/bracknell-forest","Bracknell Forest Council","00MA","Learning Disability (under 65)","Homecare","Supported Living (Homecare) LD","Contracted Services",02/06/2011 00:00:00,"30174991",3799.36,"DIMENSIONS (NSO) LTD"
"Bracknell Forest Council","http://opendatacommunities.org/id/unitary-authority/bracknell-forest","Bracknell Forest Council","00MA","Learning Disability (under 65)","Homecare","Supported Living (Homecare) LD","Contracted Services",02/06/2011 00:00:00,"30174991",116.07,"DIMENSIONS (NSO) LTD"
"Bracknell Forest Council","http://opendatacommunities.org/id/unitary-authority/bracknell-forest","Bracknell Forest Council","00MA","Learning Disability (under 65)","Homecare","Supported Living (Homecare) LD","Contracted Services",02/06/2011 00:00:00,"30174991",4069,"DIMENSIONS (NSO) LTD"
"Bracknell Forest Council","http://opendatacommunities.org/id/unitary-authority/bracknell-forest","Bracknell Forest Council","00MA","Learning Disability (under 65)","Homecare","Supported Living (Homecare) LD","Contracted Services",02/06/2011 00:00:00,"30174991",4553.92,"DIMENSIONS (NSO) LTD"
"Bracknell Forest Council","http://opendatacommunities.org/id/unitary-authority/bracknell-forest","Bracknell Forest Council","00MA","Learning Disability (under 65)","Homecare","Supported Living (Homecare) LD","Contracted Services",02/06/2011 00:00:00,"30174991",5088.44,"DIMENSIONS (NSO) LTD"
"Bracknell Forest Council","http://opendatacommunities.org/id/unitary-authority/bracknell-forest","Bracknell Forest Council","00MA","Learning Disability (under 65)","Homecare","Supported Living (Homecare) LD","Contracted Services",02/06/2011 00:00:00,"30174991",10474.02,"DIMENSIONS (NSO) LTD"
"Bracknell Forest Council","http://opendatacommunities.org/id/unitary-authority/bracknell-forest","Bracknell Forest Council","00MA","Learning Disability (under 65)","Homecare","Supported Living (Homecare) LD","Contracted Services",02/06/2011 00:00:00,"30174991",4464.04,"DIMENSIONS (NSO) LTD"
"Bracknell Forest Council","http://opendatacommunities.org/id/unitary-authority/bracknell-forest","Bracknell Forest Council","00MA","Learning Disability (under 65)","Homecare","Supported Living (Homecare) LD","Contracted Services",02/06/2011 00:00:00,"30174991",10414.05,"DIMENSIONS (NSO) LTD"
"Bracknell Forest Council","http://opendatacommunities.org/id/unitary-authority/bracknell-forest","Bracknell Forest Council","00MA","Learning Disability (under 65)","Homecare","Supported Living (Homecare) LD","Contracted Services",02/06/2011 00:00:00,"30174991",5880,"DIMENSIONS (NSO) LTD"
"Bracknell Forest Council","http://opendatacommunities.org/id/unitary-authority/bracknell-forest","Bracknell Forest Council","00MA","Learning Disability (under 65)","Homecare","Supported Living (Homecare) LD","Contracted Services",02/06/2011 00:00:00,"30174991",4613.84,"DIMENSIONS (NSO) LTD"
"Bracknell Forest Council","http://opendatacommunities.org/id/unitary-authority/bracknell-forest","Bracknell Forest Council","00MA","Learning Disability (under 65)","Day Care","Supported Living (Day Care) LD","Contracted Services",02/06/2011 00:00:00,"30174991",1494.54,"DIMENSIONS (NSO) LTD"
"Bracknell Forest Council","http://opendatacommunities.org/id/unitary-authority/bracknell-forest","Bracknell Forest Council","00MA","Learning Disability (under 65)","Homecare","S28a Supported Living (Homecare) LD","Contracted Services",02/06/2011 00:00:00,"30174991",5266.97,"DIMENSIONS (NSO) LTD"
"Bracknell Forest Council","http://opendatacommunities.org/id/unitary-authority/bracknell-forest","Bracknell Forest Council","00MA","Older People (Aged 65 or Over)","Home Care","MH Live-In Carers","Contracted Services",02/06/2011 00:00:00,"30174991",5343.32,"DIMENSIONS (NSO) LTD"
"Bracknell Forest Council","http://opendatacommunities.org/id/unitary-authority/bracknell-forest","Bracknell Forest Council","00MA","Learning Disability (under 65)","Homecare","Supported Living (Homecare) LD","Contracted Services",07/06/2011 00:00:00,"30175159",7220.36,"DIMENSIONS (NSO) LTD"
"Bracknell Forest Council","http://opendatacommunities.org/id/unitary-authority/bracknell-forest","Bracknell Forest Council","00MA","Learning Disability (under 65)","Homecare","Supported Living (Homecare) LD","Contracted Services",07/06/2011 00:00:00,"30175159",4794.93,"DIMENSIONS (NSO) LTD"
"Bracknell Forest Council","http://opendatacommunities.org/id/unitary-authority/bracknell-forest","Bracknell Forest Council","00MA","Learning Disability (under 65)","Homecare","Supported Living (Homecare) LD","Contracted Services",07/06/2011 00:00:00,"30175159",4608.24,"DIMENSIONS (NSO) LTD"
"Bracknell Forest Council","http://opendatacommunities.org/id/unitary-authority/bracknell-forest","Bracknell Forest Council","00MA","Learning Disability (under 65)","Homecare","Supported Living (Homecare) LD","Contracted Services",07/06/2011 00:00:00,"30175159",1923.04,"DIMENSIONS (NSO) LTD"
"Bracknell Forest Council","http://opendatacommunities.org/id/unitary-authority/bracknell-forest","Bracknell Forest Council","00MA","Learning Disability (under 65)","Homecare","Supported Living (Homecare) LD","Contracted Services",07/06/2011 00:00:00,"30175159",3777.04,"DIMENSIONS (NSO) LTD"
"Bracknell Forest Council","http://opendatacommunities.org/id/unitary-authority/bracknell-forest","Bracknell Forest Council","00MA","Learning Disability (under 65)","Homecare","Supported Living (Homecare) LD","Contracted Services",07/06/2011 00:00:00,"30175159",7040.6,"DIMENSIONS (NSO) LTD"
"Bracknell Forest Council","http://opendatacommunities.org/id/unitary-authority/bracknell-forest","Bracknell Forest Council","00MA","Learning Disability (under 65)","Homecare","Supported Living (Homecare) LD","Contracted Services",07/06/2011 00:00:00,"30175159",3705.04,"DIMENSIONS (NSO) LTD"
"Bracknell Forest Council","http://opendatacommunities.org/id/unitary-authority/bracknell-forest","Bracknell Forest Council","00MA","Physical Disability/Sensory Impairment","Supported and Other Accommodation","Supported Living - Physical Disabilities","Contracted Services",07/06/2011 00:00:00,"30175159",29.96,"DIMENSIONS (NSO) LTD"
"Bracknell Forest Council","http://opendatacommunities.org/id/unitary-authority/bracknell-forest","Bracknell Forest Council","00MA","Older People (Aged 65 or Over)","Home Care","Supported Living (Homecare) LD over 65","Contracted Services",07/06/2011 00:00:00,"30175159",5997.6,"DIMENSIONS (NSO) LTD"
"Bracknell Forest Council","http://opendatacommunities.org/id/unitary-authority/bracknell-forest","Bracknell Forest Council","00MA","Older People (Aged 65 or Over)","Home Care","Supported Living (Homecare) LD over 65","Contracted Services",07/06/2011 00:00:00,"30175159",7040.6,"DIMENSIONS (NSO) LTD"
"Bracknell Forest Council","http://opendatacommunities.org/id/unitary-authority/bracknell-forest","Bracknell Forest Council","00MA","Older People (Aged 65 or Over)","Home Care","Supported Living (Homecare) LD over 65","Contracted Services",07/06/2011 00:00:00,"30175159",4847.92,"DIMENSIONS (NSO) LTD"
"Bracknell Forest Council","http://opendatacommunities.org/id/unitary-authority/bracknell-forest","Bracknell Forest Council","00MA","Learning Disability (under 65)","Homecare","Supported Living (Homecare) LD","Contracted Services",07/06/2011 00:00:00,"30175159",6018.6,"DIMENSIONS (NSO) LTD"
"Bracknell Forest Council","http://opendatacommunities.org/id/unitary-authority/bracknell-forest","Bracknell Forest Council","00MA","Learning Disability (under 65)","Homecare","Supported Living (Homecare) LD","Contracted Services",07/06/2011 00:00:00,"30175159",4398.64,"DIMENSIONS (NSO) LTD"
"Bracknell Forest Council","http://opendatacommunities.org/id/unitary-authority/bracknell-forest","Bracknell Forest Council","00MA","Learning Disability (under 65)","Homecare","Supported Living (Homecare) LD","Contracted Services",07/06/2011 00:00:00,"30175159",753.76,"DIMENSIONS (NSO) LTD"
"Bracknell Forest Council","http://opendatacommunities.org/id/unitary-authority/bracknell-forest","Bracknell Forest Council","00MA","Learning Disability (under 65)","Homecare","Supported Living (Homecare) LD","Contracted Services",07/06/2011 00:00:00,"30175159",309.52,"DIMENSIONS (NSO) LTD"
"Bracknell Forest Council","http://opendatacommunities.org/id/unitary-authority/bracknell-forest","Bracknell Forest Council","00MA","Learning Disability (under 65)","Homecare","Supported Living (Homecare) LD","Contracted Services",07/06/2011 00:00:00,"30175159",9606.8,"DIMENSIONS (NSO) LTD"
"Bracknell Forest Council","http://opendatacommunities.org/id/unitary-authority/bracknell-forest","Bracknell Forest Council","00MA","Learning Disability (under 65)","Day Care","Supported Living (Day Care) LD","Contracted Services",07/06/2011 00:00:00,"30175159",1800.44,"DIMENSIONS (NSO) LTD"
"Bracknell Forest Council","http://opendatacommunities.org/id/unitary-authority/bracknell-forest","Bracknell Forest Council","00MA","Learning Disability (under 65)","Direct Payments - LD","Direct Payments - LD","Direct Payments to Clients",21/06/2011 00:00:00,"30175678",185.46,"REDACTED PERSONAL DATA"
"Bracknell Forest Council","http://opendatacommunities.org/id/unitary-authority/bracknell-forest","Bracknell Forest Council","00MA","Older People (Aged 65 or Over)","Direct Payments","Direct Payments - OP","Direct Payments to Clients",21/06/2011 00:00:00,"30175678",36,"REDACTED PERSONAL DATA"
"Bracknell Forest Council","http://opendatacommunities.org/id/unitary-authority/bracknell-forest","Bracknell Forest Council","00MA","Learning Disability (under 65)","Direct Payments - LD","Direct Payments - LD","Client Contributions Other",21/06/2011 00:00:00,"30175678",-29.36,"REDACTED PERSONAL DATA"
"Bracknell Forest Council","http://opendatacommunities.org/id/unitary-authority/bracknell-forest","Bracknell Forest Council","00MA","Learning Disability (under 65)","Direct Payments - LD","Direct Payments - LD","Direct Payments to Clients",21/06/2011 00:00:00,"30175678",31.04,"REDACTED PERSONAL DATA"
"Bracknell Forest Council","http://opendatacommunities.org/id/unitary-authority/bracknell-forest","Bracknell Forest Council","00MA","Physical Disability/Sensory Impairment","Direct Payments","Direct Payments - PD","Direct Payments to Clients",07/06/2011 00:00:00,"30175158",89.36,"REDACTED PERSONAL DATA"
"Bracknell Forest Council","http://opendatacommunities.org/id/unitary-authority/bracknell-forest","Bracknell Forest Council","00MA","Physical Disability/Sensory Impairment","Direct Payments","Direct Payments - PD","Direct Payments to Clients",21/06/2011 00:00:00,"30175678",970.32,"REDACTED PERSONAL DATA"
"Bracknell Forest Council","http://opendatacommunities.org/id/unitary-authority/bracknell-forest","Bracknell Forest Council","00MA","Physical Disability/Sensory Impairment","Direct Payments","Direct Payments - PD","Direct Payments to Clients",29/06/2011 00:00:00,"30176067",268.08,"REDACTED PERSONAL DATA"
"Bracknell Forest Council","http://opendatacommunities.org/id/unitary-authority/bracknell-forest","Bracknell Forest Council","00MA","Physical Disability/Sensory Impairment","Direct Payments","Direct Payments - PD","Direct Payments to Clients",21/06/2011 00:00:00,"30175678",119.57,"REDACTED PERSONAL DATA"
"Bracknell Forest Council","http://opendatacommunities.org/id/unitary-authority/bracknell-forest","Bracknell Forest Council","00MA","Physical Disability/Sensory Impairment","Direct Payments","Direct Payments - PD","Client Contributions Other",21/06/2011 00:00:00,"30175678",-108,"REDACTED PERSONAL DATA"
"Bracknell Forest Council","http://opendatacommunities.org/id/unitary-authority/bracknell-forest","Bracknell Forest Council","00MA","Older People (Aged 65 or Over)","Direct Payments","Direct Payments - OP","Client Contributions Other",21/06/2011 00:00:00,"30175678",-183.91,"REDACTED PERSONAL DATA"
"Bracknell Forest Council","http://opendatacommunities.org/id/unitary-authority/bracknell-forest","Bracknell Forest Council","00MA","Older People (Aged 65 or Over)","Direct Payments","Direct Payments - OP","Direct Payments to Clients",21/06/2011 00:00:00,"30175678",695.98,"REDACTED PERSONAL DATA"
"Bracknell Forest Council","http://opendatacommunities.org/id/unitary-authority/bracknell-forest","Bracknell Forest Council","00MA","Learning Disability (under 65)","Direct Payments - LD","Direct Payments - LD","Client Contributions Other",21/06/2011 00:00:00,"30175678",-16.83,"REDACTED PERSONAL DATA"
"Bracknell Forest Council","http://opendatacommunities.org/id/unitary-authority/bracknell-forest","Bracknell Forest Council","00MA","Learning Disability (under 65)","Direct Payments - LD","Direct Payments - LD","Direct Payments to Clients",21/06/2011 00:00:00,"30175678",2341.5,"REDACTED PERSONAL DATA"
"Bracknell Forest Council","http://opendatacommunities.org/id/unitary-authority/bracknell-forest","Bracknell Forest Council","00MA","Development Control","Applications - Development Control","Development Control","Legal Fees",26/05/2011 00:00:00,"6450287",17040,"MR RICHARD LANGHAM"
"Bracknell Forest Council","http://opendatacommunities.org/id/unitary-authority/bracknell-forest","Bracknell Forest Council","00MA","Learning Disability (under 65)","Day Care","Supported Living (Day Care) LD","Contracted Services",07/06/2011 00:00:00,"30175159",1105.8,"DIMENSIONS (NSO) LTD"
"Bracknell Forest Council","http://opendatacommunities.org/id/unitary-authority/bracknell-forest","Bracknell Forest Council","00MA","Learning Disability (under 65)","Homecare","S28a Supported Living (Homecare) LD","Contracted Services",07/06/2011 00:00:00,"30175159",897.28,"DIMENSIONS (NSO) LTD"
"Bracknell Forest Council","http://opendatacommunities.org/id/unitary-authority/bracknell-forest","Bracknell Forest Council","00MA","Learning Disability (under 65)","Day Care","Supported Living (Day Care) LD","Contracted Services",16/06/2011 00:00:00,"30175552",779.04,"DIMENSIONS (NSO) LTD"
"Bracknell Forest Council","http://opendatacommunities.org/id/unitary-authority/bracknell-forest","Bracknell Forest Council","00MA","Learning Disability (under 65)","Day Care","Supported Living (Day Care) LD","Contracted Services",16/06/2011 00:00:00,"30175552",779.04,"DIMENSIONS (NSO) LTD"
"Bracknell Forest Council","http://opendatacommunities.org/id/unitary-authority/bracknell-forest","Bracknell Forest Council","00MA","Learning Disability (under 65)","Day Care","Supported Living (Day Care) LD","Contracted Services",16/06/2011 00:00:00,"30175552",1018.64,"DIMENSIONS (NSO) LTD"
"Bracknell Forest Council","http://opendatacommunities.org/id/unitary-authority/bracknell-forest","Bracknell Forest Council","00MA","Learning Disability (under 65)","Day Care","Supported Living (Day Care) LD","Contracted Services",20/06/2011 00:00:00,"30175677",1189.47,"DIMENSIONS (NSO) LTD"
"Bracknell Forest Council","http://opendatacommunities.org/id/unitary-authority/bracknell-forest","Bracknell Forest Council","00MA","Learning Disability (under 65)","Day Care","Supported Living (Day Care) LD","Contracted Services",20/06/2011 00:00:00,"30175677",30,"DIMENSIONS (NSO) LTD"
"Bracknell Forest Council","http://opendatacommunities.org/id/unitary-authority/bracknell-forest","Bracknell Forest Council","00MA","Learning Disability (under 65)","Day Care","Supported Living (Day Care) LD","Contracted Services",20/06/2011 00:00:00,"30175677",1318.24,"DIMENSIONS (NSO) LTD"
"Bracknell Forest Council","http://opendatacommunities.org/id/unitary-authority/bracknell-forest","Bracknell Forest Council","00MA","Older People (Aged 65 or Over)","Day Care","Supported Living (Day Care) LD Over 65","Contracted Services",20/06/2011 00:00:00,"30175677",749,"DIMENSIONS (NSO) LTD"
"Bracknell Forest Council","http://opendatacommunities.org/id/unitary-authority/bracknell-forest","Bracknell Forest Council","00MA","Learning Disability (under 65)","Homecare","Supported Living (Homecare) LD","Contracted Services",20/06/2011 00:00:00,"30175677",8530.36,"DIMENSIONS (NSO) LTD"
"Bracknell Forest Council","http://opendatacommunities.org/id/unitary-authority/bracknell-forest","Bracknell Forest Council","00MA","Learning Disability (under 65)","Homecare","Supported Living (Homecare) LD","Contracted Services",20/06/2011 00:00:00,"30175677",4748.24,"DIMENSIONS (NSO) LTD"
"Bracknell Forest Council","http://opendatacommunities.org/id/unitary-authority/bracknell-forest","Bracknell Forest Council","00MA","Learning Disability (under 65)","Homecare","Supported Living (Homecare) LD","Contracted Services",20/06/2011 00:00:00,"30175677",-142.31,"DIMENSIONS (NSO) LTD"
"Bracknell Forest Council","http://opendatacommunities.org/id/unitary-authority/bracknell-forest","Bracknell Forest Council","00MA","Learning Disability (under 65)","Homecare","Supported Living (Homecare) LD","Contracted Services",20/06/2011 00:00:00,"30175677",9549.48,"DIMENSIONS (NSO) LTD"
"Bracknell Forest Council","http://opendatacommunities.org/id/unitary-authority/bracknell-forest","Bracknell Forest Council","00MA","Physical Disability/Sensory Impairment","Supported and Other Accommodation","Supported Living - Physical Disabilities","Contracted Services",27/06/2011 00:00:00,"30175865",890.24,"DIMENSIONS (NSO) LTD"
"Bracknell Forest Council","http://opendatacommunities.org/id/unitary-authority/bracknell-forest","Bracknell Forest Council","00MA","Older People (Aged 65 or Over)","Direct Payments","Direct Payments - OP","Direct Payments to Clients",21/06/2011 00:00:00,"30175678",26.08,"REDACTED PERSONAL DATA"
"Bracknell Forest Council","http://opendatacommunities.org/id/unitary-authority/bracknell-forest","Bracknell Forest Council","00MA","Older People (Aged 65 or Over)","Direct Payments","Direct Payments - OP","Client Contributions Other",21/06/2011 00:00:00,"30175678",-170.94,"REDACTED PERSONAL DATA"
"Bracknell Forest Council","http://opendatacommunities.org/id/unitary-authority/bracknell-forest","Bracknell Forest Council","00MA","Older People (Aged 65 or Over)","Direct Payments","Direct Payments - OP","Direct Payments to Clients",21/06/2011 00:00:00,"30175678",108,"REDACTED PERSONAL DATA"
"Bracknell Forest Council","http://opendatacommunities.org/id/unitary-authority/bracknell-forest","Bracknell Forest Council","00MA","Learning Disability (under 65)","Direct Payments - LD","Direct Payments - LD","Client Contributions Other",21/06/2011 00:00:00,"30175678",-86.84,"REDACTED PERSONAL DATA"
"Bracknell Forest Council","http://opendatacommunities.org/id/unitary-authority/bracknell-forest","Bracknell Forest Council","00MA","Learning Disability (under 65)","Direct Payments - LD","Direct Payments - LD","Direct Payments to Clients",21/06/2011 00:00:00,"30175678",144.36,"REDACTED PERSONAL DATA"
"Bracknell Forest Council","http://opendatacommunities.org/id/unitary-authority/bracknell-forest","Bracknell Forest Council","00MA","Physical Disability/Sensory Impairment","Direct Payments","Direct Payments - PD","Direct Payments to Clients",21/06/2011 00:00:00,"30175678",1411.2,"REDACTED PERSONAL DATA"
"Bracknell Forest Council","http://opendatacommunities.org/id/unitary-authority/bracknell-forest","Bracknell Forest Council","00MA","Learning Disability (under 65)","Direct Payments - LD","Direct Payments - LD","Direct Payments to Clients",21/06/2011 00:00:00,"30175678",162.4,"REDACTED PERSONAL DATA"
"Bracknell Forest Council","http://opendatacommunities.org/id/unitary-authority/bracknell-forest","Bracknell Forest Council","00MA","Learning Disability (under 65)","Direct Payments - LD","Direct Payments - LD","Client Contributions Other",21/06/2011 00:00:00,"30175678",-55.6,"REDACTED PERSONAL DATA"
"Bracknell Forest Council","http://opendatacommunities.org/id/unitary-authority/bracknell-forest","Bracknell Forest Council","00MA","Learning Disability (under 65)","Direct Payments - LD","Direct Payments - LD","Direct Payments to Clients",21/06/2011 00:00:00,"30175678",716.8,"REDACTED PERSONAL DATA"
"Bracknell Forest Council","http://opendatacommunities.org/id/unitary-authority/bracknell-forest","Bracknell Forest Council","00MA","Older People (Aged 65 or Over)","Direct Payments","Direct Payments - OP","Client Contributions Other",21/06/2011 00:00:00,"30175678",-29.84,"REDACTED PERSONAL DATA"
"Bracknell Forest Council","http://opendatacommunities.org/id/unitary-authority/bracknell-forest","Bracknell Forest Council","00MA","Older People (Aged 65 or Over)","Direct Payments","Direct Payments - OP","Direct Payments to Clients",21/06/2011 00:00:00,"30175678",1947.36,"REDACTED PERSONAL DATA"
"Bracknell Forest Council","http://opendatacommunities.org/id/unitary-authority/bracknell-forest","Bracknell Forest Council","00MA","Physical Disability/Sensory Impairment","Direct Payments","Direct Payments - PD","Direct Payments to Clients",07/06/2011 00:00:00,"30175158",1003.83,"REDACTED PERSONAL DATA"
"Bracknell Forest Council","http://opendatacommunities.org/id/unitary-authority/bracknell-forest","Bracknell Forest Council","00MA","Physical Disability/Sensory Impairment","Direct Payments","Direct Payments - PD","Direct Payments to Clients",21/06/2011 00:00:00,"30175678",551.12,"REDACTED PERSONAL DATA"
"Bracknell Forest Council","http://opendatacommunities.org/id/unitary-authority/bracknell-forest","Bracknell Forest Council","00MA","Physical Disability/Sensory Impairment","Direct Payments","Direct Payments - PD","Direct Payments to Clients",21/06/2011 00:00:00,"30175678",72,"REDACTED PERSONAL DATA"
"Bracknell Forest Council","http://opendatacommunities.org/id/unitary-authority/bracknell-forest","Bracknell Forest Council","00MA","Older People (Aged 65 or Over)","Home Care","Supported Living (Homecare) LD over 65","Contracted Services",27/06/2011 00:00:00,"30175865",5997.6,"DIMENSIONS (NSO) LTD"
"Bracknell Forest Council","http://opendatacommunities.org/id/unitary-authority/bracknell-forest","Bracknell Forest Council","00MA","Older People (Aged 65 or Over)","Home Care","Supported Living (Homecare) LD over 65","Contracted Services",27/06/2011 00:00:00,"30175865",7040.6,"DIMENSIONS (NSO) LTD"
"Bracknell Forest Council","http://opendatacommunities.org/id/unitary-authority/bracknell-forest","Bracknell Forest Council","00MA","Older People (Aged 65 or Over)","Home Care","Supported Living (Homecare) LD over 65","Contracted Services",27/06/2011 00:00:00,"30175865",4847.92,"DIMENSIONS (NSO) LTD"
"Bracknell Forest Council","http://opendatacommunities.org/id/unitary-authority/bracknell-forest","Bracknell Forest Council","00MA","Learning Disability (under 65)","Homecare","Supported Living (Homecare) LD","Contracted Services",27/06/2011 00:00:00,"30175865",3705.04,"DIMENSIONS (NSO) LTD"
"Bracknell Forest Council","http://opendatacommunities.org/id/unitary-authority/bracknell-forest","Bracknell Forest Council","00MA","Learning Disability (under 65)","Homecare","Supported Living (Homecare) LD","Contracted Services",27/06/2011 00:00:00,"30175865",4039.64,"DIMENSIONS (NSO) LTD"
"Bracknell Forest Council","http://opendatacommunities.org/id/unitary-authority/bracknell-forest","Bracknell Forest Council","00MA","Learning Disability (under 65)","Homecare","Supported Living (Homecare) LD","Contracted Services",27/06/2011 00:00:00,"30175865",3889.24,"DIMENSIONS (NSO) LTD"
"Bracknell Forest Council","http://opendatacommunities.org/id/unitary-authority/bracknell-forest","Bracknell Forest Council","00MA","Learning Disability (under 65)","Homecare","Supported Living (Homecare) LD","Contracted Services",27/06/2011 00:00:00,"30175865",3777.04,"DIMENSIONS (NSO) LTD"
"Bracknell Forest Council","http://opendatacommunities.org/id/unitary-authority/bracknell-forest","Bracknell Forest Council","00MA","Learning Disability (under 65)","Homecare","Supported Living (Homecare) LD","Contracted Services",27/06/2011 00:00:00,"30175865",6019.88,"DIMENSIONS (NSO) LTD"
"Bracknell Forest Council","http://opendatacommunities.org/id/unitary-authority/bracknell-forest","Bracknell Forest Council","00MA","Learning Disability (under 65)","Homecare","Supported Living (Homecare) LD","Contracted Services",27/06/2011 00:00:00,"30175865",4398.64,"DIMENSIONS (NSO) LTD"
"Bracknell Forest Council","http://opendatacommunities.org/id/unitary-authority/bracknell-forest","Bracknell Forest Council","00MA","Learning Disability (under 65)","Homecare","Supported Living (Homecare) LD","Contracted Services",27/06/2011 00:00:00,"30175865",753.76,"DIMENSIONS (NSO) LTD"
"Bracknell Forest Council","http://opendatacommunities.org/id/unitary-authority/bracknell-forest","Bracknell Forest Council","00MA","Learning Disability (under 65)","Homecare","Supported Living (Homecare) LD","Contracted Services",27/06/2011 00:00:00,"30175865",4613.84,"DIMENSIONS (NSO) LTD"
"Bracknell Forest Council","http://opendatacommunities.org/id/unitary-authority/bracknell-forest","Bracknell Forest Council","00MA","Learning Disability (under 65)","Homecare","Supported Living (Homecare) LD","Contracted Services",27/06/2011 00:00:00,"30175865",9549.48,"DIMENSIONS (NSO) LTD"
"Bracknell Forest Council","http://opendatacommunities.org/id/unitary-authority/bracknell-forest","Bracknell Forest Council","00MA","Learning Disability (under 65)","Homecare","Supported Living (Homecare) LD","Contracted Services",27/06/2011 00:00:00,"30175865",4967.32,"DIMENSIONS (NSO) LTD"
"Bracknell Forest Council","http://opendatacommunities.org/id/unitary-authority/bracknell-forest","Bracknell Forest Council","00MA","Learning Disability (under 65)","Homecare","Supported Living (Homecare) LD","Contracted Services",27/06/2011 00:00:00,"30175865",4499.72,"DIMENSIONS (NSO) LTD"
"Bracknell Forest Council","http://opendatacommunities.org/id/unitary-authority/bracknell-forest","Bracknell Forest Council","00MA","Learning Disability (under 65)","Homecare","Supported Living (Homecare) LD","Contracted Services",27/06/2011 00:00:00,"30175865",5880,"DIMENSIONS (NSO) LTD"
"Bracknell Forest Council","http://opendatacommunities.org/id/unitary-authority/bracknell-forest","Bracknell Forest Council","00MA","Learning Disability (under 65)","Homecare","Supported Living (Homecare) LD","Contracted Services",27/06/2011 00:00:00,"30175865",7040.6,"DIMENSIONS (NSO) LTD"
"Bracknell Forest Council","http://opendatacommunities.org/id/unitary-authority/bracknell-forest","Bracknell Forest Council","00MA","Learning Disability (under 65)","Homecare","Supported Living (Homecare) LD","Contracted Services",27/06/2011 00:00:00,"30175865",7966.72,"DIMENSIONS (NSO) LTD"
"Bracknell Forest Council","http://opendatacommunities.org/id/unitary-authority/bracknell-forest","Bracknell Forest Council","00MA","Learning Disability (under 65)","Homecare","Supported Living (Homecare) LD","Contracted Services",27/06/2011 00:00:00,"30175865",9407.44,"DIMENSIONS (NSO) LTD"
"Bracknell Forest Council","http://opendatacommunities.org/id/unitary-authority/bracknell-forest","Bracknell Forest Council","00MA","Learning Disability (under 65)","Homecare","Supported Living (Homecare) LD","Contracted Services",27/06/2011 00:00:00,"30175865",3799.32,"DIMENSIONS (NSO) LTD"
"Bracknell Forest Council","http://opendatacommunities.org/id/unitary-authority/bracknell-forest","Bracknell Forest Council","00MA","Learning Disability (under 65)","Homecare","Supported Living (Homecare) LD","Contracted Services",27/06/2011 00:00:00,"30175865",4748.24,"DIMENSIONS (NSO) LTD"
"Bracknell Forest Council","http://opendatacommunities.org/id/unitary-authority/bracknell-forest","Bracknell Forest Council","00MA","Learning Disability (under 65)","Homecare","Supported Living (Homecare) LD","Contracted Services",27/06/2011 00:00:00,"30175865",4068.96,"DIMENSIONS (NSO) LTD"
"Bracknell Forest Council","http://opendatacommunities.org/id/unitary-authority/bracknell-forest","Bracknell Forest Council","00MA","Learning Disability (under 65)","Homecare","Supported Living (Homecare) LD","Contracted Services",27/06/2011 00:00:00,"30175865",4608.24,"DIMENSIONS (NSO) LTD"
"Bracknell Forest Council","http://opendatacommunities.org/id/unitary-authority/bracknell-forest","Bracknell Forest Council","00MA","Learning Disability (under 65)","Homecare","Supported Living (Homecare) LD","Contracted Services",27/06/2011 00:00:00,"30175865",1923.04,"DIMENSIONS (NSO) LTD"
"Bracknell Forest Council","http://opendatacommunities.org/id/unitary-authority/bracknell-forest","Bracknell Forest Council","00MA","Learning Disability (under 65)","Homecare","Supported Living (Homecare) LD","Contracted Services",27/06/2011 00:00:00,"30175865",4553.92,"DIMENSIONS (NSO) LTD"
"Bracknell Forest Council","http://opendatacommunities.org/id/unitary-authority/bracknell-forest","Bracknell Forest Council","00MA","Learning Disability (under 65)","Homecare","Supported Living (Homecare) LD","Contracted Services",27/06/2011 00:00:00,"30175865",9606.8,"DIMENSIONS (NSO) LTD"
"Bracknell Forest Council","http://opendatacommunities.org/id/unitary-authority/bracknell-forest","Bracknell Forest Council","00MA","Learning Disability (under 65)","Homecare","Supported Living (Homecare) LD","Contracted Services",27/06/2011 00:00:00,"30175865",5088.44,"DIMENSIONS (NSO) LTD"
"Bracknell Forest Council","http://opendatacommunities.org/id/unitary-authority/bracknell-forest","Bracknell Forest Council","00MA","Learning Disability (under 65)","Homecare","Supported Living (Homecare) LD","Contracted Services",27/06/2011 00:00:00,"30175865",10474.02,"DIMENSIONS (NSO) LTD"
"Bracknell Forest Council","http://opendatacommunities.org/id/unitary-authority/bracknell-forest","Bracknell Forest Council","00MA","Learning Disability (under 65)","Homecare","Supported Living (Homecare) LD","Contracted Services",27/06/2011 00:00:00,"30175865",4464.04,"DIMENSIONS (NSO) LTD"
"Bracknell Forest Council","http://opendatacommunities.org/id/unitary-authority/bracknell-forest","Bracknell Forest Council","00MA","Learning Disability (under 65)","Homecare","Supported Living (Homecare) LD","Contracted Services",27/06/2011 00:00:00,"30175865",7220.36,"DIMENSIONS (NSO) LTD"
"Bracknell Forest Council","http://opendatacommunities.org/id/unitary-authority/bracknell-forest","Bracknell Forest Council","00MA","Learning Disability (under 65)","Homecare","Supported Living (Homecare) LD","Contracted Services",27/06/2011 00:00:00,"30175865",3439.92,"DIMENSIONS (NSO) LTD"
"Bracknell Forest Council","http://opendatacommunities.org/id/unitary-authority/bracknell-forest","Bracknell Forest Council","00MA","Learning Disability (under 65)","Homecare","Supported Living (Homecare) LD","Contracted Services",27/06/2011 00:00:00,"30175865",5446.73,"DIMENSIONS (NSO) LTD"
"Bracknell Forest Council","http://opendatacommunities.org/id/unitary-authority/bracknell-forest","Bracknell Forest Council","00MA","Learning Disability (under 65)","Day Care","Supported Living (Day Care) LD","Contracted Services",27/06/2011 00:00:00,"30175865",1116.57,"DIMENSIONS (NSO) LTD"
"Bracknell Forest Council","http://opendatacommunities.org/id/unitary-authority/bracknell-forest","Bracknell Forest Council","00MA","Learning Disability (under 65)","Homecare","S28a Supported Living (Homecare) LD","Contracted Services",27/06/2011 00:00:00,"30175865",5266.97,"DIMENSIONS (NSO) LTD"
"Bracknell Forest Council","http://opendatacommunities.org/id/unitary-authority/bracknell-forest","Bracknell Forest Council","00MA","Learning Disability (under 65)","Homecare","S28a Supported Living (Homecare) LD","Contracted Services",27/06/2011 00:00:00,"30175865",896,"DIMENSIONS (NSO) LTD"
"Bracknell Forest Council","http://opendatacommunities.org/id/unitary-authority/bracknell-forest","Bracknell Forest Council","00MA","Older People (Aged 65 or Over)","Home Care","MH Live-In Carers","Contracted Services",27/06/2011 00:00:00,"30175865",5343.32,"DIMENSIONS (NSO) LTD"
"Bracknell Forest Council","http://opendatacommunities.org/id/unitary-authority/bracknell-forest","Bracknell Forest Council","00MA","Learning Disability (under 65)","Day Care","Supported Living (Day Care) LD","Contracted Services",28/06/2011 00:00:00,"30175906",1318.24,"DIMENSIONS (NSO) LTD"
"Bracknell Forest Council","http://opendatacommunities.org/id/unitary-authority/bracknell-forest","Bracknell Forest Council","00MA","Learning Disability (under 65)","Homecare","Supported Living (Homecare) LD","Contracted Services",28/06/2011 00:00:00,"30175906",239.68,"DIMENSIONS (NSO) LTD"
"Bracknell Forest Council","http://opendatacommunities.org/id/unitary-authority/bracknell-forest","Bracknell Forest Council","00MA","Learning Disability (under 65)","Homecare","Supported Living (Homecare) LD","Contracted Services",30/06/2011 00:00:00,"30176105",179.76,"DIMENSIONS (NSO) LTD"
"Bracknell Forest Council","http://opendatacommunities.org/id/unitary-authority/bracknell-forest","Bracknell Forest Council","00MA","Learning Disability (under 65)","Day Care","Supported Living (Day Care) LD","Contracted Services",30/06/2011 00:00:00,"30176105",958.72,"DIMENSIONS (NSO) LTD"
"Bracknell Forest Council","http://opendatacommunities.org/id/unitary-authority/bracknell-forest","Bracknell Forest Council","00MA","Service Management & Support Services","Service Management & Support Services","Training - Planning & Transport","Training Costs",26/05/2011 00:00:00,"6451816",600,"DISTRICT SURVEYORS LTD"
"Bracknell Forest Council","http://opendatacommunities.org/id/unitary-authority/bracknell-forest","Bracknell Forest Council","00MA","Older People (Aged 65 or Over)","Nursing Home Placements","Nursing Home Placements-Elderly","Contracted Services",07/06/2011 00:00:00,"30175157",2353.04,"DORMY HOUSE (SUNNINGDALE) LTD"
"Bracknell Forest Council","http://opendatacommunities.org/id/unitary-authority/bracknell-forest","Bracknell Forest Council","00MA","Older People (Aged 65 or Over)","Nursing Home Placements","Nursing Home Placements-Elderly","Contracted Services",07/06/2011 00:00:00,"30175157",2163.52,"DORMY HOUSE (SUNNINGDALE) LTD"
"Bracknell Forest Council","http://opendatacommunities.org/id/unitary-authority/bracknell-forest","Bracknell Forest Council","00MA","Older People (Aged 65 or Over)","Nursing Home Placements","Nursing Home Placements-Elderly","Contracted Services",07/06/2011 00:00:00,"30175157",2638.68,"DORMY HOUSE (SUNNINGDALE) LTD"
"Bracknell Forest Council","http://opendatacommunities.org/id/unitary-authority/bracknell-forest","Bracknell Forest Council","00MA","Older People (Aged 65 or Over)","Nursing Home Placements","Nursing Home Placements-Elderly","Contracted Services",07/06/2011 00:00:00,"30175157",2358.48,"DORMY HOUSE (SUNNINGDALE) LTD"
"Bracknell Forest Council","http://opendatacommunities.org/id/unitary-authority/bracknell-forest","Bracknell Forest Council","00MA","Older People (Aged 65 or Over)","Residential Care Home Placements","Residential Placements-Elderly","Contracted Services",07/06/2011 00:00:00,"30175157",1923.68,"DORMY HOUSE (SUNNINGDALE) LTD"
"Bracknell Forest Council","http://opendatacommunities.org/id/unitary-authority/bracknell-forest","Bracknell Forest Council","00MA","Older People (Aged 65 or Over)","Residential Care Home Placements","Residential Placements-Elderly","Contracted Services",07/06/2011 00:00:00,"30175157",1656.32,"DORMY HOUSE (SUNNINGDALE) LTD"
"Bracknell Forest Council","http://opendatacommunities.org/id/unitary-authority/bracknell-forest","Bracknell Forest Council","00MA","Older People (Aged 65 or Over)","Residential Care Home Placements","Residential Placements-Elderly","Contracted Services",07/06/2011 00:00:00,"30175157",2361.56,"DORMY HOUSE (SUNNINGDALE) LTD"
"Bracknell Forest Council","http://opendatacommunities.org/id/unitary-authority/bracknell-forest","Bracknell Forest Council","00MA","Older People (Aged 65 or Over)","Residential Care Home Placements","Residential Placements-Elderly","Contracted Services",07/06/2011 00:00:00,"30175157",1819.12,"DORMY HOUSE (SUNNINGDALE) LTD"
"Bracknell Forest Council","http://opendatacommunities.org/id/unitary-authority/bracknell-forest","Bracknell Forest Council","00MA","Older People (Aged 65 or Over)","Nursing Home Placements","Nursing Home Placements-Elderly","Contracted Services",07/06/2011 00:00:00,"30175157",2358.48,"DORMY HOUSE (SUNNINGDALE) LTD"
"Bracknell Forest Council","http://opendatacommunities.org/id/unitary-authority/bracknell-forest","Bracknell Forest Council","00MA","Older People (Aged 65 or Over)","Nursing Home Placements","Nursing Home Placements-Elderly","Contracted Services",07/06/2011 00:00:00,"30175157",2358.48,"DORMY HOUSE (SUNNINGDALE) LTD"
"Bracknell Forest Council","http://opendatacommunities.org/id/unitary-authority/bracknell-forest","Bracknell Forest Council","00MA","Older People (Aged 65 or Over)","Direct Payments","Direct Payments - OP","Client Contributions Other",21/06/2011 00:00:00,"30175678",-258.76,"REDACTED PERSONAL DATA"
"Bracknell Forest Council","http://opendatacommunities.org/id/unitary-authority/bracknell-forest","Bracknell Forest Council","00MA","Older People (Aged 65 or Over)","Direct Payments","Direct Payments - OP","Direct Payments to Clients",21/06/2011 00:00:00,"30175678",707.2,"REDACTED PERSONAL DATA"
"Bracknell Forest Council","http://opendatacommunities.org/id/unitary-authority/bracknell-forest","Bracknell Forest Council","00MA","Other Adult Services","Substance Abuse (Addictions)","PTB New Hope Running Costs","Rent of Property",02/06/2011 00:00:00,"6450614",2875,"DTZ"
"Bracknell Forest Council","http://opendatacommunities.org/id/unitary-authority/bracknell-forest","Bracknell Forest Council","00MA","Other Adult Services","Substance Abuse (Addictions)","TA Refurbishment of AIC Centre","Rent of Property",02/06/2011 00:00:00,"6450615",2875,"DTZ"
"Bracknell Forest Council","http://opendatacommunities.org/id/unitary-authority/bracknell-forest","Bracknell Forest Council","00MA","","","Holly Spring Infant and Junior","Consultant Fees",08/06/2011 00:00:00,"6451285",2195,"DUCTCLEAN (UK) LTD"
"Bracknell Forest Council","http://opendatacommunities.org/id/unitary-authority/bracknell-forest","Bracknell Forest Council","00MA","Mental Health Needs (Under 65)","Residential Care Home Placements","Residential Placements-Mental Illness","Contracted Services",07/06/2011 00:00:00,"30175157",3400,"DUNRAVEN HOUSE"
"Bracknell Forest Council","http://opendatacommunities.org/id/unitary-authority/bracknell-forest","Bracknell Forest Council","00MA","Physical Disability/Sensory Impairment","Residential Care Home Placements","Residential Placements-Phys Disab","Contracted Services",07/06/2011 00:00:00,"30175157",3108.16,"DUNRAVEN HOUSE"
"Bracknell Forest Council","http://opendatacommunities.org/id/unitary-authority/bracknell-forest","Bracknell Forest Council","00MA","Recreation, Sports and Leisure","Golf Courses","Golf Course Management & Administration","Office Stationery",09/06/2011 00:00:00,"6451917",839,"EAGLE PROMOTIONS LTD"
"Bracknell Forest Council","http://opendatacommunities.org/id/unitary-authority/bracknell-forest","Bracknell Forest Council","00MA","Primary Schools","Other Primary Related Expenditure","Young People in Sport","Agency",31/05/2011 00:00:00,"6450336",1980,"EAST BERKSHIRE CRICKET COACHING"
"Bracknell Forest Council","http://opendatacommunities.org/id/unitary-authority/bracknell-forest","Bracknell Forest Council","00MA","Primary Schools","Other Primary Related Expenditure","Young People in Sport","Agency",17/06/2011 00:00:00,"6451902",780,"EAST BERKSHIRE CRICKET COACHING"
"Bracknell Forest Council","http://opendatacommunities.org/id/unitary-authority/bracknell-forest","Bracknell Forest Council","00MA","Recreation, Sports and Leisure","Sports Development & Community Recreations","Sports Development","Agency",17/06/2011 00:00:00,"6451903",3380,"EAST BERKSHIRE CRICKET COACHING"
"Bracknell Forest Council","http://opendatacommunities.org/id/unitary-authority/bracknell-forest","Bracknell Forest Council","00MA","Recreation, Sports and Leisure","Sports Development & Community Recreations","Sports Development","Agency",24/06/2011 00:00:00,"6452622",840,"EAST BERKSHIRE CRICKET COACHING"
"Bracknell Forest Council","http://opendatacommunities.org/id/unitary-authority/bracknell-forest","Bracknell Forest Council","00MA","","","Kennel Lane Rebuild","Consultant Fees",31/05/2011 00:00:00,"6451788",8443.75,"EC HARRIS LLP"
"Bracknell Forest Council","http://opendatacommunities.org/id/unitary-authority/bracknell-forest","Bracknell Forest Council","00MA","","","Brakenhale Science Block","Consultant Fees",31/05/2011 00:00:00,"6451789",1725.12,"EC HARRIS LLP"
"Bracknell Forest Council","http://opendatacommunities.org/id/unitary-authority/bracknell-forest","Bracknell Forest Council","00MA","","","Edgbarrow Phase 2 Capacity Works","Consultant Fees",31/05/2011 00:00:00,"6451790",3050.7,"EC HARRIS LLP"
"Bracknell Forest Council","http://opendatacommunities.org/id/unitary-authority/bracknell-forest","Bracknell Forest Council","00MA","","","Kitchens","Consultant Fees",31/05/2011 00:00:00,"6451791",4000,"EC HARRIS LLP"
"Bracknell Forest Council","http://opendatacommunities.org/id/unitary-authority/bracknell-forest","Bracknell Forest Council","00MA","","","Holly Spring Infant and Junior","Consultant Fees",31/05/2011 00:00:00,"6451792",4998.68,"EC HARRIS LLP"
"Bracknell Forest Council","http://opendatacommunities.org/id/unitary-authority/bracknell-forest","Bracknell Forest Council","00MA","","","Holly Spring Infant and Junior","Consultant Fees",31/05/2011 00:00:00,"6451793",973.33,"EC HARRIS LLP"
"Bracknell Forest Council","http://opendatacommunities.org/id/unitary-authority/bracknell-forest","Bracknell Forest Council","00MA","","","Crown Wood Primary","Consultant Fees",31/05/2011 00:00:00,"6451793",960,"EC HARRIS LLP"
"Bracknell Forest Council","http://opendatacommunities.org/id/unitary-authority/bracknell-forest","Bracknell Forest Council","00MA","","","Meadow Vale - Refurb","Consultant Fees",31/05/2011 00:00:00,"6451793",960,"EC HARRIS LLP"
"Bracknell Forest Council","http://opendatacommunities.org/id/unitary-authority/bracknell-forest","Bracknell Forest Council","00MA","","","Sandy Lane Primary","Consultant Fees",31/05/2011 00:00:00,"6451793",960,"EC HARRIS LLP"
"Bracknell Forest Council","http://opendatacommunities.org/id/unitary-authority/bracknell-forest","Bracknell Forest Council","00MA","","","Owlsmoor Suitability","Consultant Fees",31/05/2011 00:00:00,"6451793",960,"EC HARRIS LLP"
"Bracknell Forest Council","http://opendatacommunities.org/id/unitary-authority/bracknell-forest","Bracknell Forest Council","00MA","","","Jennetts Park (Peacock Farm)","Consultant Fees",31/05/2011 00:00:00,"6451793",960,"EC HARRIS LLP"
"Bracknell Forest Council","http://opendatacommunities.org/id/unitary-authority/bracknell-forest","Bracknell Forest Council","00MA","","","Kennel Lane Rebuild","Consultant Fees",31/05/2011 00:00:00,"6451793",960,"EC HARRIS LLP"
"Bracknell Forest Council","http://opendatacommunities.org/id/unitary-authority/bracknell-forest","Bracknell Forest Council","00MA","","","Crown Wood Primary","Consultant Fees",31/05/2011 00:00:00,"6451794",930,"EC HARRIS LLP"
"Bracknell Forest Council","http://opendatacommunities.org/id/unitary-authority/bracknell-forest","Bracknell Forest Council","00MA","","","Edgbarrow Phase 2 Capacity Works","Consultant Fees",31/05/2011 00:00:00,"6451794",930,"EC HARRIS LLP"
"Bracknell Forest Council","http://opendatacommunities.org/id/unitary-authority/bracknell-forest","Bracknell Forest Council","00MA","","","Kennel Lane Rebuild","Consultant Fees",31/05/2011 00:00:00,"6451794",920,"EC HARRIS LLP"
"Bracknell Forest Council","http://opendatacommunities.org/id/unitary-authority/bracknell-forest","Bracknell Forest Council","00MA","","","Holly Spring Infant and Junior","Consultant Fees",31/05/2011 00:00:00,"6451794",930,"EC HARRIS LLP"
"Bracknell Forest Council","http://opendatacommunities.org/id/unitary-authority/bracknell-forest","Bracknell Forest Council","00MA","","","Jennetts Park (Peacock Farm)","Consultant Fees",31/05/2011 00:00:00,"6451794",930,"EC HARRIS LLP"
"Bracknell Forest Council","http://opendatacommunities.org/id/unitary-authority/bracknell-forest","Bracknell Forest Council","00MA","","","Sandy Lane Primary","Consultant Fees",31/05/2011 00:00:00,"6451794",930,"EC HARRIS LLP"
"Bracknell Forest Council","http://opendatacommunities.org/id/unitary-authority/bracknell-forest","Bracknell Forest Council","00MA","","","Brakenhale Science Block","Consultant Fees",31/05/2011 00:00:00,"6451794",930,"EC HARRIS LLP"
"Bracknell Forest Council","http://opendatacommunities.org/id/unitary-authority/bracknell-forest","Bracknell Forest Council","00MA","","","Jennetts Park (Peacock Farm)","Consultant Fees",31/05/2011 00:00:00,"6451795",2000,"EC HARRIS LLP"
"Bracknell Forest Council","http://opendatacommunities.org/id/unitary-authority/bracknell-forest","Bracknell Forest Council","00MA","","","Holly Spring Infant and Junior","Consultant Fees",31/05/2011 00:00:00,"6451795",2000,"EC HARRIS LLP"
"Bracknell Forest Council","http://opendatacommunities.org/id/unitary-authority/bracknell-forest","Bracknell Forest Council","00MA","","","Sandy Lane Primary","Consultant Fees",31/05/2011 00:00:00,"6451795",2000,"EC HARRIS LLP"
"Bracknell Forest Council","http://opendatacommunities.org/id/unitary-authority/bracknell-forest","Bracknell Forest Council","00MA","","","Kennel Lane Rebuild","Consultant Fees",31/05/2011 00:00:00,"6451795",2000,"EC HARRIS LLP"
"Bracknell Forest Council","http://opendatacommunities.org/id/unitary-authority/bracknell-forest","Bracknell Forest Council","00MA","","","Crown Wood Primary","Consultant Fees",31/05/2011 00:00:00,"6451795",2000,"EC HARRIS LLP"
"Bracknell Forest Council","http://opendatacommunities.org/id/unitary-authority/bracknell-forest","Bracknell Forest Council","00MA","","","Brakenhale Science Block","Consultant Fees",06/06/2011 00:00:00,"6452061",816,"EC HARRIS LLP"
"Bracknell Forest Council","http://opendatacommunities.org/id/unitary-authority/bracknell-forest","Bracknell Forest Council","00MA","","","Brakenhale Science Block","Consultant Fees",06/06/2011 00:00:00,"6452062",816,"EC HARRIS LLP"
"Bracknell Forest Council","http://opendatacommunities.org/id/unitary-authority/bracknell-forest","Bracknell Forest Council","00MA","Education Management & Support Service","Performance & Resources","Parent Partnership","Reference Books & Publications",01/04/2011 00:00:00,"6448856",4535.94,"EDUCATIONAL RECORDING AGENCY"
"Bracknell Forest Council","http://opendatacommunities.org/id/unitary-authority/bracknell-forest","Bracknell Forest Council","00MA","Non-School Funding","Adult & Community Learning","Adult Education - Time Limited Projects","Other Fees for Bought-in Services",09/05/2011 00:00:00,"6449707",2841.96,"E-MPIRICAL LTD"
"Bracknell Forest Council","http://opendatacommunities.org/id/unitary-authority/bracknell-forest","Bracknell Forest Council","00MA","Recreation, Sports and Leisure","Indoor Sports & Recreation Facilities","Leisure DSO - Coral Reef Maintenance","R&M - Reactive",31/05/2011 00:00:00,"6450990",1152,"ESG POOL VENTILATION"
"Bracknell Forest Council","http://opendatacommunities.org/id/unitary-authority/bracknell-forest","Bracknell Forest Council","00MA","Mental Health Needs (Under 65)","Direct Payments","Direct Payments - MH","Direct Payments to Clients",21/06/2011 00:00:00,"30175678",117.52,"REDACTED PERSONAL DATA"
"Bracknell Forest Council","http://opendatacommunities.org/id/unitary-authority/bracknell-forest","Bracknell Forest Council","00MA","Mental Health Needs (Under 65)","Direct Payments","Direct Payments - MH","Client Contributions Other",21/06/2011 00:00:00,"30175678",-93.28,"REDACTED PERSONAL DATA"
"Bracknell Forest Council","http://opendatacommunities.org/id/unitary-authority/bracknell-forest","Bracknell Forest Council","00MA","Mental Health Needs (Under 65)","Direct Payments","Direct Payments - MH","Direct Payments to Clients",21/06/2011 00:00:00,"30175678",252,"REDACTED PERSONAL DATA"
"Bracknell Forest Council","http://opendatacommunities.org/id/unitary-authority/bracknell-forest","Bracknell Forest Council","00MA","Older People (Aged 65 or Over)","Direct Payments","Direct Payments - OP","Client Contributions Other",21/06/2011 00:00:00,"30175678",-72,"REDACTED PERSONAL DATA"
"Bracknell Forest Council","http://opendatacommunities.org/id/unitary-authority/bracknell-forest","Bracknell Forest Council","00MA","Older People (Aged 65 or Over)","Direct Payments","Direct Payments - OP","Direct Payments to Clients",21/06/2011 00:00:00,"30175678",72,"REDACTED PERSONAL DATA"
"Bracknell Forest Council","http://opendatacommunities.org/id/unitary-authority/bracknell-forest","Bracknell Forest Council","00MA","Older People (Aged 65 or Over)","Direct Payments","Direct Payments - OP","Direct Payments to Clients",21/06/2011 00:00:00,"30175678",36,"REDACTED PERSONAL DATA"
"Bracknell Forest Council","http://opendatacommunities.org/id/unitary-authority/bracknell-forest","Bracknell Forest Council","00MA","Older People (Aged 65 or Over)","Direct Payments","Direct Payments - OP","Direct Payments to Clients",21/06/2011 00:00:00,"30175678",54,"REDACTED PERSONAL DATA"
"Bracknell Forest Council","http://opendatacommunities.org/id/unitary-authority/bracknell-forest","Bracknell Forest Council","00MA","Older People (Aged 65 or Over)","Direct Payments","Direct Payments - OP","Direct Payments to Clients",21/06/2011 00:00:00,"30175678",72,"REDACTED PERSONAL DATA"
"Bracknell Forest Council","http://opendatacommunities.org/id/unitary-authority/bracknell-forest","Bracknell Forest Council","00MA","Older People (Aged 65 or Over)","Direct Payments","Direct Payments - OP","Direct Payments to Clients",21/06/2011 00:00:00,"30175678",72,"REDACTED PERSONAL DATA"
"Bracknell Forest Council","http://opendatacommunities.org/id/unitary-authority/bracknell-forest","Bracknell Forest Council","00MA","Physical Disability/Sensory Impairment","Direct Payments","Direct Payments - PD","Direct Payments to Clients",21/06/2011 00:00:00,"30175678",711.16,"REDACTED PERSONAL DATA"
"Bracknell Forest Council","http://opendatacommunities.org/id/unitary-authority/bracknell-forest","Bracknell Forest Council","00MA","Older People (Aged 65 or Over)","Direct Payments","Direct Payments - OP","Direct Payments to Clients",21/06/2011 00:00:00,"30175678",72,"REDACTED PERSONAL DATA"
"Bracknell Forest Council","http://opendatacommunities.org/id/unitary-authority/bracknell-forest","Bracknell Forest Council","00MA","Physical Disability/Sensory Impairment","Direct Payments","Direct Payments - PD","Direct Payments to Clients",21/06/2011 00:00:00,"30175678",1382.4,"REDACTED PERSONAL DATA"
"Bracknell Forest Council","http://opendatacommunities.org/id/unitary-authority/bracknell-forest","Bracknell Forest Council","00MA","Family Support Services","Direct Payments","Direct Payments for Children","Direct Payments to Clients",23/06/2011 00:00:00,"6451631",1296.78,"REDACTED PERSONAL DATA"
"Bracknell Forest Council","http://opendatacommunities.org/id/unitary-authority/bracknell-forest","Bracknell Forest Council","00MA","Physical Disability/Sensory Impairment","Direct Payments","Direct Payments - PD","Direct Payments to Clients",21/06/2011 00:00:00,"30175678",1207.6,"REDACTED PERSONAL DATA"
"Bracknell Forest Council","http://opendatacommunities.org/id/unitary-authority/bracknell-forest","Bracknell Forest Council","00MA","","","GIS Upgrade","IT Consultants",20/06/2011 00:00:00,"6452456",995,"ESRI (UK) LTD"
"Bracknell Forest Council","http://opendatacommunities.org/id/unitary-authority/bracknell-forest","Bracknell Forest Council","00MA","Central Support Services - COF","Personnel","LSC - Train to Gain Grant (T2G)","Training Costs",27/05/2011 00:00:00,"6450608",975.44,"ESTHER WATUNGWA"
"Bracknell Forest Council","http://opendatacommunities.org/id/unitary-authority/bracknell-forest","Bracknell Forest Council","00MA","","","Brakenhale Science Block","Consultant Fees",07/06/2011 00:00:00,"6452116",14713,"EUROPEAN ASBESTOS SERVICES"
"Bracknell Forest Council","http://opendatacommunities.org/id/unitary-authority/bracknell-forest","Bracknell Forest Council","00MA","Older People (Aged 65 or Over)","Home Care","PD Live-In Carers","Contracted Services",07/06/2011 00:00:00,"30175159",2983.32,"EUROPEAN NURSING AGENCY LTD"
"Bracknell Forest Council","http://opendatacommunities.org/id/unitary-authority/bracknell-forest","Bracknell Forest Council","00MA","Older People (Aged 65 or Over)","Home Care","PD Live-In Carers","Contracted Services",27/06/2011 00:00:00,"30175865",2983.32,"EUROPEAN NURSING AGENCY LTD"
"Bracknell Forest Council","http://opendatacommunities.org/id/unitary-authority/bracknell-forest","Bracknell Forest Council","00MA","Transport Planning, Policy & Strategy","Transport Policy, Planning & Strategy","Travel Choice","Contracted Services",16/06/2011 00:00:00,"6452000",540,"EVE TRAKWAY LIMITED"
"Bracknell Forest Council","http://opendatacommunities.org/id/unitary-authority/bracknell-forest","Bracknell Forest Council","00MA","Learning Disability (under 65)","Homecare","Supported Living (Homecare) LD","Contracted Services",07/06/2011 00:00:00,"30175159",3885,"EXCEL SUPPORT SERVICES"
"Bracknell Forest Council","http://opendatacommunities.org/id/unitary-authority/bracknell-forest","Bracknell Forest Council","00MA","Learning Disability (under 65)","Homecare","Supported Living (Homecare) LD","Contracted Services",07/06/2011 00:00:00,"30175159",5670,"EXCEL SUPPORT SERVICES"
"Bracknell Forest Council","http://opendatacommunities.org/id/unitary-authority/bracknell-forest","Bracknell Forest Council","00MA","Learning Disability (under 65)","Homecare","Supported Living (Homecare) LD","Contracted Services",07/06/2011 00:00:00,"30175159",6930,"EXCEL SUPPORT SERVICES"
"Bracknell Forest Council","http://opendatacommunities.org/id/unitary-authority/bracknell-forest","Bracknell Forest Council","00MA","Learning Disability (under 65)","Day Care","Supported Living (Day Care) LD","Contracted Services",07/06/2011 00:00:00,"30175159",600,"EXCEL SUPPORT SERVICES"
"Bracknell Forest Council","http://opendatacommunities.org/id/unitary-authority/bracknell-forest","Bracknell Forest Council","00MA","Learning Disability (under 65)","Day Care","Supported Living (Day Care) LD","Contracted Services",07/06/2011 00:00:00,"30175159",112,"EXCEL SUPPORT SERVICES"
"Bracknell Forest Council","http://opendatacommunities.org/id/unitary-authority/bracknell-forest","Bracknell Forest Council","00MA","Learning Disability (under 65)","Homecare","Supported Living (Homecare) LD","Contracted Services",07/06/2011 00:00:00,"30175159",3981.3,"EXCEL SUPPORT SERVICES"
"Bracknell Forest Council","http://opendatacommunities.org/id/unitary-authority/bracknell-forest","Bracknell Forest Council","00MA","Learning Disability (under 65)","Homecare","Supported Living (Homecare) LD","Contracted Services",07/06/2011 00:00:00,"30175159",4260,"EXCEL SUPPORT SERVICES"
"Bracknell Forest Council","http://opendatacommunities.org/id/unitary-authority/bracknell-forest","Bracknell Forest Council","00MA","Learning Disability (under 65)","Homecare","Supported Living (Homecare) LD","Contracted Services",07/06/2011 00:00:00,"30175159",5297.68,"EXCEL SUPPORT SERVICES"
"Bracknell Forest Council","http://opendatacommunities.org/id/unitary-authority/bracknell-forest","Bracknell Forest Council","00MA","Learning Disability (under 65)","Homecare","Supported Living (Homecare) LD","Contracted Services",07/06/2011 00:00:00,"30175159",3981.3,"EXCEL SUPPORT SERVICES"
"Bracknell Forest Council","http://opendatacommunities.org/id/unitary-authority/bracknell-forest","Bracknell Forest Council","00MA","Older People (Aged 65 or Over)","Direct Payments","Direct Payments - OP","Client Contributions Other",21/06/2011 00:00:00,"30175678",-104.8,"REDACTED PERSONAL DATA"
"Bracknell Forest Council","http://opendatacommunities.org/id/unitary-authority/bracknell-forest","Bracknell Forest Council","00MA","Older People (Aged 65 or Over)","Direct Payments","Direct Payments - OP","Direct Payments to Clients",21/06/2011 00:00:00,"30175678",2620.8,"REDACTED PERSONAL DATA"
"Bracknell Forest Council","http://opendatacommunities.org/id/unitary-authority/bracknell-forest","Bracknell Forest Council","00MA","Older People (Aged 65 or Over)","Direct Payments","Direct Payments - OP","Client Contributions Other",21/06/2011 00:00:00,"30175678",-49.36,"REDACTED PERSONAL DATA"
"Bracknell Forest Council","http://opendatacommunities.org/id/unitary-authority/bracknell-forest","Bracknell Forest Council","00MA","Older People (Aged 65 or Over)","Direct Payments","Direct Payments - OP","Direct Payments to Clients",21/06/2011 00:00:00,"30175678",375.48,"REDACTED PERSONAL DATA"
"Bracknell Forest Council","http://opendatacommunities.org/id/unitary-authority/bracknell-forest","Bracknell Forest Council","00MA","Physical Disability/Sensory Impairment","Direct Payments","Direct Payments - PD","Direct Payments to Clients",21/06/2011 00:00:00,"30175678",90,"REDACTED PERSONAL DATA"
"Bracknell Forest Council","http://opendatacommunities.org/id/unitary-authority/bracknell-forest","Bracknell Forest Council","00MA","Physical Disability/Sensory Impairment","Direct Payments","Direct Payments - PD","Direct Payments to Clients",21/06/2011 00:00:00,"30175678",302,"REDACTED PERSONAL DATA"
"Bracknell Forest Council","http://opendatacommunities.org/id/unitary-authority/bracknell-forest","Bracknell Forest Council","00MA","Physical Disability/Sensory Impairment","Direct Payments","Direct Payments - PD","Direct Payments to Clients",21/06/2011 00:00:00,"30175678",2323.36,"REDACTED PERSONAL DATA"
"Bracknell Forest Council","http://opendatacommunities.org/id/unitary-authority/bracknell-forest","Bracknell Forest Council","00MA","Older People (Aged 65 or Over)","Direct Payments","Direct Payments - OP","Direct Payments to Clients",21/06/2011 00:00:00,"30175678",289.8,"REDACTED PERSONAL DATA"
"Bracknell Forest Council","http://opendatacommunities.org/id/unitary-authority/bracknell-forest","Bracknell Forest Council","00MA","Older People (Aged 65 or Over)","Direct Payments","Direct Payments - OP","Client Contributions Other",21/06/2011 00:00:00,"30175678",58.8,"REDACTED PERSONAL DATA"
"Bracknell Forest Council","http://opendatacommunities.org/id/unitary-authority/bracknell-forest","Bracknell Forest Council","00MA","Older People (Aged 65 or Over)","Direct Payments","Direct Payments - OP","Direct Payments to Clients",21/06/2011 00:00:00,"30175678",-180.32,"REDACTED PERSONAL DATA"
"Bracknell Forest Council","http://opendatacommunities.org/id/unitary-authority/bracknell-forest","Bracknell Forest Council","00MA","Older People (Aged 65 or Over)","Direct Payments","Direct Payments - OP","Direct Payments to Clients",21/06/2011 00:00:00,"30175678",-734.4,"REDACTED PERSONAL DATA"
"Bracknell Forest Council","http://opendatacommunities.org/id/unitary-authority/bracknell-forest","Bracknell Forest Council","00MA","Older People (Aged 65 or Over)","Direct Payments","Direct Payments - OP","Client Contributions Other",21/06/2011 00:00:00,"30175678",-98.84,"REDACTED PERSONAL DATA"
"Bracknell Forest Council","http://opendatacommunities.org/id/unitary-authority/bracknell-forest","Bracknell Forest Council","00MA","Older People (Aged 65 or Over)","Direct Payments","Direct Payments - OP","Direct Payments to Clients",21/06/2011 00:00:00,"30175678",505.88,"REDACTED PERSONAL DATA"
